Service Area,Service Division,Expense Type,Expense Code,Detailed Expense Type,Payment Date,Transaction Number,Amount Exc Vat,Supplier Name,
Assistant Chief Executive,Partnerships & Community Engagement Div.,Transfer Payments,525030,Other,02-Jan-2014,2685912,"1,000.00",MUGGLESWICK PARISH HALL COMMUNITY ASSOCIATION.,
Assistant Chief Executive,Partnerships & Community Engagement Div.,Transfer Payments,525030,Other,02-Jan-2014,2685942,740.00,WEARHEAD UNITED FOOTBALL CLUB.,
Assistant Chief Executive,Planning & Performance Division,Supplies and Services,384197,Miscellaneous Expenses,02-Jan-2014,2685900,542.55,IRON MOUNTAIN (UK) LTD.,
Children and Adult Services,Childrens care,Supplies and Services,324500,Provisions,02-Jan-2014,2685889-11996,"13,685.98",CREATIVE MANAGEMENT SERVICES LTD.,
Children and Adult Services,Childrens care,Supplies and Services,338076,Services,02-Jan-2014,2685891-20011209,"1,994.00",DURHAM POLICE & CRIME COMMISSIONER.,
Children and Adult Services,Childrens care,Fees,901002,Professional fees,02-Jan-2014,2685941-521953,"3,300.00",WARD HADAWAY.,
Children and Adult Services,Commissioning inc Supporting People,Third Party Payments,470101,Purchase of Care,02-Jan-2014,2685906-RINVTP/00299712,"3,916.67",LEONARD CHESHIRE DISABILITY.,
Children and Adult Services,Commissioning inc Supporting People,Supplies and Services,336005,Advertising,02-Jan-2014,2685914-4724103,653.48,NEWSQUEST (YORKSHIRE & NORTH EAST) LTD.,
Children and Adult Services,Education,Supplies and Services,324500,Provisions,02-Jan-2014,2685933-SI-TSW-1013597,"2,347.45",TAYLOR SHAW LTD.,
Children and Adult Services,Education,Supplies and Services,384984,Miscellaneous Expenses,02-Jan-2014,2685934-TG126083,"43,882.00",TEN EDUCATION LTD.,
Children and Adult Services,Head of Adults,Supplies and Services,324117,Provisions,02-Jan-2014,2685881-34435109,568.68,BRAKE BROS FOODSERVICE LTD.,
Children and Adult Services,Head of Adults,Premises,145023,Cleaning and Domestic Supplies,02-Jan-2014,2685896-08/397260,771.54,GREENHAM TRADING LTD.,
Children and Adult Services,Head of Adults,Supplies and Services,324117,Provisions,02-Jan-2014,2685902-O40357,825.35,JR HOLLAND FOOD SERVICES LTD.,
Children and Adult Services,Public Health,Third Party Payments,460803,Contract Payments,02-Jan-2014,2685901-08/2013,"3,520.00",JANICE KIRBY COUNSELLING SERVICES.,
Corporate Resources,Centrally Administered Costs,Supplies and Services,338013,Services,02-Jan-2014,2685909-907389,"33,318.00",MAZARS LLP.,
Neighbourhood Services,Culture & Sport,Third Party Payments,430100,Rendered by Private Contractors,02-Jan-2014,2685872-2B16,"1,200.00",2B COMMUNICATIONS LTD.,
Neighbourhood Services,Culture & Sport,Income,720810,Fees and Charges,02-Jan-2014,2685888-PS22894,"19,488.28",COMPETITION LINE UK LTD.,
Neighbourhood Services,Culture & Sport,Income,720810,Fees and Charges,02-Jan-2014,2685888-PS22895,"4,884.07",COMPETITION LINE UK LTD.,
Neighbourhood Services,Culture & Sport,Income,720810,Fees and Charges,02-Jan-2014,2685888-PS22896,"18,491.36",COMPETITION LINE UK LTD.,
Neighbourhood Services,Culture & Sport,Premises,145015,Cleaning and Domestic Supplies,02-Jan-2014,2685896-06/492682,513.38,GREENHAM TRADING LTD.,
Neighbourhood Services,Direct Services,Supplies and Services,304221,Equipment and Materials,02-Jan-2014,2685920-185820,"1,790.84",PLUMBING TRADE SUPPLIES LTD.,
Neighbourhood Services,Direct Services,Supplies and Services,304221,Equipment and Materials,02-Jan-2014,2685920-186132,"11,498.76",PLUMBING TRADE SUPPLIES LTD.,
Neighbourhood Services,Direct Services,Supplies and Services,304221,Equipment and Materials,02-Jan-2014,2685920-186133,"10,691.82",PLUMBING TRADE SUPPLIES LTD.,
Neighbourhood Services,Direct Services,Supplies and Services,304221,Equipment and Materials,02-Jan-2014,2685920-186134,"5,489.33",PLUMBING TRADE SUPPLIES LTD.,
Neighbourhood Services,Direct Services,Supplies and Services,304221,Equipment and Materials,02-Jan-2014,2685921-4120159487,856.56,PLUMBING TRADE SUPPLIES LTD.,
Neighbourhood Services,Direct Services,Supplies and Services,304221,Equipment and Materials,02-Jan-2014,2685921-4120159645,854.56,PLUMBING TRADE SUPPLIES LTD.,
Neighbourhood Services,Direct Services,Transport,230710,Contract Hire,02-Jan-2014,2685927-270/14/0000117,"9,022.85",SIEMENS FINANCIAL SERVICES LTD.,
Neighbourhood Services,Technical Services,Supplies and Services,304221,Equipment and Materials,02-Jan-2014,2685874-19061223,"4,079.02",AGGREGATE INDUSTRIES UK LTD.,
Neighbourhood Services,Technical Services,Supplies and Services,304221,Equipment and Materials,02-Jan-2014,2685875-19092327,522.00,AGGREGATE INDUSTRIES UK LTD.,
Neighbourhood Services,Technical Services,Stock,926900,Stock in hand-Inventory system,02-Jan-2014,2685896-06/492928,"2,943.48",GREENHAM TRADING LTD.,
Neighbourhood Services,Technical Services,Stock,926900,Stock in hand-Inventory system,02-Jan-2014,2685899-432303,"2,984.80",INSTARMAC GROUP PLC.,
Neighbourhood Services,Technical Services,Third Party Payments,430100,Rendered by Private Contractors,02-Jan-2014,2685903-1770,"49,690.35",L & G PLANT HIRE & SALES LTD.,
Neighbourhood Services,Technical Services,Supplies and Services,304221,Equipment and Materials,02-Jan-2014,2685904-9030373539,"1,120.89",LAFARGE TARMAC TRADING LTD.,
Neighbourhood Services,Technical Services,Stock,926900,Stock in hand-Inventory system,02-Jan-2014,2685908-203998,"5,829.00",MARWOOD ELECTRICAL CO LTD.,
RED HRA,HRA Capital,Construction Work,908105,Construction work,02-Jan-2014,2685928-185423,"3,181.18",SIG ROOFING SUPPLIES.,
Regeneration & Economic Development,Economic Development and Housing,Fees,901001,Internal fees,02-Jan-2014,2685937-SITRH/0005924,788.76,THREE RIVERS HOUSING ASSOCIATION LTD.,
Regeneration & Economic Development,Transport and Contracted Services,Construction Work,908105,Construction work,02-Jan-2014,2685914-4723849,506.02,NEWSQUEST (YORKSHIRE & NORTH EAST) LTD.,
Children and Adult Services,Childrens care,Transport,230005,Contract Hire,03-Jan-2014,2685945-N6/SW,"1,600.00",AABAT TAXIS.,
Children and Adult Services,Childrens care,Supplies and Services,342513,Computers and Communications,03-Jan-2014,2685950-36740,"1,320.11",ALARM RADIO MONITORING LTD.,
Children and Adult Services,Childrens care,Supplies and Services,338027,Services,03-Jan-2014,2686013-ECSC14,900.00,EC SAFEGUARDING CONSULTANCY LTD.,
Children and Adult Services,Childrens care,Supplies and Services,338027,Services,03-Jan-2014,2686013-ECSC15,"1,200.00",EC SAFEGUARDING CONSULTANCY LTD.,
Children and Adult Services,Childrens care,Third Party Payments,425040,Rendered by Voluntary Organisations,03-Jan-2014,2686023-FC013770,"1,180.00",FOSTER CARES LTD.,
Children and Adult Services,Childrens care,Third Party Payments,425040,Rendered by Voluntary Organisations,03-Jan-2014,2686023-FC013814,"1,180.00",FOSTER CARES LTD.,
Children and Adult Services,Childrens care,Third Party Payments,486042,Service Level Agreements,03-Jan-2014,2686024-RINVE/00001660,"4,103.46",FOSTERING NETWORK.,
Children and Adult Services,Childrens care,Third Party Payments,425021,Rendered by Voluntary Organisations,03-Jan-2014,2686042-INV-0047,"24,826.04",INTERACT CARE LTD.,
Children and Adult Services,Childrens care,Supplies and Services,364353,Grants to Voluntary Organisations,03-Jan-2014,2686077-6278392,"1,178.36",MIDDLESBROUGH BOROUGH COUNCIL.,
Children and Adult Services,Childrens care,Third Party Payments,425040,Rendered by Voluntary Organisations,03-Jan-2014,2686088-NFA96110,"3,128.70",NATIONAL FOSTERING AGENCY LTD.,
Children and Adult Services,Childrens care,Supplies and Services,384638,Miscellaneous Expenses,03-Jan-2014,2686097-0000015774,535.50,NORTH EAST AUTISM SOCIETY.,
Children and Adult Services,Childrens care,Supplies and Services,384638,Miscellaneous Expenses,03-Jan-2014,2686097-0000015776,551.25,NORTH EAST AUTISM SOCIETY.,
Children and Adult Services,Childrens care,Third Party Payments,440062,Other Third Party Payments,03-Jan-2014,2686115-12508,"1,314.86",PHYSIOTHERAPY FOR YOU.,
Children and Adult Services,Childrens care,Employees,080030,Agency Staff,03-Jan-2014,2686128-NA3,"1,400.00",RIDGESIDE FALCONRY.,
Children and Adult Services,Childrens care,Third Party Payments,425040,Rendered by Voluntary Organisations,03-Jan-2014,2686157-1141004,"3,000.00",ST CUTHBERTS CARE.,
Children and Adult Services,Childrens care,Third Party Payments,425040,Rendered by Voluntary Organisations,03-Jan-2014,2686164-138790,"1,069.00",SWIIS FOSTER CARE LTD.,
Children and Adult Services,Childrens care,Third Party Payments,425040,Rendered by Voluntary Organisations,03-Jan-2014,2686164-139967,891.90,SWIIS FOSTER CARE LTD.,
Children and Adult Services,Childrens care,Third Party Payments,425040,Rendered by Voluntary Organisations,03-Jan-2014,2686164-139968,"1,208.00",SWIIS FOSTER CARE LTD.,
Children and Adult Services,Commissioning inc Supporting People,Third Party Payments,473111,Purchase of Care,03-Jan-2014,2686158-2312,"40,347.36",ST MARGARETS CENTRE.,
Children and Adult Services,Early Intervention and Involvement,Third Party Payments,479101,Purchase of Care,03-Jan-2014,2685991-3910002042,"2,720.84",CO DURHAM & DARLINGTON NHS FOUNDATION TRUST.,
Children and Adult Services,Early Intervention and Involvement,Premises,108099,Service Repairs and Maintenance,03-Jan-2014,2686040-7080379402,"4,526.96",HONEYWELL NOVAR SYSTEMS LTD.,
Children and Adult Services,Early Intervention and Involvement,Supplies and Services,384302,Miscellaneous Expenses,03-Jan-2014,2686184-QUARTERTWO,"6,984.84",WEST RAINTON YOUTH PROJECT.,
Children and Adult Services,Education,Fees,901002,Professional fees,03-Jan-2014,2685962-13037796,"4,854.00",ATKINS GLOBAL.,
Children and Adult Services,Education,Employees,040149,"Recruitment, Instruction and Training",03-Jan-2014,2686054-26,"1,061.06",JOHN RYMASZEWSKI.,
Children and Adult Services,Education,Supplies and Services,338027,Services,03-Jan-2014,2686054-27,"1,260.00",JOHN RYMASZEWSKI.,
Children and Adult Services,Education,"Vehicles, Equipment, Furniture and Fittings",912529,Purchase-equipment,03-Jan-2014,2686065-SI018050,"1,350.92",LEWIS`S MEDICAL SUPPLIES.,
Children and Adult Services,Education,"Vehicles, Equipment, Furniture and Fittings",912529,Purchase-equipment,03-Jan-2014,2686073-SIN56362,"1,982.44",MAUDESPORT LTD.,
Children and Adult Services,Education,"Vehicles, Equipment, Furniture and Fittings",912529,Purchase-equipment,03-Jan-2014,2686163-8531,"1,345.00",SWEEPFAST LTD.,
Children and Adult Services,Head of Adults,Third Party Payments,478101,Purchase of Care,03-Jan-2014,2685999-DOCT13,"5,445.37",DEACONSTAR LTD.,
Children and Adult Services,Head of Adults,Premises,106099,Centrally Controlled Rep and Maint,03-Jan-2014,2686040-7080379407,"4,411.05",HONEYWELL NOVAR SYSTEMS LTD.,
Children and Adult Services,Head of Adults,Third Party Payments,473101,Purchase of Care,03-Jan-2014,2686096-0000015415,"1,017.00",NORTH EAST AUTISM SOCIETY.,
Children and Adult Services,Head of Adults,Third Party Payments,472101,Purchase of Care,03-Jan-2014,2686146-436270,630.00,FIRSTPOINT HOMECARE LTD.,
Children and Adult Services,Head of Adults,Premises,108099,Service Repairs and Maintenance,03-Jan-2014,2686150-6901,"1,034.00",SIGMA CATERING EQUIPMENT LTD.,
Children and Adult Services,Planning & Service Strategy,Supplies and Services,384540,Miscellaneous Expenses,03-Jan-2014,2686030-629776,"2,022.35",GLOBAL RADIO SERVICES LTD.,
Children and Adult Services,Planning & Service Strategy,Supplies and Services,336005,Advertising,03-Jan-2014,2686125-SNE007434,860.00,REAL RADIO (NORTH EAST) LTD.,
Children and Adult Services,Planning & Service Strategy,Supplies and Services,384621,Miscellaneous Expenses,03-Jan-2014,2686152-3331,"2,115.00",SOCIAL RESOURCE CENTRE LTD.,
Children and Adult Services,Public Health,Third Party Payments,460802,Contract Payments,03-Jan-2014,2686006-A83004/SEPT13,"1,625.00",DR KAPOOR.,
Corporate Resources,Corporate Finance,Supplies and Services,312009,"Newspapers, Books and Periodicals",03-Jan-2014,2685986-3090356,556.00,CIPFA BUSINESS LTD.,
Corporate Resources,Corporate Finance,Supplies and Services,312009,"Newspapers, Books and Periodicals",03-Jan-2014,2685987-3090430,"1,276.00",CIPFA LTD.,
Corporate Resources,I.C.T. Services,"Vehicles, Equipment, Furniture and Fittings",912701,Computer equipment,03-Jan-2014,2686001-7402076217,"9,562.35",DELL COMPUTER CORPORATION LTD.,
Corporate Resources,I.C.T. Services,Supplies and Services,332029,"Printing, Stationery and Gen Off Exps",03-Jan-2014,2686005-67778,945.00,DESIGN X PRESS LTD.,
Corporate Resources,I.C.T. Services,Supplies and Services,312009,"Newspapers, Books and Periodicals",03-Jan-2014,2686091-000308,512.00,NEWSMARKET.,
Corporate Resources,I.C.T. Services,Supplies and Services,342051,Computers and Communications,03-Jan-2014,2686112-OP/I712591,"4,560.68",PHOENIX SOFTWARE LTD.,
Corporate Resources,I.C.T. Services,Debtors,930174,MFD - Paper Holdings,03-Jan-2014,2686162-6293436,924.00,SUPPLIES TEAM LTD.,
Corporate Resources,Legal & Democratic Services,Supplies and Services,332029,"Printing, Stationery and Gen Off Exps",03-Jan-2014,2685947-IS1228414,"2,413.27",ADARE INSPIRED COMMUNICATIONS.,
Corporate Resources,Legal & Democratic Services,Employees,040149,"Recruitment, Instruction and Training",03-Jan-2014,2686098-7725,750.00,NORTH EAST REGIONAL EMPLOYERS ORGANISATION.,
Corporate Resources,Legal & Democratic Services,Supplies and Services,340001,Postages,03-Jan-2014,2686131-9045800227,"2,718.64",ROYAL MAIL GROUP PLC.,
Corporate Resources,Legal & Democratic Services,Supplies and Services,372009,Subscriptions,03-Jan-2014,2686171-4500415998,"1,297.00",THOMSON REUTERS.,
Dedicated Schools Grant,Dedicated Schools Grant,Supplies and Services,304259,Equipment and Materials,03-Jan-2014,2686049-00111691,"1,561.00",JENX LTD.,
Neighbourhood Services,AAP - Area Action Partnerships,Construction Work,908105,Construction work,03-Jan-2014,2686181-T43820,"1,055.00",UNIPART DORMAN.,
Neighbourhood Services,Culture & Sport,Supplies and Services,384199,Miscellaneous Expenses,03-Jan-2014,2686010,"4,140.00",DURHAM SCENIC WORKSHOPS LTD.,
Neighbourhood Services,Culture & Sport,Supplies and Services,312013,"Newspapers, Books and Periodicals",03-Jan-2014,2685960-4134329,847.11,ASKEWS & HOLTS LIBRARY SERVICES LTD.,
Neighbourhood Services,Culture & Sport,Supplies and Services,312013,"Newspapers, Books and Periodicals",03-Jan-2014,2685960-4134478,536.61,ASKEWS & HOLTS LIBRARY SERVICES LTD.,
Neighbourhood Services,Culture & Sport,Fees,901002,Professional fees,03-Jan-2014,2685962-13037804,"4,907.00",ATKINS GLOBAL.,
Neighbourhood Services,Culture & Sport,Supplies and Services,338047,Services,03-Jan-2014,2685973-2749,"6,700.00",BLUE PARROT PRODUCTION & EVENTS.,
Neighbourhood Services,Culture & Sport,Supplies and Services,338047,Services,03-Jan-2014,2685973-2750,"1,127.58",BLUE PARROT PRODUCTION & EVENTS.,
Neighbourhood Services,Culture & Sport,Supplies and Services,324117,Provisions,03-Jan-2014,2685981-EW54756036,574.63,CARLSBERG UK LTD.,
Neighbourhood Services,Culture & Sport,Other Expenses,914001,Other capital expenses,03-Jan-2014,2686014-404,"1,000.00",ECO ENTERPRISES LTD.,
Neighbourhood Services,Culture & Sport,Supplies and Services,338047,Services,03-Jan-2014,2686033-FBC669,600.00,GROWLING CLOWN.,
Neighbourhood Services,Culture & Sport,Supplies and Services,340001,Postages,03-Jan-2014,2686045-12204,747.77,ISAPPHIRE LTD.,
Neighbourhood Services,Culture & Sport,Supplies and Services,338029,Services,03-Jan-2014,2686064-DDC007,"1,800.00",LEWIS LEISURE CONSULTANCY.,
Neighbourhood Services,Culture & Sport,"Vehicles, Equipment, Furniture and Fittings",912521,Purchase-furniture and fittings,03-Jan-2014,2686078-131072,"2,430.00",MIKE AYRES DESIGN LTD.,
Neighbourhood Services,Culture & Sport,Supplies and Services,384700,Miscellaneous Expenses,03-Jan-2014,2686144-SSP1314-5,600.00,SEDGEFIELD SCHOOL SPORT PARTNERSHIP CIC.,
Neighbourhood Services,Culture & Sport,Income,715699,Sales,03-Jan-2014,2686153-THEAT,"2,638.58",SOCIETY OF LONDON THEATRE.,
Neighbourhood Services,Culture & Sport,Income,715699,Sales,03-Jan-2014,2686153-TOKEN,995.46,SOCIETY OF LONDON THEATRE.,
Neighbourhood Services,Culture & Sport,Supplies and Services,338047,Services,03-Jan-2014,2686161-60101571,563.81,STUDIOCANAL LTD.,
Neighbourhood Services,Culture & Sport,Supplies and Services,338047,Services,03-Jan-2014,2686161-60101572,"1,084.27",STUDIOCANAL LTD.,
Neighbourhood Services,Culture & Sport,Premises,125009,Rents,03-Jan-2014,2686179-177,"1,875.00",TRUSTEES OF THE AUCKLAND CASTLE TRUST.,
Neighbourhood Services,Direct Services,Third Party Payments,430100,Rendered by Private Contractors,03-Jan-2014,2685948-25320267-61,"3,004.00",ADT FIRE & SECURITY PLC.,
Neighbourhood Services,Direct Services,Third Party Payments,430100,Rendered by Private Contractors,03-Jan-2014,2685982-021,"2,565.82",CEILINGS DIRECT LTD.,
Neighbourhood Services,Direct Services,Supplies and Services,338099,Services,03-Jan-2014,2686000-3383,787.80,DEERNESS KENNELS.,
Neighbourhood Services,Direct Services,Supplies and Services,304221,Equipment and Materials,03-Jan-2014,2686032-J4073,977.00,GROVE REED.,
Neighbourhood Services,Direct Services,Construction Work,908105,Construction work,03-Jan-2014,2686034-RS/CC/DE7B,"10,000.00",H & H LAND & PROPERTY LTD.,
Neighbourhood Services,Direct Services,Premises,106099,Centrally Controlled Rep and Maint,03-Jan-2014,2686040-7080379398,"27,434.43",HONEYWELL NOVAR SYSTEMS LTD.,
Neighbourhood Services,Direct Services,Premises,108099,Service Repairs and Maintenance,03-Jan-2014,2686040-7080379399,"1,600.92",HONEYWELL NOVAR SYSTEMS LTD.,
Neighbourhood Services,Direct Services,Supplies and Services,304221,Equipment and Materials,03-Jan-2014,2686057-316440,683.61,JOINERY & TIMBER CREATIONS (65) LTD.,
Neighbourhood Services,Direct Services,Supplies and Services,338099,Services,03-Jan-2014,2686068-504546,800.00,LLOYD LTD.,
Neighbourhood Services,Direct Services,Supplies and Services,304221,Equipment and Materials,03-Jan-2014,2686069-3242267,"2,420.95",LONDON GENERAL SALES LTD.,
Neighbourhood Services,Direct Services,Third Party Payments,430100,Rendered by Private Contractors,03-Jan-2014,2686081-7135/90671783,804.03,MITIE PROPERTY SERVICES (UK) LTD.,
Neighbourhood Services,Direct Services,Supplies and Services,304259,Equipment and Materials,03-Jan-2014,2686114-60635103,542.08,PHS GROUP PLC.,
Neighbourhood Services,Direct Services,Supplies and Services,304221,Equipment and Materials,03-Jan-2014,2686118-4120159151,926.37,PLUMBING TRADE SUPPLIES LTD.,
Neighbourhood Services,Direct Services,Third Party Payments,430100,Rendered by Private Contractors,03-Jan-2014,2686136-NOV08213,650.00,RW CHICKEN (SCAFFOLDING) LTD.,
Neighbourhood Services,Direct Services,Third Party Payments,430100,Rendered by Private Contractors,03-Jan-2014,2686136-NOV08313,600.00,RW CHICKEN (SCAFFOLDING) LTD.,
Neighbourhood Services,Direct Services,Supplies and Services,304221,Equipment and Materials,03-Jan-2014,2686160-R050013116,653.88,STANNAH LIFT SERVICE LTD.,
Neighbourhood Services,Direct Services,Supplies and Services,304221,Equipment and Materials,03-Jan-2014,2686175-28944,540.00,TOTAL PUMP SOLUTIONS LTD.,
Neighbourhood Services,Direct Services,Supplies and Services,304221,Equipment and Materials,03-Jan-2014,2686189-86222862,781.23,WOLSELEY UK LTD.,
Neighbourhood Services,Direct Services,Supplies and Services,304221,Equipment and Materials,03-Jan-2014,2686189-86222864,781.23,WOLSELEY UK LTD.,
Neighbourhood Services,Projects and Business services,"Vehicles, Equipment, Furniture and Fittings",912529,Purchase-equipment,03-Jan-2014,2686089-A10884,"23,950.00",NEIL VESSEY STORAGE TANKS LTD.,
Neighbourhood Services,Technical Services,Third Party Payments,410037,Rendered by Other Local Authorities,03-Jan-2014,2685944-001285,978.60,A PARRY MOBILE WELDING & FABRICATION.,
Neighbourhood Services,Technical Services,Employees,080025,Agency Staff,03-Jan-2014,2685949-28176846,"6,758.76",AECOM LTD.,
Neighbourhood Services,Technical Services,Stock,926900,Stock in hand-Inventory system,03-Jan-2014,2685957-920826019,"1,031.44",ARCO LTD.,
Neighbourhood Services,Technical Services,Stock,926900,Stock in hand-Inventory system,03-Jan-2014,2685961-SIN208459,"2,251.53",ATF SUPPLIES LTD.,
Neighbourhood Services,Technical Services,Supplies and Services,338027,Services,03-Jan-2014,2685962-13037812,930.00,ATKINS GLOBAL.,
Neighbourhood Services,Technical Services,Supplies and Services,304221,Equipment and Materials,03-Jan-2014,2685965-2157,"3,850.00",AVOIN MAA SURVEYS LTD.,
Neighbourhood Services,Technical Services,Stock,926900,Stock in hand-Inventory system,03-Jan-2014,2685966-INV083604,"1,400.00",AZTEC CHEMICALS LTD.,
Neighbourhood Services,Technical Services,Stock,926900,Stock in hand-Inventory system,03-Jan-2014,2685969-148039,698.58,BDPLASTICS LTD.,
Neighbourhood Services,Technical Services,Stock,926900,Stock in hand-Inventory system,03-Jan-2014,2686015-059-132705,"60,179.66",EDMUNDSON ELECTRICAL LTD.,
Neighbourhood Services,Technical Services,Stock,926900,Stock in hand-Inventory system,03-Jan-2014,2686015-059-133379,"2,288.20",EDMUNDSON ELECTRICAL LTD.,
Neighbourhood Services,Technical Services,Stock,926900,Stock in hand-Inventory system,03-Jan-2014,2686015-059-133830,"1,444.28",EDMUNDSON ELECTRICAL LTD.,
Neighbourhood Services,Technical Services,Supplies and Services,304221,Equipment and Materials,03-Jan-2014,2686041-427355,848.00,INSTARMAC GROUP PLC.,
Neighbourhood Services,Technical Services,Supplies and Services,304221,Equipment and Materials,03-Jan-2014,2686047-SI057645,523.75,J PARKER DUTCH BULBS WS LTD.,
Neighbourhood Services,Technical Services,Stock,926900,Stock in hand-Inventory system,03-Jan-2014,2686053-NI023631,"4,781.70",JOHN MACLEAN & SONS ELECTRICAL (DINGWALL) LTD.,
Neighbourhood Services,Technical Services,Supplies and Services,304358,Equipment and Materials,03-Jan-2014,2686055-0000077995,"1,136.25",JOHN WADE (HAULAGE) LTD.,
Neighbourhood Services,Technical Services,Stock,926900,Stock in hand-Inventory system,03-Jan-2014,2686059-STI392893,847.67,JT DOVE LTD.,
Neighbourhood Services,Technical Services,Stock,926900,Stock in hand-Inventory system,03-Jan-2014,2686059-STI393160,520.83,JT DOVE LTD.,
Neighbourhood Services,Technical Services,Stock,926900,Stock in hand-Inventory system,03-Jan-2014,2686059-STI393296,676.70,JT DOVE LTD.,
Neighbourhood Services,Technical Services,Stock,926900,Stock in hand-Inventory system,03-Jan-2014,2686059-STI393396,884.40,JT DOVE LTD.,
Neighbourhood Services,Technical Services,Third Party Payments,430100,Rendered by Private Contractors,03-Jan-2014,2686061-818,"1,500.00",KEVIN SNOWDON GROUNDWORKS LTD.,
Neighbourhood Services,Technical Services,Third Party Payments,430100,Rendered by Private Contractors,03-Jan-2014,2686061-821,"4,500.00",KEVIN SNOWDON GROUNDWORKS LTD.,
Neighbourhood Services,Technical Services,Supplies and Services,304337,Equipment and Materials,03-Jan-2014,2686101-DI20177697,573.54,NORTHERN POWERGRID (NORTHEAST) LTD.,
Neighbourhood Services,Technical Services,Third Party Payments,430100,Rendered by Private Contractors,03-Jan-2014,2686106-16073,"2,550.00",OLIVERS TREE SERVICES LTD.,
Neighbourhood Services,Technical Services,Supplies and Services,304221,Equipment and Materials,03-Jan-2014,2686149-25216265904,887.76,SIG FIXINGS.,
Neighbourhood Services,Technical Services,Supplies and Services,304221,Equipment and Materials,03-Jan-2014,2686177-614865,"1,454.80",TRAFFIC MANAGEMENT PRODUCTS LTD (TMP).,
Neighbourhood Services,Technical Services,Stock,926900,Stock in hand-Inventory system,03-Jan-2014,2686189-84639251,"2,640.37",WOLSELEY UK LTD.,
RED HRA,HRA Capital,Construction Work,908105,Construction work,03-Jan-2014,2685992-185824,"2,443.39",COAST & COUNTRY HOUSING LTD.,
RED HRA,HRA Capital,Construction Work,908105,Construction work,03-Jan-2014,2686062-13060005,"100,105.52",KIER SERVICES LTD.,
RED HRA,HRA Capital,Construction Work,908105,Construction work,03-Jan-2014,2686173-SIP-125826,"1,070.00",THYSSENKRUPP ENCASA LTD.,
Regeneration & Economic Development,Economic Development and Housing,Construction Work,908113,Capital - Landscaping,03-Jan-2014,2685963-001771,600.00,ATKINSONS JOINERS LTD.,
Regeneration & Economic Development,Economic Development and Housing,Supplies and Services,384437,Miscellaneous Expenses,03-Jan-2014,2685972-LMS/36055,562.00,BISHOP BARRINGTON SCHOOL FUND.,
Regeneration & Economic Development,Economic Development and Housing,Fees,901001,Internal fees,03-Jan-2014,2686025-SITRH/0005927,602.16,FOUR HOUSING GROUP.,
Regeneration & Economic Development,Economic Development and Housing,Premises,106099,Centrally Controlled Rep and Maint,03-Jan-2014,2686040-7080379406,"1,873.95",HONEYWELL NOVAR SYSTEMS LTD.,
Regeneration & Economic Development,Economic Development and Housing,Supplies and Services,384199,Miscellaneous Expenses,03-Jan-2014,2686090-7885,"1,044.00",NELSONS OF DURHAM.,
Regeneration & Economic Development,Economic Development and Housing,Supplies and Services,304259,Equipment and Materials,03-Jan-2014,2686094,845.00,NJ MEDIA ARTS.,
Regeneration & Economic Development,Economic Development and Housing,Premises,145023,Cleaning and Domestic Supplies,03-Jan-2014,2686114-60635769,"1,755.12",PHS GROUP PLC.,
Regeneration & Economic Development,Economic Development and Housing,Supplies and Services,384199,Miscellaneous Expenses,03-Jan-2014,2686127-3848,550.00,REVOLUTION MARKETING LTD.,
Regeneration & Economic Development,Economic Development and Housing,Supplies and Services,340001,Postages,03-Jan-2014,2686132-1801529430,775.00,ROYAL MAIL GROUP PLC.,
Regeneration & Economic Development,"Spatial Policy, Planning, Assets & Environment",Supplies and Services,336005,Advertising,03-Jan-2014,2686092-4389657,976.90,NEWSQUEST (YORKSHIRE & NORTH EAST) LTD.,
Regeneration & Economic Development,"Spatial Policy, Planning, Assets & Environment",Supplies and Services,336005,Advertising,03-Jan-2014,2686092-4501146,"1,302.54",NEWSQUEST (YORKSHIRE & NORTH EAST) LTD.,
Regeneration & Economic Development,"Spatial Policy, Planning, Assets & Environment",Supplies and Services,336005,Advertising,03-Jan-2014,2686092-4527530,"1,687.75",NEWSQUEST (YORKSHIRE & NORTH EAST) LTD.,
Regeneration & Economic Development,"Spatial Policy, Planning, Assets & Environment",Supplies and Services,336005,Advertising,03-Jan-2014,2686092-4538762,868.36,NEWSQUEST (YORKSHIRE & NORTH EAST) LTD.,
Regeneration & Economic Development,"Spatial Policy, Planning, Assets & Environment",Supplies and Services,384700,Miscellaneous Expenses,03-Jan-2014,2686103-SIN001224,"11,950.00",NORTHUMBERLAND NATIONAL PARK AUTHORITY.,
Regeneration & Economic Development,Transport and Contracted Services,Other Expenses,914001,Other capital expenses,03-Jan-2014,2685949-28177879,"5,261.68",AECOM LTD.,
Regeneration & Economic Development,Transport and Contracted Services,Third Party Payments,430100,Rendered by Private Contractors,03-Jan-2014,2686034-1A,"4,000.00",H & H LAND & PROPERTY LTD.,
Regeneration & Economic Development,Transport and Contracted Services,Supplies and Services,384540,Miscellaneous Expenses,03-Jan-2014,2686116-89698,"2,754.50",PINDAR TRAVEL INFORMATION SYSTEMS LTD T/A PINDAR CREATIVE.,
Regeneration & Economic Development,Transport and Contracted Services,Supplies and Services,384540,Miscellaneous Expenses,03-Jan-2014,2686116-89703,"2,743.30",PINDAR TRAVEL INFORMATION SYSTEMS LTD T/A PINDAR CREATIVE.,
Regeneration & Economic Development,Transport and Contracted Services,Third Party Payments,440999,Other Third Party Payments,03-Jan-2014,2686124-3762,"1,389.75",QW SECURITY LTD.,
Children and Adult Services,Central Charges,Debtors,930024,Debtor-free nursing care,06-Jan-2014,2686633-2140669,"4,172.02",ALLIANCE CARE.,
Children and Adult Services,Central Charges,Debtors,930024,Debtor-free nursing care,06-Jan-2014,2686914-2137597,768.53,DIPTON CARE HOME LTD.,
Children and Adult Services,Central Charges,Debtors,930024,Debtor-free nursing care,06-Jan-2014,2687016-2137950,846.95,FOUR SEASONS HEALTH CARE..,
Children and Adult Services,Central Charges,Debtors,930024,Debtor-free nursing care,06-Jan-2014,2687033-2137636,"4,172.02",GAINFORD CARE HOMES LTD.,
Children and Adult Services,Central Charges,Debtors,930024,Debtor-free nursing care,06-Jan-2014,2687063-2140793,752.84,GUARDIAN CARE HOMES (WEST) LTD.,
Children and Adult Services,Central Charges,Debtors,930024,Debtor-free nursing care,06-Jan-2014,2687091-2139641,"1,066.53",HOWLISH HALL NURSING HOME.,
Children and Adult Services,Central Charges,Debtors,930024,Debtor-free nursing care,06-Jan-2014,2687256-2138772,604.40,KIMBLESWORTH NURSING HOME.,
Children and Adult Services,Central Charges,Debtors,930024,Debtor-free nursing care,06-Jan-2014,2687689-2138520,604.40,RAYSON HOMES LTD.,
Children and Adult Services,Central Charges,Debtors,930024,Debtor-free nursing care,06-Jan-2014,2687861-2137707,604.40,TAMARIS HEALTHCARE LTD.,
Children and Adult Services,Central Charges,Debtors,930024,Debtor-free nursing care,06-Jan-2014,2687867-2137905,604.40,TAMARIS HEALTHCARE LTD.,
Children and Adult Services,Central Charges,Debtors,930024,Debtor-free nursing care,06-Jan-2014,2687949-2138222,517.58,VILLAGE NURSING HOME.,
Children and Adult Services,Childrens care,Transfer Payments,515201,Social Services Clients,06-Jan-2014,2686198-1390642H,510.00,REDACTED - PAYMENT TO INDIVIDUAL,
Children and Adult Services,Childrens care,Transfer Payments,515201,Social Services Clients,06-Jan-2014,2686200-1391065H,"1,232.00",REDACTED - PAYMENT TO INDIVIDUAL,
Children and Adult Services,Childrens care,Transfer Payments,515201,Social Services Clients,06-Jan-2014,2686215-1391200H,"1,110.00",REDACTED - PAYMENT TO INDIVIDUAL,
Children and Adult Services,Childrens care,Transfer Payments,515201,Social Services Clients,06-Jan-2014,2686216-1390280H,"1,485.00",REDACTED - PAYMENT TO INDIVIDUAL,
Children and Adult Services,Childrens care,Transfer Payments,515201,Social Services Clients,06-Jan-2014,2686221-1391820H,"2,048.00",REDACTED - PAYMENT TO INDIVIDUAL,
Children and Adult Services,Childrens care,Transfer Payments,515201,Social Services Clients,06-Jan-2014,2686225-1390447H,978.00,REDACTED - PAYMENT TO INDIVIDUAL,
Children and Adult Services,Childrens care,Transfer Payments,515201,Social Services Clients,06-Jan-2014,2686241-1392116H,630.00,REDACTED - PAYMENT TO INDIVIDUAL,
Children and Adult Services,Childrens care,Transfer Payments,515201,Social Services Clients,06-Jan-2014,2686248-1392666H,900.00,REDACTED - PAYMENT TO INDIVIDUAL,
Children and Adult Services,Childrens care,Transfer Payments,515201,Social Services Clients,06-Jan-2014,2686285-1391643H,572.00,REDACTED - PAYMENT TO INDIVIDUAL,
Children and Adult Services,Childrens care,Transfer Payments,515201,Social Services Clients,06-Jan-2014,2686287-1391084H,"1,204.00",REDACTED - PAYMENT TO INDIVIDUAL,
Children and Adult Services,Childrens care,Transfer Payments,515201,Social Services Clients,06-Jan-2014,2686297-1391111H,"1,328.00",REDACTED - PAYMENT TO INDIVIDUAL,
Children and Adult Services,Childrens care,Transfer Payments,515201,Social Services Clients,06-Jan-2014,2686371-1390487H,720.00,REDACTED - PAYMENT TO INDIVIDUAL,
Children and Adult Services,Childrens care,Transfer Payments,515201,Social Services Clients,06-Jan-2014,2686425-1390537H,"1,260.00",REDACTED - PAYMENT TO INDIVIDUAL,
Children and Adult Services,Childrens care,Transfer Payments,515201,Social Services Clients,06-Jan-2014,2686441-1391708H,664.00,REDACTED - PAYMENT TO INDIVIDUAL,
Children and Adult Services,Childrens care,Transfer Payments,515201,Social Services Clients,06-Jan-2014,2686470-1390384H,960.00,REDACTED - PAYMENT TO INDIVIDUAL,
Children and Adult Services,Childrens care,Transfer Payments,515201,Social Services Clients,06-Jan-2014,2686523-1390475H,540.00,REDACTED - PAYMENT TO INDIVIDUAL,
Children and Adult Services,Childrens care,Transfer Payments,515201,Social Services Clients,06-Jan-2014,2686552-1390540H,960.00,REDACTED - PAYMENT TO INDIVIDUAL,
Children and Adult Services,Childrens care,Transfer Payments,515201,Social Services Clients,06-Jan-2014,2686587-1392641H,540.00,REDACTED - PAYMENT TO INDIVIDUAL,
Children and Adult Services,Childrens care,Transfer Payments,515201,Social Services Clients,06-Jan-2014,2686627-1389643H,510.00,REDACTED - PAYMENT TO INDIVIDUAL,
Children and Adult Services,Childrens care,Transfer Payments,515201,Social Services Clients,06-Jan-2014,2686627-1389644H,996.00,REDACTED - PAYMENT TO INDIVIDUAL,
Children and Adult Services,Childrens care,Transfer Payments,515201,Social Services Clients,06-Jan-2014,2686630-1390026H,"1,024.00",REDACTED - PAYMENT TO INDIVIDUAL,
Children and Adult Services,Childrens care,Transfer Payments,515201,Social Services Clients,06-Jan-2014,2686638-1392578H,644.00,REDACTED - PAYMENT TO INDIVIDUAL,
Children and Adult Services,Childrens care,Transfer Payments,515201,Social Services Clients,06-Jan-2014,2686694-1389616H,510.00,REDACTED - PAYMENT TO INDIVIDUAL,
Children and Adult Services,Childrens care,Transfer Payments,515201,Social Services Clients,06-Jan-2014,2686701-1391159H,916.00,REDACTED - PAYMENT TO INDIVIDUAL,
Children and Adult Services,Childrens care,Transfer Payments,515201,Social Services Clients,06-Jan-2014,2686762-1391764H,"1,200.00",REDACTED - PAYMENT TO INDIVIDUAL,
Children and Adult Services,Childrens care,Transfer Payments,515201,Social Services Clients,06-Jan-2014,2686764-1390718H,"1,920.00",REDACTED - PAYMENT TO INDIVIDUAL,
Children and Adult Services,Childrens care,Third Party Payments,440062,Other Third Party Payments,06-Jan-2014,2686770-1389528H,"1,020.28",CAREWATCH (DURHAM & EASINGTON) FASTFLOW ACC.,
Children and Adult Services,Childrens care,Third Party Payments,440062,Other Third Party Payments,06-Jan-2014,2686770-1390668H,621.04,CAREWATCH (DURHAM & EASINGTON) FASTFLOW ACC.,
Children and Adult Services,Childrens care,Third Party Payments,440062,Other Third Party Payments,06-Jan-2014,2686784-1393370H,"3,815.84",CASTLE CARE TEESDALE LTD.,
Children and Adult Services,Childrens care,Third Party Payments,440062,Other Third Party Payments,06-Jan-2014,2686784-1393375H,566.40,CASTLE CARE TEESDALE LTD.,
Children and Adult Services,Childrens care,Transfer Payments,515201,Social Services Clients,06-Jan-2014,2686795-1391289H,"5,340.00",REDACTED - PAYMENT TO INDIVIDUAL,
Children and Adult Services,Childrens care,Transfer Payments,515201,Social Services Clients,06-Jan-2014,2686805-1392362H,570.00,REDACTED - PAYMENT TO INDIVIDUAL,
Children and Adult Services,Childrens care,Transport,230005,Contract Hire,06-Jan-2014,2686833-0001146,950.00,COLORS TAXIS LTD.,
Children and Adult Services,Childrens care,Third Party Payments,440062,Other Third Party Payments,06-Jan-2014,2686834-1389646H,"1,086.84",COMFORT CALL LTD.,
Children and Adult Services,Childrens care,Third Party Payments,440062,Other Third Party Payments,06-Jan-2014,2686834-1390011H,798.48,COMFORT CALL LTD.,
Children and Adult Services,Childrens care,Third Party Payments,440062,Other Third Party Payments,06-Jan-2014,2686834-1390145H,"1,888.07",COMFORT CALL LTD.,
Children and Adult Services,Childrens care,Transport,230005,Contract Hire,06-Jan-2014,2686852-4452,550.80,CROFT BUSINESS SERVICES (UK) LTD T/A CROFT TAXIS.,
Children and Adult Services,Childrens care,Third Party Payments,440062,Other Third Party Payments,06-Jan-2014,2686857-1391549H,"1,242.08",DALE CARE LTD.,
Children and Adult Services,Childrens care,Third Party Payments,440062,Other Third Party Payments,06-Jan-2014,2686857-1392820H,"1,863.12",DALE CARE LTD.,
Children and Adult Services,Childrens care,Transfer Payments,515201,Social Services Clients,06-Jan-2014,2686865-1392640H,540.00,REDACTED - PAYMENT TO INDIVIDUAL,
Children and Adult Services,Childrens care,Transfer Payments,515202,Social Services Clients,06-Jan-2014,2686867-1390827H,"1,144.00",REDACTED - PAYMENT TO INDIVIDUAL,
Children and Adult Services,Childrens care,Transfer Payments,515201,Social Services Clients,06-Jan-2014,2686878-1390493H,784.00,REDACTED - PAYMENT TO INDIVIDUAL,
Children and Adult Services,Childrens care,Transfer Payments,515201,Social Services Clients,06-Jan-2014,2686982-1390174H,"1,144.00",REDACTED - PAYMENT TO INDIVIDUAL,
Children and Adult Services,Childrens care,Third Party Payments,425040,Rendered by Voluntary Organisations,06-Jan-2014,2687012-FC013901,730.00,FOSTER CARES LTD.,
Children and Adult Services,Childrens care,Third Party Payments,425040,Rendered by Voluntary Organisations,06-Jan-2014,2687012-FC013906,700.00,FOSTER CARES LTD.,
Children and Adult Services,Childrens care,Third Party Payments,425040,Rendered by Voluntary Organisations,06-Jan-2014,2687012-FC013913,730.00,FOSTER CARES LTD.,
Children and Adult Services,Childrens care,Third Party Payments,425040,Rendered by Voluntary Organisations,06-Jan-2014,2687012-FC013918,730.00,FOSTER CARES LTD.,
Children and Adult Services,Childrens care,Third Party Payments,425040,Rendered by Voluntary Organisations,06-Jan-2014,2687012-FC013921,730.00,FOSTER CARES LTD.,
Children and Adult Services,Childrens care,Third Party Payments,425040,Rendered by Voluntary Organisations,06-Jan-2014,2687012-FC013938,820.00,FOSTER CARES LTD.,
Children and Adult Services,Childrens care,Third Party Payments,425040,Rendered by Voluntary Organisations,06-Jan-2014,2687012-FC013943,730.00,FOSTER CARES LTD.,
Children and Adult Services,Childrens care,Third Party Payments,425040,Rendered by Voluntary Organisations,06-Jan-2014,2687012-FC013948,700.00,FOSTER CARES LTD.,
Children and Adult Services,Childrens care,Third Party Payments,425040,Rendered by Voluntary Organisations,06-Jan-2014,2687012-FC013955,730.00,FOSTER CARES LTD.,
Children and Adult Services,Childrens care,Third Party Payments,425040,Rendered by Voluntary Organisations,06-Jan-2014,2687012-FC013960,730.00,FOSTER CARES LTD.,
Children and Adult Services,Childrens care,Third Party Payments,425040,Rendered by Voluntary Organisations,06-Jan-2014,2687012-FC013962,730.00,FOSTER CARES LTD.,
Children and Adult Services,Childrens care,Third Party Payments,425040,Rendered by Voluntary Organisations,06-Jan-2014,2687013-109013,"4,011.97",FOSTERING SOLUTIONS LTD.,
Children and Adult Services,Childrens care,Third Party Payments,440062,Other Third Party Payments,06-Jan-2014,2687020-1392894H,"1,140.00",REDACTED - PAYMENT TO INDIVIDUAL,
Children and Adult Services,Childrens care,Third Party Payments,440062,Other Third Party Payments,06-Jan-2014,2687020-1392895H,"1,140.00",REDACTED - PAYMENT TO INDIVIDUAL,
Children and Adult Services,Childrens care,Transfer Payments,515201,Social Services Clients,06-Jan-2014,2687030-1389894H,"1,114.00",REDACTED - PAYMENT TO INDIVIDUAL,
Children and Adult Services,Childrens care,Transfer Payments,515201,Social Services Clients,06-Jan-2014,2687042-1392195H,660.00,REDACTED - PAYMENT TO INDIVIDUAL,
Children and Adult Services,Childrens care,Transfer Payments,515201,Social Services Clients,06-Jan-2014,2687116-1390988H,"1,200.00",REDACTED - PAYMENT TO INDIVIDUAL,
Children and Adult Services,Childrens care,Transfer Payments,515201,Social Services Clients,06-Jan-2014,2687120-1391102H,540.00,REDACTED - PAYMENT TO INDIVIDUAL,
Children and Adult Services,Childrens care,Transfer Payments,515201,Social Services Clients,06-Jan-2014,2687126-1391752H,600.00,REDACTED - PAYMENT TO INDIVIDUAL,
Children and Adult Services,Childrens care,Transfer Payments,515201,Social Services Clients,06-Jan-2014,2687194-1390638H,510.00,REDACTED - PAYMENT TO INDIVIDUAL,
Children and Adult Services,Childrens care,Transfer Payments,515201,Social Services Clients,06-Jan-2014,2687216-1390363H,600.00,REDACTED - PAYMENT TO INDIVIDUAL,
Children and Adult Services,Childrens care,Transfer Payments,515201,Social Services Clients,06-Jan-2014,2687230-1391785H,630.00,REDACTED - PAYMENT TO INDIVIDUAL,
Children and Adult Services,Childrens care,Transfer Payments,515201,Social Services Clients,06-Jan-2014,2687254-1390368H,555.00,REDACTED - PAYMENT TO INDIVIDUAL,
Children and Adult Services,Childrens care,Transfer Payments,515201,Social Services Clients,06-Jan-2014,2687278-1389607H,600.00,REDACTED - PAYMENT TO INDIVIDUAL,
Children and Adult Services,Childrens care,Transfer Payments,515201,Social Services Clients,06-Jan-2014,2687285-1391397H,585.00,REDACTED - PAYMENT TO INDIVIDUAL,
Children and Adult Services,Childrens care,Transfer Payments,515201,Social Services Clients,06-Jan-2014,2687315-1392070H,"1,920.00",REDACTED - PAYMENT TO INDIVIDUAL,
Children and Adult Services,Childrens care,Transfer Payments,515201,Social Services Clients,06-Jan-2014,2687405-1390709H,525.00,REDACTED - PAYMENT TO INDIVIDUAL,
Children and Adult Services,Childrens care,Transfer Payments,515201,Social Services Clients,06-Jan-2014,2687431-1391301H,962.00,REDACTED - PAYMENT TO INDIVIDUAL,
Children and Adult Services,Childrens care,Transfer Payments,515201,Social Services Clients,06-Jan-2014,2687500-1390602H,"1,038.00",REDACTED - PAYMENT TO INDIVIDUAL,
Children and Adult Services,Childrens care,Transfer Payments,515202,Social Services Clients,06-Jan-2014,2687531-1390229H,918.00,REDACTED - PAYMENT TO INDIVIDUAL,
Children and Adult Services,Childrens care,Transfer Payments,515201,Social Services Clients,06-Jan-2014,2687533-1389820H,"1,338.00",REDACTED - PAYMENT TO INDIVIDUAL,
Children and Adult Services,Childrens care,Transfer Payments,515201,Social Services Clients,06-Jan-2014,2687616-1390643H,"3,132.00",REDACTED - PAYMENT TO INDIVIDUAL,
Children and Adult Services,Childrens care,Transfer Payments,515201,Social Services Clients,06-Jan-2014,2687684-1391124H,542.00,REDACTED - PAYMENT TO INDIVIDUAL,
Children and Adult Services,Childrens care,Transfer Payments,515201,Social Services Clients,06-Jan-2014,2687737-1391079H,600.00,REDACTED - PAYMENT TO INDIVIDUAL,
Children and Adult Services,Childrens care,Transfer Payments,515201,Social Services Clients,06-Jan-2014,2687765-1390570H,632.00,REDACTED - PAYMENT TO INDIVIDUAL,
Children and Adult Services,Childrens care,Transport,230005,Contract Hire,06-Jan-2014,2687783-71277,578.00,SHOTTON PRIVATE HIRE.,
Children and Adult Services,Childrens care,Transport,230005,Contract Hire,06-Jan-2014,2687783-71284,578.00,SHOTTON PRIVATE HIRE.,
Children and Adult Services,Childrens care,Third Party Payments,440062,Other Third Party Payments,06-Jan-2014,2687789-1390316H,776.30,SOCIAL RESOURCE CENTRE LTD.,
Children and Adult Services,Childrens care,Supplies and Services,384638,Miscellaneous Expenses,06-Jan-2014,2687814-3266,"4,342.00",ST OSWALD`S HOSPICE.,
Children and Adult Services,Childrens care,Supplies and Services,364352,Grants to Voluntary Organisations,06-Jan-2014,2687840-2/RO/FLAT5,"1,033.44",STONHAM HOUSING ASSOCIATION LTD.,
Children and Adult Services,Childrens care,Third Party Payments,425040,Rendered by Voluntary Organisations,06-Jan-2014,2687855-139963,910.00,SWIIS FOSTER CARE LTD.,
Children and Adult Services,Childrens care,Third Party Payments,425040,Rendered by Voluntary Organisations,06-Jan-2014,2687855-139964,901.00,SWIIS FOSTER CARE LTD.,
Children and Adult Services,Childrens care,Third Party Payments,425040,Rendered by Voluntary Organisations,06-Jan-2014,2687855-139966,"1,075.00",SWIIS FOSTER CARE LTD.,
Children and Adult Services,Childrens care,Third Party Payments,425040,Rendered by Voluntary Organisations,06-Jan-2014,2687876-20850,"3,128.57",TEAM FOSTERING.,
Children and Adult Services,Childrens care,Third Party Payments,425040,Rendered by Voluntary Organisations,06-Jan-2014,2687876-20852,611.34,TEAM FOSTERING.,
Children and Adult Services,Childrens care,Third Party Payments,425040,Rendered by Voluntary Organisations,06-Jan-2014,2687876-20872,"3,631.43",TEAM FOSTERING.,
Children and Adult Services,Childrens care,Transport,230005,Contract Hire,06-Jan-2014,2687921-RES242,546.00,TONYS TAXIS (A BIRCH).,
Children and Adult Services,Childrens care,Transfer Payments,515201,Social Services Clients,06-Jan-2014,2687967-1390075H,692.00,REDACTED - PAYMENT TO INDIVIDUAL,
Children and Adult Services,Commissioning inc Supporting People,Third Party Payments,472113,Purchase of Care,06-Jan-2014,2686857-1386916H,991.72,DALE CARE LTD.,
Children and Adult Services,Commissioning inc Supporting People,Third Party Payments,472113,Purchase of Care,06-Jan-2014,2686857-1390504H,696.32,DALE CARE LTD.,
Children and Adult Services,Commissioning inc Supporting People,Third Party Payments,472113,Purchase of Care,06-Jan-2014,2686857-1390851H,960.08,DALE CARE LTD.,
Children and Adult Services,Education,Supplies and Services,384199,Miscellaneous Expenses,06-Jan-2014,2686607-03,765.00,AIM DANCE GROUP.,
Children and Adult Services,Education,Transport,230008,Contract Hire,06-Jan-2014,2687048-W082/014,"1,680.00",GMC TAXIS NORTH EAST.,
Children and Adult Services,Education,Third Party Payments,440062,Other Third Party Payments,06-Jan-2014,2687893-FEES,812.00,THE LAURELS CHILD CARE.,
Children and Adult Services,Head of Adults,Third Party Payments,470101,Purchase of Care,06-Jan-2014,2686194-2138976,"6,031.16",3 RED ADMIRAL COURT.,
Children and Adult Services,Head of Adults,Third Party Payments,472101,Purchase of Care,06-Jan-2014,2686195-1386737H,543.40,360 HEALTHCARE LTD.,
Children and Adult Services,Head of Adults,Third Party Payments,472101,Purchase of Care,06-Jan-2014,2686195-1387148H,517.52,360 HEALTHCARE LTD.,
Children and Adult Services,Head of Adults,Third Party Payments,472101,Purchase of Care,06-Jan-2014,2686195-1387336H,887.20,360 HEALTHCARE LTD.,
Children and Adult Services,Head of Adults,Third Party Payments,472101,Purchase of Care,06-Jan-2014,2686195-1387391H,"1,035.08",360 HEALTHCARE LTD.,
Children and Adult Services,Head of Adults,Third Party Payments,472101,Purchase of Care,06-Jan-2014,2686195-1387827H,"1,205.12",360 HEALTHCARE LTD.,
Children and Adult Services,Head of Adults,Third Party Payments,472101,Purchase of Care,06-Jan-2014,2686195-1387874H,554.52,360 HEALTHCARE LTD.,
Children and Adult Services,Head of Adults,Third Party Payments,472101,Purchase of Care,06-Jan-2014,2686195-1388301H,591.48,360 HEALTHCARE LTD.,
Children and Adult Services,Head of Adults,Third Party Payments,472101,Purchase of Care,06-Jan-2014,2686195-1390166H,769.83,360 HEALTHCARE LTD.,
Children and Adult Services,Head of Adults,Third Party Payments,472101,Purchase of Care,06-Jan-2014,2686195-1390423H,"1,449.08",360 HEALTHCARE LTD.,
Children and Adult Services,Head of Adults,Third Party Payments,472101,Purchase of Care,06-Jan-2014,2686195-1390561H,953.76,360 HEALTHCARE LTD.,
Children and Adult Services,Head of Adults,Third Party Payments,472101,Purchase of Care,06-Jan-2014,2686195-1390740H,635.84,360 HEALTHCARE LTD.,
Children and Adult Services,Head of Adults,Third Party Payments,472101,Purchase of Care,06-Jan-2014,2686195-1391510H,"1,231.00",360 HEALTHCARE LTD.,
Children and Adult Services,Head of Adults,Third Party Payments,472101,Purchase of Care,06-Jan-2014,2686195-1391590H,593.32,360 HEALTHCARE LTD.,
Children and Adult Services,Head of Adults,Third Party Payments,472101,Purchase of Care,06-Jan-2014,2686195-1391991H,621.04,360 HEALTHCARE LTD.,
Children and Adult Services,Head of Adults,Third Party Payments,472101,Purchase of Care,06-Jan-2014,2686195-1392553H,658.00,360 HEALTHCARE LTD.,
Children and Adult Services,Head of Adults,Third Party Payments,472101,Purchase of Care,06-Jan-2014,2686195-1392557H,550.80,360 HEALTHCARE LTD.,
Children and Adult Services,Head of Adults,Third Party Payments,472101,Purchase of Care,06-Jan-2014,2686195-1392642H,931.56,360 HEALTHCARE LTD.,
Children and Adult Services,Head of Adults,Third Party Payments,472101,Purchase of Care,06-Jan-2014,2686195-1392841H,931.56,360 HEALTHCARE LTD.,
Children and Adult Services,Head of Adults,Third Party Payments,472101,Purchase of Care,06-Jan-2014,2686195-1392903H,632.15,360 HEALTHCARE LTD.,
Children and Adult Services,Head of Adults,Third Party Payments,472101,Purchase of Care,06-Jan-2014,2686195-1392931H,"1,231.00",360 HEALTHCARE LTD.,
Children and Adult Services,Head of Adults,Third Party Payments,472101,Purchase of Care,06-Jan-2014,2686195-1393007H,621.04,360 HEALTHCARE LTD.,
Children and Adult Services,Head of Adults,Third Party Payments,472101,Purchase of Care,06-Jan-2014,2686195-1393368H,556.34,360 HEALTHCARE LTD.,
Children and Adult Services,Head of Adults,Third Party Payments,470101,Purchase of Care,06-Jan-2014,2686196-2138942,"6,397.60",368 THE RIDGE.,
Children and Adult Services,Head of Adults,Third Party Payments,470101,Purchase of Care,06-Jan-2014,2686197-2137258,"1,792.92",A CHARLES THOMAS (CARE) LTD.,
Children and Adult Services,Head of Adults,Third Party Payments,470101,Purchase of Care,06-Jan-2014,2686197-2137259,"1,792.92",A CHARLES THOMAS (CARE) LTD.,
Children and Adult Services,Head of Adults,Third Party Payments,470101,Purchase of Care,06-Jan-2014,2686197-2137260,"1,792.92",A CHARLES THOMAS (CARE) LTD.,
Children and Adult Services,Head of Adults,Third Party Payments,470101,Purchase of Care,06-Jan-2014,2686197-2137261,"1,792.92",A CHARLES THOMAS (CARE) LTD.,
Children and Adult Services,Head of Adults,Third Party Payments,470101,Purchase of Care,06-Jan-2014,2686197-2137262,"1,792.92",A CHARLES THOMAS (CARE) LTD.,
Children and Adult Services,Head of Adults,Third Party Payments,470101,Purchase of Care,06-Jan-2014,2686197-2137298,"1,792.92",A CHARLES THOMAS (CARE) LTD.,
Children and Adult Services,Head of Adults,Third Party Payments,470101,Purchase of Care,06-Jan-2014,2686197-2137357,"1,792.92",A CHARLES THOMAS (CARE) LTD.,
Children and Adult Services,Head of Adults,Third Party Payments,470101,Purchase of Care,06-Jan-2014,2686197-2137413,"1,664.85",A CHARLES THOMAS (CARE) LTD.,
Children and Adult Services,Head of Adults,Third Party Payments,470101,Purchase of Care,06-Jan-2014,2686197-2137415,"1,792.92",A CHARLES THOMAS (CARE) LTD.,
Children and Adult Services,Head of Adults,Third Party Payments,470101,Purchase of Care,06-Jan-2014,2686197-2137416,"1,792.92",A CHARLES THOMAS (CARE) LTD.,
Children and Adult Services,Head of Adults,Third Party Payments,470101,Purchase of Care,06-Jan-2014,2686197-2137417,"1,792.92",A CHARLES THOMAS (CARE) LTD.,
Children and Adult Services,Head of Adults,Third Party Payments,470101,Purchase of Care,06-Jan-2014,2686197-2137418,"1,792.92",A CHARLES THOMAS (CARE) LTD.,
Children and Adult Services,Head of Adults,Third Party Payments,470101,Purchase of Care,06-Jan-2014,2686197-2137419,"1,792.92",A CHARLES THOMAS (CARE) LTD.,
Children and Adult Services,Head of Adults,Third Party Payments,470101,Purchase of Care,06-Jan-2014,2686197-2137420,"1,792.92",A CHARLES THOMAS (CARE) LTD.,
Children and Adult Services,Head of Adults,Third Party Payments,474101,Purchase of Care,06-Jan-2014,2686197-2138198,"1,882.44",A CHARLES THOMAS (CARE) LTD.,
Children and Adult Services,Head of Adults,Third Party Payments,474101,Purchase of Care,06-Jan-2014,2686197-2138295,"1,882.44",A CHARLES THOMAS (CARE) LTD.,
Children and Adult Services,Head of Adults,Third Party Payments,474101,Purchase of Care,06-Jan-2014,2686197-2138301,"1,882.44",A CHARLES THOMAS (CARE) LTD.,
Children and Adult Services,Head of Adults,Third Party Payments,474101,Purchase of Care,06-Jan-2014,2686197-2138310,"1,882.44",A CHARLES THOMAS (CARE) LTD.,
Children and Adult Services,Head of Adults,Third Party Payments,474101,Purchase of Care,06-Jan-2014,2686197-2138316,"1,882.44",A CHARLES THOMAS (CARE) LTD.,
Children and Adult Services,Head of Adults,Third Party Payments,474101,Purchase of Care,06-Jan-2014,2686197-2138324,"1,411.83",A CHARLES THOMAS (CARE) LTD.,
Children and Adult Services,Head of Adults,Third Party Payments,474101,Purchase of Care,06-Jan-2014,2686197-2138363,941.22,A CHARLES THOMAS (CARE) LTD.,
Children and Adult Services,Head of Adults,Third Party Payments,474101,Purchase of Care,06-Jan-2014,2686197-2138367,"1,882.44",A CHARLES THOMAS (CARE) LTD.,
Children and Adult Services,Head of Adults,Third Party Payments,474101,Purchase of Care,06-Jan-2014,2686197-2138371,"1,882.44",A CHARLES THOMAS (CARE) LTD.,
Children and Adult Services,Head of Adults,Third Party Payments,474101,Purchase of Care,06-Jan-2014,2686197-2138373,"1,882.44",A CHARLES THOMAS (CARE) LTD.,
Children and Adult Services,Head of Adults,Third Party Payments,474101,Purchase of Care,06-Jan-2014,2686197-2138375,"1,882.44",A CHARLES THOMAS (CARE) LTD.,
Children and Adult Services,Head of Adults,Third Party Payments,474101,Purchase of Care,06-Jan-2014,2686197-2138377,"1,882.44",A CHARLES THOMAS (CARE) LTD.,
Children and Adult Services,Head of Adults,Third Party Payments,474101,Purchase of Care,06-Jan-2014,2686197-2138380,"1,882.44",A CHARLES THOMAS (CARE) LTD.,
Children and Adult Services,Head of Adults,Third Party Payments,474101,Purchase of Care,06-Jan-2014,2686197-2138382,"1,882.44",A CHARLES THOMAS (CARE) LTD.,
Children and Adult Services,Head of Adults,Third Party Payments,474101,Purchase of Care,06-Jan-2014,2686197-2138384,"1,882.44",A CHARLES THOMAS (CARE) LTD.,
Children and Adult Services,Head of Adults,Third Party Payments,474101,Purchase of Care,06-Jan-2014,2686197-2138387,"1,882.44",A CHARLES THOMAS (CARE) LTD.,
Children and Adult Services,Head of Adults,Third Party Payments,474101,Purchase of Care,06-Jan-2014,2686197-2140777,"1,210.14",A CHARLES THOMAS (CARE) LTD.,
Children and Adult Services,Head of Adults,Third Party Payments,474101,Purchase of Care,06-Jan-2014,2686201-2138660,"2,303.28",ABBEYMOOR CLINIC.,
Children and Adult Services,Head of Adults,Third Party Payments,470101,Purchase of Care,06-Jan-2014,2686202-2136496,"1,894.36",ABBEYVALE.,
Children and Adult Services,Head of Adults,Third Party Payments,470101,Purchase of Care,06-Jan-2014,2686202-2136497,"1,894.36",ABBEYVALE.,
Children and Adult Services,Head of Adults,Third Party Payments,470101,Purchase of Care,06-Jan-2014,2686202-2136499,"1,894.36",ABBEYVALE.,
Children and Adult Services,Head of Adults,Third Party Payments,470101,Purchase of Care,06-Jan-2014,2686202-2136500,"1,894.36",ABBEYVALE.,
Children and Adult Services,Head of Adults,Third Party Payments,470101,Purchase of Care,06-Jan-2014,2686202-2136501,"1,894.36",ABBEYVALE.,
Children and Adult Services,Head of Adults,Third Party Payments,470101,Purchase of Care,06-Jan-2014,2686202-2136502,"1,894.36",ABBEYVALE.,
Children and Adult Services,Head of Adults,Third Party Payments,470101,Purchase of Care,06-Jan-2014,2686202-2136503,"1,894.36",ABBEYVALE.,
Children and Adult Services,Head of Adults,Third Party Payments,470101,Purchase of Care,06-Jan-2014,2686202-2136504,"1,894.36",ABBEYVALE.,
Children and Adult Services,Head of Adults,Third Party Payments,470101,Purchase of Care,06-Jan-2014,2686202-2136505,"1,894.36",ABBEYVALE.,
Children and Adult Services,Head of Adults,Third Party Payments,470101,Purchase of Care,06-Jan-2014,2686202-2136506,"1,894.36",ABBEYVALE.,
Children and Adult Services,Head of Adults,Third Party Payments,470101,Purchase of Care,06-Jan-2014,2686202-2136507,"1,894.36",ABBEYVALE.,
Children and Adult Services,Head of Adults,Third Party Payments,470101,Purchase of Care,06-Jan-2014,2686202-2136508,"1,894.36",ABBEYVALE.,
Children and Adult Services,Head of Adults,Third Party Payments,470101,Purchase of Care,06-Jan-2014,2686202-2136509,"1,954.36",ABBEYVALE.,
Children and Adult Services,Head of Adults,Third Party Payments,470101,Purchase of Care,06-Jan-2014,2686202-2136510,"1,894.36",ABBEYVALE.,
Children and Adult Services,Head of Adults,Third Party Payments,470101,Purchase of Care,06-Jan-2014,2686202-2136511,"1,894.36",ABBEYVALE.,
Children and Adult Services,Head of Adults,Third Party Payments,470101,Purchase of Care,06-Jan-2014,2686202-2136512,"1,894.36",ABBEYVALE.,
Children and Adult Services,Head of Adults,Third Party Payments,470101,Purchase of Care,06-Jan-2014,2686202-2136513,"1,894.36",ABBEYVALE.,
Children and Adult Services,Head of Adults,Third Party Payments,470101,Purchase of Care,06-Jan-2014,2686202-2136514,879.52,ABBEYVALE.,
Children and Adult Services,Head of Adults,Third Party Payments,470101,Purchase of Care,06-Jan-2014,2686202-2136515,"1,894.36",ABBEYVALE.,
Children and Adult Services,Head of Adults,Third Party Payments,470101,Purchase of Care,06-Jan-2014,2686202-2138856,"1,759.04",ABBEYVALE.,
Children and Adult Services,Head of Adults,Third Party Payments,470101,Purchase of Care,06-Jan-2014,2686202-2138857,"1,390.00",ABBEYVALE.,
Children and Adult Services,Head of Adults,Third Party Payments,470101,Purchase of Care,06-Jan-2014,2686202-2138858,"2,500.00",ABBEYVALE.,
Children and Adult Services,Head of Adults,Third Party Payments,470101,Purchase of Care,06-Jan-2014,2686202-2138859,"2,400.00",ABBEYVALE.,
Children and Adult Services,Head of Adults,Third Party Payments,470101,Purchase of Care,06-Jan-2014,2686202-2138860,"2,400.00",ABBEYVALE.,
Children and Adult Services,Head of Adults,Third Party Payments,470101,Purchase of Care,06-Jan-2014,2686202-2138861,"2,400.00",ABBEYVALE.,
Children and Adult Services,Head of Adults,Third Party Payments,470101,Purchase of Care,06-Jan-2014,2686202-2138863,"2,400.00",ABBEYVALE.,
Children and Adult Services,Head of Adults,Third Party Payments,470101,Purchase of Care,06-Jan-2014,2686202-2138864,"2,400.00",ABBEYVALE.,
Children and Adult Services,Head of Adults,Third Party Payments,471101,Purchase of Care,06-Jan-2014,2686202-2139798,"1,964.28",ABBEYVALE.,
Children and Adult Services,Head of Adults,Third Party Payments,471101,Purchase of Care,06-Jan-2014,2686202-2139799,"1,964.28",ABBEYVALE.,
Children and Adult Services,Head of Adults,Third Party Payments,471101,Purchase of Care,06-Jan-2014,2686202-2139820,"1,964.28",ABBEYVALE.,
Children and Adult Services,Head of Adults,Third Party Payments,471101,Purchase of Care,06-Jan-2014,2686202-2139821,"1,964.28",ABBEYVALE.,
Children and Adult Services,Head of Adults,Third Party Payments,471101,Purchase of Care,06-Jan-2014,2686202-2139822,"1,964.28",ABBEYVALE.,
Children and Adult Services,Head of Adults,Third Party Payments,471101,Purchase of Care,06-Jan-2014,2686202-2139823,"1,964.28",ABBEYVALE.,
Children and Adult Services,Head of Adults,Third Party Payments,471101,Purchase of Care,06-Jan-2014,2686202-2139824,"1,964.28",ABBEYVALE.,
Children and Adult Services,Head of Adults,Third Party Payments,471101,Purchase of Care,06-Jan-2014,2686202-2139825,"1,964.28",ABBEYVALE.,
Children and Adult Services,Head of Adults,Third Party Payments,471101,Purchase of Care,06-Jan-2014,2686202-2139826,"1,964.28",ABBEYVALE.,
Children and Adult Services,Head of Adults,Third Party Payments,471101,Purchase of Care,06-Jan-2014,2686202-2139827,"1,964.28",ABBEYVALE.,
Children and Adult Services,Head of Adults,Third Party Payments,471101,Purchase of Care,06-Jan-2014,2686202-2139828,"1,964.28",ABBEYVALE.,
Children and Adult Services,Head of Adults,Third Party Payments,470101,Purchase of Care,06-Jan-2014,2686202-2140437,"3,653.40",ABBEYVALE.,
Children and Adult Services,Head of Adults,Third Party Payments,470101,Purchase of Care,06-Jan-2014,2686202-2140520,"2,434.66",ABBEYVALE.,
Children and Adult Services,Head of Adults,Third Party Payments,470101,Purchase of Care,06-Jan-2014,2686203-2137168,"1,792.92",ABBOTTS COURT CARE HOME.,
Children and Adult Services,Head of Adults,Third Party Payments,470101,Purchase of Care,06-Jan-2014,2686203-2137217,"1,344.69",ABBOTTS COURT CARE HOME.,
Children and Adult Services,Head of Adults,Third Party Payments,470101,Purchase of Care,06-Jan-2014,2686203-2137218,"1,088.55",ABBOTTS COURT CARE HOME.,
Children and Adult Services,Head of Adults,Third Party Payments,470101,Purchase of Care,06-Jan-2014,2686203-2137226,"1,792.92",ABBOTTS COURT CARE HOME.,
Children and Adult Services,Head of Adults,Third Party Payments,470101,Purchase of Care,06-Jan-2014,2686203-2137227,"1,792.92",ABBOTTS COURT CARE HOME.,
Children and Adult Services,Head of Adults,Third Party Payments,470101,Purchase of Care,06-Jan-2014,2686203-2137228,"1,792.92",ABBOTTS COURT CARE HOME.,
Children and Adult Services,Head of Adults,Third Party Payments,470101,Purchase of Care,06-Jan-2014,2686203-2137247,"1,792.92",ABBOTTS COURT CARE HOME.,
Children and Adult Services,Head of Adults,Third Party Payments,470101,Purchase of Care,06-Jan-2014,2686203-2137360,"1,792.92",ABBOTTS COURT CARE HOME.,
Children and Adult Services,Head of Adults,Third Party Payments,470101,Purchase of Care,06-Jan-2014,2686203-2137361,"1,792.92",ABBOTTS COURT CARE HOME.,
Children and Adult Services,Head of Adults,Third Party Payments,470101,Purchase of Care,06-Jan-2014,2686203-2137362,"1,792.92",ABBOTTS COURT CARE HOME.,
Children and Adult Services,Head of Adults,Third Party Payments,470101,Purchase of Care,06-Jan-2014,2686203-2137363,"1,792.92",ABBOTTS COURT CARE HOME.,
Children and Adult Services,Head of Adults,Third Party Payments,470101,Purchase of Care,06-Jan-2014,2686203-2137364,"1,792.92",ABBOTTS COURT CARE HOME.,
Children and Adult Services,Head of Adults,Third Party Payments,471101,Purchase of Care,06-Jan-2014,2686203-2140274,"1,863.80",ABBOTTS COURT CARE HOME.,
Children and Adult Services,Head of Adults,Third Party Payments,471101,Purchase of Care,06-Jan-2014,2686203-2140292,"1,996.93",ABBOTTS COURT CARE HOME.,
Children and Adult Services,Head of Adults,Third Party Payments,471101,Purchase of Care,06-Jan-2014,2686203-2140294,"1,863.80",ABBOTTS COURT CARE HOME.,
Children and Adult Services,Head of Adults,Third Party Payments,471101,Purchase of Care,06-Jan-2014,2686203-2140295,"1,863.80",ABBOTTS COURT CARE HOME.,
Children and Adult Services,Head of Adults,Third Party Payments,471101,Purchase of Care,06-Jan-2014,2686203-2140296,"1,863.80",ABBOTTS COURT CARE HOME.,
Children and Adult Services,Head of Adults,Third Party Payments,471101,Purchase of Care,06-Jan-2014,2686203-2140297,"1,863.80",ABBOTTS COURT CARE HOME.,
Children and Adult Services,Head of Adults,Third Party Payments,471101,Purchase of Care,06-Jan-2014,2686203-2140298,"1,863.80",ABBOTTS COURT CARE HOME.,
Children and Adult Services,Head of Adults,Third Party Payments,471101,Purchase of Care,06-Jan-2014,2686203-2140313,"1,863.80",ABBOTTS COURT CARE HOME.,
Children and Adult Services,Head of Adults,Third Party Payments,471101,Purchase of Care,06-Jan-2014,2686203-2140352,"1,863.80",ABBOTTS COURT CARE HOME.,
Children and Adult Services,Head of Adults,Third Party Payments,471101,Purchase of Care,06-Jan-2014,2686203-2140353,"1,863.80",ABBOTTS COURT CARE HOME.,
Children and Adult Services,Head of Adults,Third Party Payments,471101,Purchase of Care,06-Jan-2014,2686203-2140354,"1,863.80",ABBOTTS COURT CARE HOME.,
Children and Adult Services,Head of Adults,Third Party Payments,471101,Purchase of Care,06-Jan-2014,2686203-2140355,"1,863.80",ABBOTTS COURT CARE HOME.,
Children and Adult Services,Head of Adults,Third Party Payments,471101,Purchase of Care,06-Jan-2014,2686203-2140356,"1,863.80",ABBOTTS COURT CARE HOME.,
Children and Adult Services,Head of Adults,Third Party Payments,471101,Purchase of Care,06-Jan-2014,2686203-2140720,"2,063.49",ABBOTTS COURT CARE HOME.,
Children and Adult Services,Head of Adults,Third Party Payments,471101,Purchase of Care,06-Jan-2014,2686203-2140724,732.20,ABBOTTS COURT CARE HOME.,
Children and Adult Services,Head of Adults,Third Party Payments,470101,Purchase of Care,06-Jan-2014,2686205-1386685H,"2,933.48",ACCEPT CARE LTD.,
Children and Adult Services,Head of Adults,Third Party Payments,478101,Purchase of Care,06-Jan-2014,2686205-1386789H,"3,318.56",ACCEPT CARE LTD.,
Children and Adult Services,Head of Adults,Third Party Payments,478101,Purchase of Care,06-Jan-2014,2686205-1386849H,"4,672.80",ACCEPT CARE LTD.,
Children and Adult Services,Head of Adults,Third Party Payments,478101,Purchase of Care,06-Jan-2014,2686205-1386989H,"2,920.52",ACCEPT CARE LTD.,
Children and Adult Services,Head of Adults,Third Party Payments,478101,Purchase of Care,06-Jan-2014,2686205-1387053H,"1,440.80",ACCEPT CARE LTD.,
Children and Adult Services,Head of Adults,Third Party Payments,478101,Purchase of Care,06-Jan-2014,2686205-1387307H,"4,594.92",ACCEPT CARE LTD.,
Children and Adult Services,Head of Adults,Third Party Payments,478101,Purchase of Care,06-Jan-2014,2686205-1387338H,880.00,ACCEPT CARE LTD.,
Children and Adult Services,Head of Adults,Third Party Payments,478101,Purchase of Care,06-Jan-2014,2686205-1387343H,"1,056.00",ACCEPT CARE LTD.,
Children and Adult Services,Head of Adults,Third Party Payments,478101,Purchase of Care,06-Jan-2014,2686205-1387422H,"1,540.00",ACCEPT CARE LTD.,
Children and Adult Services,Head of Adults,Third Party Payments,478101,Purchase of Care,06-Jan-2014,2686205-1387455H,"5,153.08",ACCEPT CARE LTD.,
Children and Adult Services,Head of Adults,Third Party Payments,478101,Purchase of Care,06-Jan-2014,2686205-1387466H,"3,634.40",ACCEPT CARE LTD.,
Children and Adult Services,Head of Adults,Third Party Payments,478101,Purchase of Care,06-Jan-2014,2686205-1387573H,616.00,ACCEPT CARE LTD.,
Children and Adult Services,Head of Adults,Third Party Payments,478101,Purchase of Care,06-Jan-2014,2686205-1387781H,"5,866.96",ACCEPT CARE LTD.,
Children and Adult Services,Head of Adults,Third Party Payments,478101,Purchase of Care,06-Jan-2014,2686205-1388009H,770.00,ACCEPT CARE LTD.,
Children and Adult Services,Head of Adults,Third Party Payments,478101,Purchase of Care,06-Jan-2014,2686205-1388015H,"7,891.84",ACCEPT CARE LTD.,
Children and Adult Services,Head of Adults,Third Party Payments,478101,Purchase of Care,06-Jan-2014,2686205-1388023H,"1,760.00",ACCEPT CARE LTD.,
Children and Adult Services,Head of Adults,Third Party Payments,478101,Purchase of Care,06-Jan-2014,2686205-1388039H,"2,673.88",ACCEPT CARE LTD.,
Children and Adult Services,Head of Adults,Third Party Payments,472101,Purchase of Care,06-Jan-2014,2686205-1388101H,"3,964.00",ACCEPT CARE LTD.,
Children and Adult Services,Head of Adults,Third Party Payments,478101,Purchase of Care,06-Jan-2014,2686205-1388118H,"4,776.64",ACCEPT CARE LTD.,
Children and Adult Services,Head of Adults,Third Party Payments,478101,Purchase of Care,06-Jan-2014,2686205-1388222H,"5,477.56",ACCEPT CARE LTD.,
Children and Adult Services,Head of Adults,Third Party Payments,478101,Purchase of Care,06-Jan-2014,2686205-1388256H,"3,582.48",ACCEPT CARE LTD.,
Children and Adult Services,Head of Adults,Third Party Payments,478101,Purchase of Care,06-Jan-2014,2686205-1388295H,"1,635.52",ACCEPT CARE LTD.,
Children and Adult Services,Head of Adults,Third Party Payments,478101,Purchase of Care,06-Jan-2014,2686205-1388313H,"3,997.84",ACCEPT CARE LTD.,
Children and Adult Services,Head of Adults,Third Party Payments,478101,Purchase of Care,06-Jan-2014,2686205-1388431H,"7,762.04",ACCEPT CARE LTD.,
Children and Adult Services,Head of Adults,Third Party Payments,478101,Purchase of Care,06-Jan-2014,2686205-1388434H,"11,889.68",ACCEPT CARE LTD.,
Children and Adult Services,Head of Adults,Third Party Payments,478101,Purchase of Care,06-Jan-2014,2686205-1388444H,"1,144.00",ACCEPT CARE LTD.,
Children and Adult Services,Head of Adults,Third Party Payments,478101,Purchase of Care,06-Jan-2014,2686205-1388543H,"4,636.00",ACCEPT CARE LTD.,
Children and Adult Services,Head of Adults,Third Party Payments,478101,Purchase of Care,06-Jan-2014,2686205-1388549H,"6,541.92",ACCEPT CARE LTD.,
Children and Adult Services,Head of Adults,Third Party Payments,478101,Purchase of Care,06-Jan-2014,2686205-1388637H,"3,830.40",ACCEPT CARE LTD.,
Children and Adult Services,Head of Adults,Third Party Payments,472101,Purchase of Care,06-Jan-2014,2686205-1389055H,672.00,ACCEPT CARE LTD.,
Children and Adult Services,Head of Adults,Third Party Payments,478101,Purchase of Care,06-Jan-2014,2686205-1389191H,"5,928.00",ACCEPT CARE LTD.,
Children and Adult Services,Head of Adults,Third Party Payments,478101,Purchase of Care,06-Jan-2014,2686205-1389437H,756.00,ACCEPT CARE LTD.,
Children and Adult Services,Head of Adults,Third Party Payments,478101,Purchase of Care,06-Jan-2014,2686205-1389440H,"1,012.00",ACCEPT CARE LTD.,
Children and Adult Services,Head of Adults,Third Party Payments,478101,Purchase of Care,06-Jan-2014,2686205-1389455H,"1,108.00",ACCEPT CARE LTD.,
Children and Adult Services,Head of Adults,Third Party Payments,478101,Purchase of Care,06-Jan-2014,2686205-1389745H,"6,905.36",ACCEPT CARE LTD.,
Children and Adult Services,Head of Adults,Third Party Payments,478101,Purchase of Care,06-Jan-2014,2686205-1389934H,"4,698.76",ACCEPT CARE LTD.,
Children and Adult Services,Head of Adults,Third Party Payments,478101,Purchase of Care,06-Jan-2014,2686205-1390006H,990.00,ACCEPT CARE LTD.,
Children and Adult Services,Head of Adults,Third Party Payments,478101,Purchase of Care,06-Jan-2014,2686205-1390033H,"4,120.00",ACCEPT CARE LTD.,
Children and Adult Services,Head of Adults,Third Party Payments,478101,Purchase of Care,06-Jan-2014,2686205-1390478H,"3,816.12",ACCEPT CARE LTD.,
Children and Adult Services,Head of Adults,Third Party Payments,478101,Purchase of Care,06-Jan-2014,2686205-1390485H,"1,947.00",ACCEPT CARE LTD.,
Children and Adult Services,Head of Adults,Third Party Payments,478101,Purchase of Care,06-Jan-2014,2686205-1391981H,"1,114.00",ACCEPT CARE LTD.,
Children and Adult Services,Head of Adults,Transfer Payments,515201,Social Services Clients,06-Jan-2014,2686208-1392052H,817.20,REDACTED - PAYMENT TO INDIVIDUAL,
Children and Adult Services,Head of Adults,Transfer Payments,515201,Social Services Clients,06-Jan-2014,2686210-1391369H,513.84,REDACTED - PAYMENT TO INDIVIDUAL,
Children and Adult Services,Head of Adults,Transfer Payments,515209,Social Services Clients,06-Jan-2014,2686211-1386935D,540.00,REDACTED - PAYMENT TO INDIVIDUAL,
Children and Adult Services,Head of Adults,Transfer Payments,515201,Social Services Clients,06-Jan-2014,2686213-1391395H,527.50,REDACTED - PAYMENT TO INDIVIDUAL,
Children and Adult Services,Head of Adults,Transfer Payments,515201,Social Services Clients,06-Jan-2014,2686220-1390375H,611.92,REDACTED - PAYMENT TO INDIVIDUAL,
Children and Adult Services,Head of Adults,Transfer Payments,515201,Social Services Clients,06-Jan-2014,2686223-1388448H,630.00,REDACTED - PAYMENT TO INDIVIDUAL,
Children and Adult Services,Head of Adults,Transfer Payments,515201,Social Services Clients,06-Jan-2014,2686227-1390512H,"1,266.00",REDACTED - PAYMENT TO INDIVIDUAL,
Children and Adult Services,Head of Adults,Transfer Payments,515201,Social Services Clients,06-Jan-2014,2686229-1388635H,817.20,REDACTED - PAYMENT TO INDIVIDUAL,
Children and Adult Services,Head of Adults,Transfer Payments,515201,Social Services Clients,06-Jan-2014,2686232-1389921H,506.40,REDACTED - PAYMENT TO INDIVIDUAL,
Children and Adult Services,Head of Adults,Transfer Payments,515201,Social Services Clients,06-Jan-2014,2686233-1387170H,672.80,REDACTED - PAYMENT TO INDIVIDUAL,
Children and Adult Services,Head of Adults,Transfer Payments,515201,Social Services Clients,06-Jan-2014,2686234-1391457H,"2,289.36",REDACTED - PAYMENT TO INDIVIDUAL,
Children and Adult Services,Head of Adults,Transfer Payments,515201,Social Services Clients,06-Jan-2014,2686236-1389864H,839.92,REDACTED - PAYMENT TO INDIVIDUAL,
Children and Adult Services,Head of Adults,Transfer Payments,515201,Social Services Clients,06-Jan-2014,2686238-1389944H,"1,223.80",REDACTED - PAYMENT TO INDIVIDUAL,
Children and Adult Services,Head of Adults,Transfer Payments,515201,Social Services Clients,06-Jan-2014,2686239-1389691H,721.32,REDACTED - PAYMENT TO INDIVIDUAL,
Children and Adult Services,Head of Adults,Transfer Payments,515201,Social Services Clients,06-Jan-2014,2686243-1387276H,754.12,REDACTED - PAYMENT TO INDIVIDUAL,
Children and Adult Services,Head of Adults,Transfer Payments,515201,Social Services Clients,06-Jan-2014,2686244-1388857H,516.96,REDACTED - PAYMENT TO INDIVIDUAL,
Children and Adult Services,Head of Adults,Transfer Payments,515201,Social Services Clients,06-Jan-2014,2686246-1387166H,998.80,REDACTED - PAYMENT TO INDIVIDUAL,
Children and Adult Services,Head of Adults,Transfer Payments,515201,Social Services Clients,06-Jan-2014,2686247-1389775H,727.96,REDACTED - PAYMENT TO INDIVIDUAL,
Children and Adult Services,Head of Adults,Transfer Payments,515201,Social Services Clients,06-Jan-2014,2686249-1387741H,"1,076.12",REDACTED - PAYMENT TO INDIVIDUAL,
Children and Adult Services,Head of Adults,Transfer Payments,515201,Social Services Clients,06-Jan-2014,2686250-1389841H,590.80,REDACTED - PAYMENT TO INDIVIDUAL,
Children and Adult Services,Head of Adults,Transfer Payments,515201,Social Services Clients,06-Jan-2014,2686251-1392065H,"2,542.40",REDACTED - PAYMENT TO INDIVIDUAL,
Children and Adult Services,Head of Adults,Transfer Payments,515201,Social Services Clients,06-Jan-2014,2686252-1388275H,"1,508.24",REDACTED - PAYMENT TO INDIVIDUAL,
Children and Adult Services,Head of Adults,Transfer Payments,515201,Social Services Clients,06-Jan-2014,2686255-1389160H,544.80,REDACTED - PAYMENT TO INDIVIDUAL,
Children and Adult Services,Head of Adults,Transfer Payments,515201,Social Services Clients,06-Jan-2014,2686256-1389669H,"1,350.40",REDACTED - PAYMENT TO INDIVIDUAL,
Children and Adult Services,Head of Adults,Transfer Payments,515201,Social Services Clients,06-Jan-2014,2686260-1390848H,604.88,REDACTED - PAYMENT TO INDIVIDUAL,
Children and Adult Services,Head of Adults,Transfer Payments,515201,Social Services Clients,06-Jan-2014,2686261-1390530H,696.32,REDACTED - PAYMENT TO INDIVIDUAL,
Children and Adult Services,Head of Adults,Transfer Payments,515201,Social Services Clients,06-Jan-2014,2686262-1392598H,675.20,REDACTED - PAYMENT TO INDIVIDUAL,
Children and Adult Services,Head of Adults,Transfer Payments,515201,Social Services Clients,06-Jan-2014,2686265-1388827H,621.04,REDACTED - PAYMENT TO INDIVIDUAL,
Children and Adult Services,Head of Adults,Transfer Payments,515201,Social Services Clients,06-Jan-2014,2686266-1387425H,"1,360.96",REDACTED - PAYMENT TO INDIVIDUAL,
Children and Adult Services,Head of Adults,Transfer Payments,515209,Social Services Clients,06-Jan-2014,2686268-1391121D,"2,520.00",REDACTED - PAYMENT TO INDIVIDUAL,
Children and Adult Services,Head of Adults,Transfer Payments,515201,Social Services Clients,06-Jan-2014,2686268-1391121H,500.00,REDACTED - PAYMENT TO INDIVIDUAL,
Children and Adult Services,Head of Adults,Transfer Payments,515201,Social Services Clients,06-Jan-2014,2686269-1389365H,"1,814.60",REDACTED - PAYMENT TO INDIVIDUAL,
Children and Adult Services,Head of Adults,Transfer Payments,515201,Social Services Clients,06-Jan-2014,2686271-1387378H,664.64,REDACTED - PAYMENT TO INDIVIDUAL,
Children and Adult Services,Head of Adults,Transfer Payments,515201,Social Services Clients,06-Jan-2014,2686272-1388203H,590.80,REDACTED - PAYMENT TO INDIVIDUAL,
Children and Adult Services,Head of Adults,Transfer Payments,515201,Social Services Clients,06-Jan-2014,2686273-1388326H,"1,287.12",REDACTED - PAYMENT TO INDIVIDUAL,
Children and Adult Services,Head of Adults,Transfer Payments,515209,Social Services Clients,06-Jan-2014,2686279-1389119D,640.00,REDACTED - PAYMENT TO INDIVIDUAL,
Children and Adult Services,Head of Adults,Transfer Payments,515201,Social Services Clients,06-Jan-2014,2686281-1389095H,908.00,REDACTED - PAYMENT TO INDIVIDUAL,
Children and Adult Services,Head of Adults,Transfer Payments,515201,Social Services Clients,06-Jan-2014,2686283-1392076H,908.00,REDACTED - PAYMENT TO INDIVIDUAL,
Children and Adult Services,Head of Adults,Transfer Payments,515201,Social Services Clients,06-Jan-2014,2686286-1388277H,621.04,REDACTED - PAYMENT TO INDIVIDUAL,
Children and Adult Services,Head of Adults,Transfer Payments,515201,Social Services Clients,06-Jan-2014,2686288-1387897H,"1,362.00",REDACTED - PAYMENT TO INDIVIDUAL,
Children and Adult Services,Head of Adults,Transfer Payments,515201,Social Services Clients,06-Jan-2014,2686292-1388729H,"1,770.60",REDACTED - PAYMENT TO INDIVIDUAL,
Children and Adult Services,Head of Adults,Transfer Payments,515201,Social Services Clients,06-Jan-2014,2686293-1387165H,"1,645.80",REDACTED - PAYMENT TO INDIVIDUAL,
Children and Adult Services,Head of Adults,Transfer Payments,515201,Social Services Clients,06-Jan-2014,2686299-1390084H,723.72,REDACTED - PAYMENT TO INDIVIDUAL,
Children and Adult Services,Head of Adults,Transfer Payments,515201,Social Services Clients,06-Jan-2014,2686301-1390458H,907.32,REDACTED - PAYMENT TO INDIVIDUAL,
Children and Adult Services,Head of Adults,Transfer Payments,515201,Social Services Clients,06-Jan-2014,2686302-1389692H,678.72,REDACTED - PAYMENT TO INDIVIDUAL,
Children and Adult Services,Head of Adults,Transfer Payments,515201,Social Services Clients,06-Jan-2014,2686305-1387917H,726.40,REDACTED - PAYMENT TO INDIVIDUAL,
Children and Adult Services,Head of Adults,Transfer Payments,515201,Social Services Clients,06-Jan-2014,2686306-1390111H,637.60,REDACTED - PAYMENT TO INDIVIDUAL,
Children and Adult Services,Head of Adults,Transfer Payments,515201,Social Services Clients,06-Jan-2014,2686307-1388094H,632.40,REDACTED - PAYMENT TO INDIVIDUAL,
Children and Adult Services,Head of Adults,Transfer Payments,515201,Social Services Clients,06-Jan-2014,2686308-1390288H,583.76,REDACTED - PAYMENT TO INDIVIDUAL,
Children and Adult Services,Head of Adults,Transfer Payments,515201,Social Services Clients,06-Jan-2014,2686309-1390846H,604.88,REDACTED - PAYMENT TO INDIVIDUAL,
Children and Adult Services,Head of Adults,Transfer Payments,515201,Social Services Clients,06-Jan-2014,2686310-1388676H,618.92,REDACTED - PAYMENT TO INDIVIDUAL,
Children and Adult Services,Head of Adults,Transfer Payments,515201,Social Services Clients,06-Jan-2014,2686315-1392068H,949.52,REDACTED - PAYMENT TO INDIVIDUAL,
Children and Adult Services,Head of Adults,Transfer Payments,515201,Social Services Clients,06-Jan-2014,2686316-1389329H,590.80,REDACTED - PAYMENT TO INDIVIDUAL,
Children and Adult Services,Head of Adults,Transfer Payments,515201,Social Services Clients,06-Jan-2014,2686318-1392293H,"1,974.04",REDACTED - PAYMENT TO INDIVIDUAL,
Children and Adult Services,Head of Adults,Transfer Payments,515201,Social Services Clients,06-Jan-2014,2686319-1390114H,681.00,REDACTED - PAYMENT TO INDIVIDUAL,
Children and Adult Services,Head of Adults,Transfer Payments,515201,Social Services Clients,06-Jan-2014,2686320-1391996H,594.00,REDACTED - PAYMENT TO INDIVIDUAL,
Children and Adult Services,Head of Adults,Transfer Payments,515201,Social Services Clients,06-Jan-2014,2686321-1392716H,"3,627.04",REDACTED - PAYMENT TO INDIVIDUAL,
Children and Adult Services,Head of Adults,Transfer Payments,515201,Social Services Clients,06-Jan-2014,2686323-1390577H,717.40,REDACTED - PAYMENT TO INDIVIDUAL,
Children and Adult Services,Head of Adults,Transfer Payments,515201,Social Services Clients,06-Jan-2014,2686325-1392033H,801.80,REDACTED - PAYMENT TO INDIVIDUAL,
Children and Adult Services,Head of Adults,Transfer Payments,515201,Social Services Clients,06-Jan-2014,2686326-1388164H,976.12,REDACTED - PAYMENT TO INDIVIDUAL,
Children and Adult Services,Head of Adults,Transfer Payments,515201,Social Services Clients,06-Jan-2014,2686328-1388040H,675.20,REDACTED - PAYMENT TO INDIVIDUAL,
Children and Adult Services,Head of Adults,Transfer Payments,515201,Social Services Clients,06-Jan-2014,2686330-1389990H,"1,747.92",REDACTED - PAYMENT TO INDIVIDUAL,
Children and Adult Services,Head of Adults,Transfer Payments,515201,Social Services Clients,06-Jan-2014,2686331-1392104H,"2,743.00",REDACTED - PAYMENT TO INDIVIDUAL,
Children and Adult Services,Head of Adults,Transfer Payments,515201,Social Services Clients,06-Jan-2014,2686333-1389097H,"1,055.00",REDACTED - PAYMENT TO INDIVIDUAL,
Children and Adult Services,Head of Adults,Transfer Payments,515201,Social Services Clients,06-Jan-2014,2686334-1390949H,527.52,REDACTED - PAYMENT TO INDIVIDUAL,
Children and Adult Services,Head of Adults,Transfer Payments,515201,Social Services Clients,06-Jan-2014,2686335-1391421H,794.52,REDACTED - PAYMENT TO INDIVIDUAL,
Children and Adult Services,Head of Adults,Transfer Payments,515201,Social Services Clients,06-Jan-2014,2686338-1388490H,833.44,REDACTED - PAYMENT TO INDIVIDUAL,
Children and Adult Services,Head of Adults,Transfer Payments,515201,Social Services Clients,06-Jan-2014,2686341-1390752H,766.64,REDACTED - PAYMENT TO INDIVIDUAL,
Children and Adult Services,Head of Adults,Transfer Payments,515201,Social Services Clients,06-Jan-2014,2686342-1388868H,550.80,REDACTED - PAYMENT TO INDIVIDUAL,
Children and Adult Services,Head of Adults,Transfer Payments,515201,Social Services Clients,06-Jan-2014,2686344-1390934H,812.36,REDACTED - PAYMENT TO INDIVIDUAL,
Children and Adult Services,Head of Adults,Transfer Payments,515201,Social Services Clients,06-Jan-2014,2686345-1391321H,"1,006.16",REDACTED - PAYMENT TO INDIVIDUAL,
Children and Adult Services,Head of Adults,Transfer Payments,515201,Social Services Clients,06-Jan-2014,2686347-1390347H,"1,120.00",REDACTED - PAYMENT TO INDIVIDUAL,
Children and Adult Services,Head of Adults,Transfer Payments,515201,Social Services Clients,06-Jan-2014,2686351-1390193H,928.40,REDACTED - PAYMENT TO INDIVIDUAL,
Children and Adult Services,Head of Adults,Transfer Payments,515201,Social Services Clients,06-Jan-2014,2686352-1390104H,597.84,REDACTED - PAYMENT TO INDIVIDUAL,
Children and Adult Services,Head of Adults,Transfer Payments,515201,Social Services Clients,06-Jan-2014,2686353-1387722H,"2,484.00",REDACTED - PAYMENT TO INDIVIDUAL,
Children and Adult Services,Head of Adults,Transfer Payments,515201,Social Services Clients,06-Jan-2014,2686354-1387906H,838.20,REDACTED - PAYMENT TO INDIVIDUAL,
Children and Adult Services,Head of Adults,Transfer Payments,515209,Social Services Clients,06-Jan-2014,2686355-1388012D,855.20,REDACTED - PAYMENT TO INDIVIDUAL,
Children and Adult Services,Head of Adults,Transfer Payments,515201,Social Services Clients,06-Jan-2014,2686357-1392204H,839.92,REDACTED - PAYMENT TO INDIVIDUAL,
Children and Adult Services,Head of Adults,Transfer Payments,515201,Social Services Clients,06-Jan-2014,2686359-1386894H,998.80,REDACTED - PAYMENT TO INDIVIDUAL,
Children and Adult Services,Head of Adults,Transfer Payments,515201,Social Services Clients,06-Jan-2014,2686364-1388482H,869.60,REDACTED - PAYMENT TO INDIVIDUAL,
Children and Adult Services,Head of Adults,Transfer Payments,515201,Social Services Clients,06-Jan-2014,2686366-1390201H,"1,944.00",REDACTED - PAYMENT TO INDIVIDUAL,
Children and Adult Services,Head of Adults,Transfer Payments,515201,Social Services Clients,06-Jan-2014,2686367-1387586H,675.20,REDACTED - PAYMENT TO INDIVIDUAL,
Children and Adult Services,Head of Adults,Transfer Payments,515201,Social Services Clients,06-Jan-2014,2686368-1386890H,516.96,REDACTED - PAYMENT TO INDIVIDUAL,
Children and Adult Services,Head of Adults,Transfer Payments,515201,Social Services Clients,06-Jan-2014,2686369-1386845H,828.56,REDACTED - PAYMENT TO INDIVIDUAL,
Children and Adult Services,Head of Adults,Transfer Payments,515201,Social Services Clients,06-Jan-2014,2686370-1388419H,624.24,REDACTED - PAYMENT TO INDIVIDUAL,
Children and Adult Services,Head of Adults,Transfer Payments,515201,Social Services Clients,06-Jan-2014,2686374-1387848H,"1,582.52",REDACTED - PAYMENT TO INDIVIDUAL,
Children and Adult Services,Head of Adults,Transfer Payments,515201,Social Services Clients,06-Jan-2014,2686375-1391850H,569.28,REDACTED - PAYMENT TO INDIVIDUAL,
Children and Adult Services,Head of Adults,Transfer Payments,515201,Social Services Clients,06-Jan-2014,2686376-1387219H,669.64,REDACTED - PAYMENT TO INDIVIDUAL,
Children and Adult Services,Head of Adults,Transfer Payments,515201,Social Services Clients,06-Jan-2014,2686377-1391746H,"1,434.80",REDACTED - PAYMENT TO INDIVIDUAL,
Children and Adult Services,Head of Adults,Transfer Payments,515201,Social Services Clients,06-Jan-2014,2686378-1392812H,745.52,REDACTED - PAYMENT TO INDIVIDUAL,
Children and Adult Services,Head of Adults,Transfer Payments,515201,Social Services Clients,06-Jan-2014,2686379-1388214H,643.44,REDACTED - PAYMENT TO INDIVIDUAL,
Children and Adult Services,Head of Adults,Transfer Payments,515201,Social Services Clients,06-Jan-2014,2686381-1388157H,681.00,REDACTED - PAYMENT TO INDIVIDUAL,
Children and Adult Services,Head of Adults,Transfer Payments,515201,Social Services Clients,06-Jan-2014,2686383-1393518H,942.65,REDACTED - PAYMENT TO INDIVIDUAL,
Children and Adult Services,Head of Adults,Transfer Payments,515201,Social Services Clients,06-Jan-2014,2686384-1389938H,"2,115.32",REDACTED - PAYMENT TO INDIVIDUAL,
Children and Adult Services,Head of Adults,Transfer Payments,515209,Social Services Clients,06-Jan-2014,2686386-1387887D,500.00,REDACTED - PAYMENT TO INDIVIDUAL,
Children and Adult Services,Head of Adults,Transfer Payments,515201,Social Services Clients,06-Jan-2014,2686386-1387887H,506.40,REDACTED - PAYMENT TO INDIVIDUAL,
Children and Adult Services,Head of Adults,Transfer Payments,515201,Social Services Clients,06-Jan-2014,2686387-1392845H,506.40,REDACTED - PAYMENT TO INDIVIDUAL,
Children and Adult Services,Head of Adults,Transfer Payments,515201,Social Services Clients,06-Jan-2014,2686388-1392613H,776.30,REDACTED - PAYMENT TO INDIVIDUAL,
Children and Adult Services,Head of Adults,Transfer Payments,515201,Social Services Clients,06-Jan-2014,2686390-1393266H,"1,242.08",REDACTED - PAYMENT TO INDIVIDUAL,
Children and Adult Services,Head of Adults,Transfer Payments,515201,Social Services Clients,06-Jan-2014,2686392-1388984H,865.04,REDACTED - PAYMENT TO INDIVIDUAL,
Children and Adult Services,Head of Adults,Transfer Payments,515201,Social Services Clients,06-Jan-2014,2686393-1389136H,"1,872.76",REDACTED - PAYMENT TO INDIVIDUAL,
Children and Adult Services,Head of Adults,Transfer Payments,515201,Social Services Clients,06-Jan-2014,2686396-1391632H,"1,657.12",REDACTED - PAYMENT TO INDIVIDUAL,
Children and Adult Services,Head of Adults,Transfer Payments,515201,Social Services Clients,06-Jan-2014,2686398-1389890H,"1,669.00",REDACTED - PAYMENT TO INDIVIDUAL,
Children and Adult Services,Head of Adults,Transfer Payments,515201,Social Services Clients,06-Jan-2014,2686400-1387059H,506.40,REDACTED - PAYMENT TO INDIVIDUAL,
Children and Adult Services,Head of Adults,Transfer Payments,515201,Social Services Clients,06-Jan-2014,2686401-1390220H,844.00,REDACTED - PAYMENT TO INDIVIDUAL,
Children and Adult Services,Head of Adults,Transfer Payments,515201,Social Services Clients,06-Jan-2014,2686406-1392480H,590.20,REDACTED - PAYMENT TO INDIVIDUAL,
Children and Adult Services,Head of Adults,Transfer Payments,515201,Social Services Clients,06-Jan-2014,2686407-1391654H,889.72,REDACTED - PAYMENT TO INDIVIDUAL,
Children and Adult Services,Head of Adults,Transfer Payments,515201,Social Services Clients,06-Jan-2014,2686409-1389099H,"1,297.64",REDACTED - PAYMENT TO INDIVIDUAL,
Children and Adult Services,Head of Adults,Transfer Payments,515201,Social Services Clients,06-Jan-2014,2686410-1389812H,"1,679.80",REDACTED - PAYMENT TO INDIVIDUAL,
Children and Adult Services,Head of Adults,Transfer Payments,515209,Social Services Clients,06-Jan-2014,2686413-1388232D,775.20,REDACTED - PAYMENT TO INDIVIDUAL,
Children and Adult Services,Head of Adults,Transfer Payments,515201,Social Services Clients,06-Jan-2014,2686415-1386907H,"2,420.04",REDACTED - PAYMENT TO INDIVIDUAL,
Children and Adult Services,Head of Adults,Transfer Payments,515201,Social Services Clients,06-Jan-2014,2686416-1386692H,817.20,REDACTED - PAYMENT TO INDIVIDUAL,
Children and Adult Services,Head of Adults,Transfer Payments,515201,Social Services Clients,06-Jan-2014,2686417-1387964H,780.72,REDACTED - PAYMENT TO INDIVIDUAL,
Children and Adult Services,Head of Adults,Transfer Payments,515201,Social Services Clients,06-Jan-2014,2686419-1391959H,"1,362.00",REDACTED - PAYMENT TO INDIVIDUAL,
Children and Adult Services,Head of Adults,Transfer Payments,515201,Social Services Clients,06-Jan-2014,2686421-1391449H,"2,451.60",REDACTED - PAYMENT TO INDIVIDUAL,
Children and Adult Services,Head of Adults,Transfer Payments,515201,Social Services Clients,06-Jan-2014,2686423-1391843H,885.32,REDACTED - PAYMENT TO INDIVIDUAL,
Children and Adult Services,Head of Adults,Transfer Payments,515201,Social Services Clients,06-Jan-2014,2686426-1392564H,506.40,REDACTED - PAYMENT TO INDIVIDUAL,
Children and Adult Services,Head of Adults,Transfer Payments,515201,Social Services Clients,06-Jan-2014,2686430-1393052H,"1,962.00",REDACTED - PAYMENT TO INDIVIDUAL,
Children and Adult Services,Head of Adults,Transfer Payments,515201,Social Services Clients,06-Jan-2014,2686432-1391273H,840.48,REDACTED - PAYMENT TO INDIVIDUAL,
Children and Adult Services,Head of Adults,Transfer Payments,515201,Social Services Clients,06-Jan-2014,2686434-1388026H,"1,223.80",REDACTED - PAYMENT TO INDIVIDUAL,
Children and Adult Services,Head of Adults,Transfer Payments,515201,Social Services Clients,06-Jan-2014,2686437-1391392H,696.32,REDACTED - PAYMENT TO INDIVIDUAL,
Children and Adult Services,Head of Adults,Transfer Payments,515201,Social Services Clients,06-Jan-2014,2686442-1389281H,624.24,REDACTED - PAYMENT TO INDIVIDUAL,
Children and Adult Services,Head of Adults,Transfer Payments,515201,Social Services Clients,06-Jan-2014,2686443-1391846H,646.96,REDACTED - PAYMENT TO INDIVIDUAL,
Children and Adult Services,Head of Adults,Transfer Payments,515201,Social Services Clients,06-Jan-2014,2686444-1390729H,"1,353.00",REDACTED - PAYMENT TO INDIVIDUAL,
Children and Adult Services,Head of Adults,Transfer Payments,515201,Social Services Clients,06-Jan-2014,2686444-1390730H,798.48,REDACTED - PAYMENT TO INDIVIDUAL,
Children and Adult Services,Head of Adults,Transfer Payments,515209,Social Services Clients,06-Jan-2014,2686445-1389962D,"1,800.00",REDACTED - PAYMENT TO INDIVIDUAL,
Children and Adult Services,Head of Adults,Transfer Payments,515201,Social Services Clients,06-Jan-2014,2686445-1389962H,"2,088.40",REDACTED - PAYMENT TO INDIVIDUAL,
Children and Adult Services,Head of Adults,Transfer Payments,515201,Social Services Clients,06-Jan-2014,2686446-1390135H,675.20,REDACTED - PAYMENT TO INDIVIDUAL,
Children and Adult Services,Head of Adults,Transfer Payments,515201,Social Services Clients,06-Jan-2014,2686447-1392475H,798.28,REDACTED - PAYMENT TO INDIVIDUAL,
Children and Adult Services,Head of Adults,Third Party Payments,470101,Purchase of Care,06-Jan-2014,2686448-1387174D,692.32,REDACTED - PAYMENT TO INDIVIDUAL,
Children and Adult Services,Head of Adults,Transfer Payments,515201,Social Services Clients,06-Jan-2014,2686451-1391237H,"1,362.00",REDACTED - PAYMENT TO INDIVIDUAL,
Children and Adult Services,Head of Adults,Transfer Payments,515201,Social Services Clients,06-Jan-2014,2686452-1389390H,817.20,REDACTED - PAYMENT TO INDIVIDUAL,
Children and Adult Services,Head of Adults,Transfer Payments,515201,Social Services Clients,06-Jan-2014,2686453-1392801H,694.96,REDACTED - PAYMENT TO INDIVIDUAL,
Children and Adult Services,Head of Adults,Transfer Payments,515201,Social Services Clients,06-Jan-2014,2686456-1389978H,601.36,REDACTED - PAYMENT TO INDIVIDUAL,
Children and Adult Services,Head of Adults,Transfer Payments,515201,Social Services Clients,06-Jan-2014,2686457-1389208H,548.60,REDACTED - PAYMENT TO INDIVIDUAL,
Children and Adult Services,Head of Adults,Transfer Payments,515201,Social Services Clients,06-Jan-2014,2686460-1390450H,510.16,REDACTED - PAYMENT TO INDIVIDUAL,
Children and Adult Services,Head of Adults,Transfer Payments,515201,Social Services Clients,06-Jan-2014,2686462-1387292H,"6,832.60",REDACTED - PAYMENT TO INDIVIDUAL,
Children and Adult Services,Head of Adults,Transfer Payments,515209,Social Services Clients,06-Jan-2014,2686463-1389652D,706.32,REDACTED - PAYMENT TO INDIVIDUAL,
Children and Adult Services,Head of Adults,Transfer Payments,515201,Social Services Clients,06-Jan-2014,2686463-1389652H,675.20,REDACTED - PAYMENT TO INDIVIDUAL,
Children and Adult Services,Head of Adults,Transfer Payments,515201,Social Services Clients,06-Jan-2014,2686465-1392128H,731.48,REDACTED - PAYMENT TO INDIVIDUAL,
Children and Adult Services,Head of Adults,Transfer Payments,515201,Social Services Clients,06-Jan-2014,2686466-1388245H,759.60,REDACTED - PAYMENT TO INDIVIDUAL,
Children and Adult Services,Head of Adults,Transfer Payments,515201,Social Services Clients,06-Jan-2014,2686468-1389945H,"1,838.72",REDACTED - PAYMENT TO INDIVIDUAL,
Children and Adult Services,Head of Adults,Transfer Payments,515201,Social Services Clients,06-Jan-2014,2686472-1386765H,908.00,REDACTED - PAYMENT TO INDIVIDUAL,
Children and Adult Services,Head of Adults,Transfer Payments,515209,Social Services Clients,06-Jan-2014,2686476-1388879D,"1,600.00",REDACTED - PAYMENT TO INDIVIDUAL,
Children and Adult Services,Head of Adults,Transfer Payments,515201,Social Services Clients,06-Jan-2014,2686478-1388357H,919.36,REDACTED - PAYMENT TO INDIVIDUAL,
Children and Adult Services,Head of Adults,Transfer Payments,515201,Social Services Clients,06-Jan-2014,2686480-1386734H,"1,739.20",REDACTED - PAYMENT TO INDIVIDUAL,
Children and Adult Services,Head of Adults,Transfer Payments,515201,Social Services Clients,06-Jan-2014,2686483-1391584H,611.92,REDACTED - PAYMENT TO INDIVIDUAL,
Children and Adult Services,Head of Adults,Transfer Payments,515201,Social Services Clients,06-Jan-2014,2686484-1390935H,675.20,REDACTED - PAYMENT TO INDIVIDUAL,
Children and Adult Services,Head of Adults,Transfer Payments,515201,Social Services Clients,06-Jan-2014,2686487-1388497H,633.00,REDACTED - PAYMENT TO INDIVIDUAL,
Children and Adult Services,Head of Adults,Transfer Payments,515201,Social Services Clients,06-Jan-2014,2686489-1391352H,839.92,REDACTED - PAYMENT TO INDIVIDUAL,
Children and Adult Services,Head of Adults,Transfer Payments,515201,Social Services Clients,06-Jan-2014,2686490-1389703H,976.12,REDACTED - PAYMENT TO INDIVIDUAL,
Children and Adult Services,Head of Adults,Transfer Payments,515209,Social Services Clients,06-Jan-2014,2686492-1388724D,"1,663.40",REDACTED - PAYMENT TO INDIVIDUAL,
Children and Adult Services,Head of Adults,Transfer Payments,515201,Social Services Clients,06-Jan-2014,2686493-1388533H,738.52,REDACTED - PAYMENT TO INDIVIDUAL,
Children and Adult Services,Head of Adults,Transfer Payments,515201,Social Services Clients,06-Jan-2014,2686497-1389844H,512.64,REDACTED - PAYMENT TO INDIVIDUAL,
Children and Adult Services,Head of Adults,Transfer Payments,515201,Social Services Clients,06-Jan-2014,2686499-1387559H,544.80,REDACTED - PAYMENT TO INDIVIDUAL,
Children and Adult Services,Head of Adults,Transfer Payments,515201,Social Services Clients,06-Jan-2014,2686501-1391766H,726.40,REDACTED - PAYMENT TO INDIVIDUAL,
Children and Adult Services,Head of Adults,Transfer Payments,515201,Social Services Clients,06-Jan-2014,2686502-1389243H,709.76,REDACTED - PAYMENT TO INDIVIDUAL,
Children and Adult Services,Head of Adults,Transfer Payments,515209,Social Services Clients,06-Jan-2014,2686503-1389275D,"1,481.60",REDACTED - PAYMENT TO INDIVIDUAL,
Children and Adult Services,Head of Adults,Transfer Payments,515201,Social Services Clients,06-Jan-2014,2686503-1389275H,681.00,REDACTED - PAYMENT TO INDIVIDUAL,
Children and Adult Services,Head of Adults,Transfer Payments,515201,Social Services Clients,06-Jan-2014,2686508-1388104H,834.54,REDACTED - PAYMENT TO INDIVIDUAL,
Children and Adult Services,Head of Adults,Transfer Payments,515201,Social Services Clients,06-Jan-2014,2686514-1391936H,727.96,REDACTED - PAYMENT TO INDIVIDUAL,
Children and Adult Services,Head of Adults,Transfer Payments,515201,Social Services Clients,06-Jan-2014,2686515-1392826H,552.12,REDACTED - PAYMENT TO INDIVIDUAL,
Children and Adult Services,Head of Adults,Transfer Payments,515201,Social Services Clients,06-Jan-2014,2686516-1391528H,998.80,REDACTED - PAYMENT TO INDIVIDUAL,
Children and Adult Services,Head of Adults,Transfer Payments,515201,Social Services Clients,06-Jan-2014,2686517-1388864H,547.00,REDACTED - PAYMENT TO INDIVIDUAL,
Children and Adult Services,Head of Adults,Transfer Payments,515201,Social Services Clients,06-Jan-2014,2686518-1389183H,"1,316.60",REDACTED - PAYMENT TO INDIVIDUAL,
Children and Adult Services,Head of Adults,Transfer Payments,515201,Social Services Clients,06-Jan-2014,2686520-1388932H,"2,380.00",REDACTED - PAYMENT TO INDIVIDUAL,
Children and Adult Services,Head of Adults,Transfer Payments,515201,Social Services Clients,06-Jan-2014,2686522-1389318H,844.00,REDACTED - PAYMENT TO INDIVIDUAL,
Children and Adult Services,Head of Adults,Transfer Payments,515201,Social Services Clients,06-Jan-2014,2686528-1391635H,527.52,REDACTED - PAYMENT TO INDIVIDUAL,
Children and Adult Services,Head of Adults,Transfer Payments,515201,Social Services Clients,06-Jan-2014,2686529-1388650H,"1,177.60",REDACTED - PAYMENT TO INDIVIDUAL,
Children and Adult Services,Head of Adults,Transfer Payments,515201,Social Services Clients,06-Jan-2014,2686531-1391576H,590.80,REDACTED - PAYMENT TO INDIVIDUAL,
Children and Adult Services,Head of Adults,Transfer Payments,515201,Social Services Clients,06-Jan-2014,2686534-1389334H,661.12,REDACTED - PAYMENT TO INDIVIDUAL,
Children and Adult Services,Head of Adults,Transfer Payments,515201,Social Services Clients,06-Jan-2014,2686535-1391436H,"1,477.00",REDACTED - PAYMENT TO INDIVIDUAL,
Children and Adult Services,Head of Adults,Transfer Payments,515201,Social Services Clients,06-Jan-2014,2686536-1393047H,"2,624.80",REDACTED - PAYMENT TO INDIVIDUAL,
Children and Adult Services,Head of Adults,Transfer Payments,515201,Social Services Clients,06-Jan-2014,2686539-1389200H,"1,266.00",REDACTED - PAYMENT TO INDIVIDUAL,
Children and Adult Services,Head of Adults,Transfer Payments,515201,Social Services Clients,06-Jan-2014,2686542-1389885H,862.60,REDACTED - PAYMENT TO INDIVIDUAL,
Children and Adult Services,Head of Adults,Transfer Payments,515201,Social Services Clients,06-Jan-2014,2686543-1388117H,907.32,REDACTED - PAYMENT TO INDIVIDUAL,
Children and Adult Services,Head of Adults,Transfer Payments,515201,Social Services Clients,06-Jan-2014,2686544-1391349H,"1,218.24",REDACTED - PAYMENT TO INDIVIDUAL,
Children and Adult Services,Head of Adults,Transfer Payments,515201,Social Services Clients,06-Jan-2014,2686545-1387747H,"1,498.20",REDACTED - PAYMENT TO INDIVIDUAL,
Children and Adult Services,Head of Adults,Transfer Payments,515201,Social Services Clients,06-Jan-2014,2686548-1387056H,726.40,REDACTED - PAYMENT TO INDIVIDUAL,
Children and Adult Services,Head of Adults,Transfer Payments,515201,Social Services Clients,06-Jan-2014,2686550-1389010H,590.80,REDACTED - PAYMENT TO INDIVIDUAL,
Children and Adult Services,Head of Adults,Transfer Payments,515201,Social Services Clients,06-Jan-2014,2686550-1392405H,862.60,REDACTED - PAYMENT TO INDIVIDUAL,
Children and Adult Services,Head of Adults,Transfer Payments,515201,Social Services Clients,06-Jan-2014,2686553-1389282H,703.72,REDACTED - PAYMENT TO INDIVIDUAL,
Children and Adult Services,Head of Adults,Transfer Payments,515201,Social Services Clients,06-Jan-2014,2686554-1390828H,"1,271.20",REDACTED - PAYMENT TO INDIVIDUAL,
Children and Adult Services,Head of Adults,Transfer Payments,515201,Social Services Clients,06-Jan-2014,2686555-1388300H,681.00,REDACTED - PAYMENT TO INDIVIDUAL,
Children and Adult Services,Head of Adults,Transfer Payments,515201,Social Services Clients,06-Jan-2014,2686557-1389372H,635.60,REDACTED - PAYMENT TO INDIVIDUAL,
Children and Adult Services,Head of Adults,Transfer Payments,515201,Social Services Clients,06-Jan-2014,2686559-1391100H,"1,297.64",REDACTED - PAYMENT TO INDIVIDUAL,
Children and Adult Services,Head of Adults,Transfer Payments,515201,Social Services Clients,06-Jan-2014,2686560-1386980H,"1,416.35",REDACTED - PAYMENT TO INDIVIDUAL,
Children and Adult Services,Head of Adults,Transfer Payments,515201,Social Services Clients,06-Jan-2014,2686561-1388260H,618.92,REDACTED - PAYMENT TO INDIVIDUAL,
Children and Adult Services,Head of Adults,Transfer Payments,515201,Social Services Clients,06-Jan-2014,2686562-1387439H,"1,452.80",REDACTED - PAYMENT TO INDIVIDUAL,
Children and Adult Services,Head of Adults,Third Party Payments,470101,Purchase of Care,06-Jan-2014,2686567-1387480D,522.56,REDACTED - PAYMENT TO INDIVIDUAL,
Children and Adult Services,Head of Adults,Transfer Payments,515201,Social Services Clients,06-Jan-2014,2686567-1387481H,643.24,REDACTED - PAYMENT TO INDIVIDUAL,
Children and Adult Services,Head of Adults,Transfer Payments,515201,Social Services Clients,06-Jan-2014,2686568-1390203H,675.20,REDACTED - PAYMENT TO INDIVIDUAL,
Children and Adult Services,Head of Adults,Transfer Payments,515201,Social Services Clients,06-Jan-2014,2686571-1387486H,580.24,REDACTED - PAYMENT TO INDIVIDUAL,
Children and Adult Services,Head of Adults,Transfer Payments,515201,Social Services Clients,06-Jan-2014,2686572-1386971H,"2,360.80",REDACTED - PAYMENT TO INDIVIDUAL,
Children and Adult Services,Head of Adults,Transfer Payments,515209,Social Services Clients,06-Jan-2014,2686574-1387665D,533.20,REDACTED - PAYMENT TO INDIVIDUAL,
Children and Adult Services,Head of Adults,Transfer Payments,515201,Social Services Clients,06-Jan-2014,2686575-1392518H,908.00,REDACTED - PAYMENT TO INDIVIDUAL,
Children and Adult Services,Head of Adults,Transfer Payments,515201,Social Services Clients,06-Jan-2014,2686576-1392921H,801.80,REDACTED - PAYMENT TO INDIVIDUAL,
Children and Adult Services,Head of Adults,Transfer Payments,515201,Social Services Clients,06-Jan-2014,2686579-1392167H,771.80,REDACTED - PAYMENT TO INDIVIDUAL,
Children and Adult Services,Head of Adults,Transfer Payments,515209,Social Services Clients,06-Jan-2014,2686582-1389888D,907.44,REDACTED - PAYMENT TO INDIVIDUAL,
Children and Adult Services,Head of Adults,Transfer Payments,515201,Social Services Clients,06-Jan-2014,2686582-1389888H,709.76,REDACTED - PAYMENT TO INDIVIDUAL,
Children and Adult Services,Head of Adults,Transfer Payments,515201,Social Services Clients,06-Jan-2014,2686584-1387560H,600.00,REDACTED - PAYMENT TO INDIVIDUAL,
Children and Adult Services,Head of Adults,Transfer Payments,515201,Social Services Clients,06-Jan-2014,2686588-1392124H,601.36,REDACTED - PAYMENT TO INDIVIDUAL,
Children and Adult Services,Head of Adults,Transfer Payments,515201,Social Services Clients,06-Jan-2014,2686590-1390790H,635.60,REDACTED - PAYMENT TO INDIVIDUAL,
Children and Adult Services,Head of Adults,Transfer Payments,515201,Social Services Clients,06-Jan-2014,2686591-1389203H,"5,100.64",REDACTED - PAYMENT TO INDIVIDUAL,
Children and Adult Services,Head of Adults,Third Party Payments,470101,Purchase of Care,06-Jan-2014,2686593-2136321,"1,864.56",ACOMB COURT.,
Children and Adult Services,Head of Adults,Third Party Payments,473101,Purchase of Care,06-Jan-2014,2686594-1392514D,537.46,ACORN GRANGE NURSING HOME.,
Children and Adult Services,Head of Adults,Third Party Payments,473101,Purchase of Care,06-Jan-2014,2686594-1392711D,531.96,ACORN GRANGE NURSING HOME.,
Children and Adult Services,Head of Adults,Third Party Payments,473101,Purchase of Care,06-Jan-2014,2686594-1393446D,501.04,ACORN GRANGE NURSING HOME.,
Children and Adult Services,Head of Adults,Third Party Payments,470101,Purchase of Care,06-Jan-2014,2686594-2137127,"1,792.92",ACORN GRANGE NURSING HOME.,
Children and Adult Services,Head of Adults,Third Party Payments,470101,Purchase of Care,06-Jan-2014,2686594-2137128,"1,792.92",ACORN GRANGE NURSING HOME.,
Children and Adult Services,Head of Adults,Third Party Payments,470101,Purchase of Care,06-Jan-2014,2686594-2137129,"1,792.92",ACORN GRANGE NURSING HOME.,
Children and Adult Services,Head of Adults,Third Party Payments,470101,Purchase of Care,06-Jan-2014,2686594-2137130,"1,792.92",ACORN GRANGE NURSING HOME.,
Children and Adult Services,Head of Adults,Third Party Payments,470101,Purchase of Care,06-Jan-2014,2686594-2137131,"1,792.92",ACORN GRANGE NURSING HOME.,
Children and Adult Services,Head of Adults,Third Party Payments,470101,Purchase of Care,06-Jan-2014,2686594-2137132,"1,792.92",ACORN GRANGE NURSING HOME.,
Children and Adult Services,Head of Adults,Third Party Payments,470101,Purchase of Care,06-Jan-2014,2686594-2137134,"1,280.65",ACORN GRANGE NURSING HOME.,
Children and Adult Services,Head of Adults,Third Party Payments,470101,Purchase of Care,06-Jan-2014,2686594-2137135,"1,792.92",ACORN GRANGE NURSING HOME.,
Children and Adult Services,Head of Adults,Third Party Payments,470101,Purchase of Care,06-Jan-2014,2686594-2137136,512.26,ACORN GRANGE NURSING HOME.,
Children and Adult Services,Head of Adults,Third Party Payments,470101,Purchase of Care,06-Jan-2014,2686594-2137137,"1,792.92",ACORN GRANGE NURSING HOME.,
Children and Adult Services,Head of Adults,Third Party Payments,470101,Purchase of Care,06-Jan-2014,2686594-2137138,"1,792.92",ACORN GRANGE NURSING HOME.,
Children and Adult Services,Head of Adults,Third Party Payments,470101,Purchase of Care,06-Jan-2014,2686594-2137139,"1,792.92",ACORN GRANGE NURSING HOME.,
Children and Adult Services,Head of Adults,Third Party Payments,470101,Purchase of Care,06-Jan-2014,2686594-2137140,"1,792.92",ACORN GRANGE NURSING HOME.,
Children and Adult Services,Head of Adults,Third Party Payments,470101,Purchase of Care,06-Jan-2014,2686594-2137141,"1,792.92",ACORN GRANGE NURSING HOME.,
Children and Adult Services,Head of Adults,Third Party Payments,470101,Purchase of Care,06-Jan-2014,2686594-2137142,"1,792.92",ACORN GRANGE NURSING HOME.,
Children and Adult Services,Head of Adults,Third Party Payments,470101,Purchase of Care,06-Jan-2014,2686594-2137143,"1,792.92",ACORN GRANGE NURSING HOME.,
Children and Adult Services,Head of Adults,Third Party Payments,470101,Purchase of Care,06-Jan-2014,2686594-2137144,"1,792.92",ACORN GRANGE NURSING HOME.,
Children and Adult Services,Head of Adults,Third Party Payments,470101,Purchase of Care,06-Jan-2014,2686594-2137145,"1,792.92",ACORN GRANGE NURSING HOME.,
Children and Adult Services,Head of Adults,Third Party Payments,470101,Purchase of Care,06-Jan-2014,2686594-2137146,"1,792.92",ACORN GRANGE NURSING HOME.,
Children and Adult Services,Head of Adults,Third Party Payments,471101,Purchase of Care,06-Jan-2014,2686594-2140245,"1,863.80",ACORN GRANGE NURSING HOME.,
Children and Adult Services,Head of Adults,Third Party Payments,471101,Purchase of Care,06-Jan-2014,2686594-2140246,"1,863.80",ACORN GRANGE NURSING HOME.,
Children and Adult Services,Head of Adults,Third Party Payments,471101,Purchase of Care,06-Jan-2014,2686594-2140247,"1,863.80",ACORN GRANGE NURSING HOME.,
Children and Adult Services,Head of Adults,Third Party Payments,471101,Purchase of Care,06-Jan-2014,2686594-2140248,"1,863.80",ACORN GRANGE NURSING HOME.,
Children and Adult Services,Head of Adults,Third Party Payments,471101,Purchase of Care,06-Jan-2014,2686594-2140249,"1,863.80",ACORN GRANGE NURSING HOME.,
Children and Adult Services,Head of Adults,Third Party Payments,471101,Purchase of Care,06-Jan-2014,2686594-2140251,"1,863.80",ACORN GRANGE NURSING HOME.,
Children and Adult Services,Head of Adults,Third Party Payments,471101,Purchase of Care,06-Jan-2014,2686594-2140252,"1,863.80",ACORN GRANGE NURSING HOME.,
Children and Adult Services,Head of Adults,Third Party Payments,471101,Purchase of Care,06-Jan-2014,2686594-2140253,"1,863.80",ACORN GRANGE NURSING HOME.,
Children and Adult Services,Head of Adults,Third Party Payments,471101,Purchase of Care,06-Jan-2014,2686594-2140255,"1,464.41",ACORN GRANGE NURSING HOME.,
Children and Adult Services,Head of Adults,Third Party Payments,471101,Purchase of Care,06-Jan-2014,2686594-2140256,931.90,ACORN GRANGE NURSING HOME.,
Children and Adult Services,Head of Adults,Third Party Payments,471101,Purchase of Care,06-Jan-2014,2686594-2140257,665.64,ACORN GRANGE NURSING HOME.,
Children and Adult Services,Head of Adults,Third Party Payments,471101,Purchase of Care,06-Jan-2014,2686594-2140258,"1,863.80",ACORN GRANGE NURSING HOME.,
Children and Adult Services,Head of Adults,Third Party Payments,471101,Purchase of Care,06-Jan-2014,2686594-2140259,"1,863.80",ACORN GRANGE NURSING HOME.,
Children and Adult Services,Head of Adults,Third Party Payments,471101,Purchase of Care,06-Jan-2014,2686594-2140260,"1,863.80",ACORN GRANGE NURSING HOME.,
Children and Adult Services,Head of Adults,Third Party Payments,471101,Purchase of Care,06-Jan-2014,2686594-2140261,"1,863.80",ACORN GRANGE NURSING HOME.,
Children and Adult Services,Head of Adults,Third Party Payments,471101,Purchase of Care,06-Jan-2014,2686594-2140262,"1,863.80",ACORN GRANGE NURSING HOME.,
Children and Adult Services,Head of Adults,Third Party Payments,471101,Purchase of Care,06-Jan-2014,2686594-2140263,"1,863.80",ACORN GRANGE NURSING HOME.,
Children and Adult Services,Head of Adults,Third Party Payments,471101,Purchase of Care,06-Jan-2014,2686594-2140264,"1,863.80",ACORN GRANGE NURSING HOME.,
Children and Adult Services,Head of Adults,Third Party Payments,471101,Purchase of Care,06-Jan-2014,2686594-2140265,"1,863.80",ACORN GRANGE NURSING HOME.,
Children and Adult Services,Head of Adults,Third Party Payments,471101,Purchase of Care,06-Jan-2014,2686594-2140266,"1,863.80",ACORN GRANGE NURSING HOME.,
Children and Adult Services,Head of Adults,Third Party Payments,471101,Purchase of Care,06-Jan-2014,2686594-2140631,"1,198.15",ACORN GRANGE NURSING HOME.,
Children and Adult Services,Head of Adults,Transfer Payments,515201,Social Services Clients,06-Jan-2014,2686595-1386646H,786.32,REDACTED - PAYMENT TO INDIVIDUAL,
Children and Adult Services,Head of Adults,Transfer Payments,515201,Social Services Clients,06-Jan-2014,2686595-1390611H,"1,547.40",REDACTED - PAYMENT TO INDIVIDUAL,
Children and Adult Services,Head of Adults,Transfer Payments,515201,Social Services Clients,06-Jan-2014,2686596-1391256H,"3,374.44",REDACTED - PAYMENT TO INDIVIDUAL,
Children and Adult Services,Head of Adults,Transfer Payments,515209,Social Services Clients,06-Jan-2014,2686597-1390045D,"1,160.00",REDACTED - PAYMENT TO INDIVIDUAL,
Children and Adult Services,Head of Adults,Third Party Payments,474101,Purchase of Care,06-Jan-2014,2686601-2133206,"1,602.80",ADEY GARDENS CARE HOME.,
Children and Adult Services,Head of Adults,Third Party Payments,474101,Purchase of Care,06-Jan-2014,2686601-2137891,"1,602.80",ADEY GARDENS CARE HOME.,
Children and Adult Services,Head of Adults,Third Party Payments,474101,Purchase of Care,06-Jan-2014,2686602-2139450,"1,852.00",ADMIRAL COURT.,
Children and Adult Services,Head of Adults,Third Party Payments,474101,Purchase of Care,06-Jan-2014,2686602-2139456,"1,852.00",ADMIRAL COURT.,
Children and Adult Services,Head of Adults,Third Party Payments,471101,Purchase of Care,06-Jan-2014,2686602-2140066,"1,852.00",ADMIRAL COURT.,
Children and Adult Services,Head of Adults,Transfer Payments,515201,Social Services Clients,06-Jan-2014,2686605-1387024H,552.92,REDACTED - PAYMENT TO INDIVIDUAL,
Children and Adult Services,Head of Adults,Transfer Payments,515201,Social Services Clients,06-Jan-2014,2686609-1388067H,576.00,REDACTED - PAYMENT TO INDIVIDUAL,
Children and Adult Services,Head of Adults,Transfer Payments,515201,Social Services Clients,06-Jan-2014,2686611-1390146H,981.76,REDACTED - PAYMENT TO INDIVIDUAL,
Children and Adult Services,Head of Adults,Transfer Payments,515201,Social Services Clients,06-Jan-2014,2686613-1388305H,"1,012.80",REDACTED - PAYMENT TO INDIVIDUAL,
Children and Adult Services,Head of Adults,Transfer Payments,515201,Social Services Clients,06-Jan-2014,2686616-1391800H,"2,118.20",REDACTED - PAYMENT TO INDIVIDUAL,
Children and Adult Services,Head of Adults,Transfer Payments,515201,Social Services Clients,06-Jan-2014,2686619-1392572H,588.92,REDACTED - PAYMENT TO INDIVIDUAL,
Children and Adult Services,Head of Adults,Transfer Payments,515201,Social Services Clients,06-Jan-2014,2686620-1392214H,844.00,REDACTED - PAYMENT TO INDIVIDUAL,
Children and Adult Services,Head of Adults,Transfer Payments,515201,Social Services Clients,06-Jan-2014,2686624-1387641H,"1,600.00",REDACTED - PAYMENT TO INDIVIDUAL,
Children and Adult Services,Head of Adults,Transfer Payments,515201,Social Services Clients,06-Jan-2014,2686625-1389038H,794.52,REDACTED - PAYMENT TO INDIVIDUAL,
Children and Adult Services,Head of Adults,Transfer Payments,515201,Social Services Clients,06-Jan-2014,2686626-1386670H,510.72,REDACTED - PAYMENT TO INDIVIDUAL,
Children and Adult Services,Head of Adults,Transfer Payments,515201,Social Services Clients,06-Jan-2014,2686631-1390048H,842.88,REDACTED - PAYMENT TO INDIVIDUAL,
Children and Adult Services,Head of Adults,Third Party Payments,470101,Purchase of Care,06-Jan-2014,2686632-2136953,"1,792.92",ALLIANCE CARE.,
Children and Adult Services,Head of Adults,Third Party Payments,470101,Purchase of Care,06-Jan-2014,2686632-2136954,"1,792.92",ALLIANCE CARE.,
Children and Adult Services,Head of Adults,Third Party Payments,470101,Purchase of Care,06-Jan-2014,2686632-2136955,"1,267.96",ALLIANCE CARE.,
Children and Adult Services,Head of Adults,Third Party Payments,470101,Purchase of Care,06-Jan-2014,2686632-2136956,"1,189.68",ALLIANCE CARE.,
Children and Adult Services,Head of Adults,Third Party Payments,470101,Purchase of Care,06-Jan-2014,2686632-2136958,753.76,ALLIANCE CARE.,
Children and Adult Services,Head of Adults,Third Party Payments,470101,Purchase of Care,06-Jan-2014,2686632-2136959,866.96,ALLIANCE CARE.,
Children and Adult Services,Head of Adults,Third Party Payments,470101,Purchase of Care,06-Jan-2014,2686632-2136961,"1,792.92",ALLIANCE CARE.,
Children and Adult Services,Head of Adults,Third Party Payments,470101,Purchase of Care,06-Jan-2014,2686632-2136962,745.84,ALLIANCE CARE.,
Children and Adult Services,Head of Adults,Third Party Payments,470101,Purchase of Care,06-Jan-2014,2686632-2136963,991.60,ALLIANCE CARE.,
Children and Adult Services,Head of Adults,Third Party Payments,470101,Purchase of Care,06-Jan-2014,2686632-2136964,"1,027.08",ALLIANCE CARE.,
Children and Adult Services,Head of Adults,Third Party Payments,470101,Purchase of Care,06-Jan-2014,2686632-2136965,"1,306.92",ALLIANCE CARE.,
Children and Adult Services,Head of Adults,Third Party Payments,470101,Purchase of Care,06-Jan-2014,2686632-2136966,"1,257.08",ALLIANCE CARE.,
Children and Adult Services,Head of Adults,Third Party Payments,470101,Purchase of Care,06-Jan-2014,2686632-2136967,"1,052.92",ALLIANCE CARE.,
Children and Adult Services,Head of Adults,Third Party Payments,470101,Purchase of Care,06-Jan-2014,2686632-2136968,"1,068.72",ALLIANCE CARE.,
Children and Adult Services,Head of Adults,Third Party Payments,470101,Purchase of Care,06-Jan-2014,2686632-2136969,"1,792.92",ALLIANCE CARE.,
Children and Adult Services,Head of Adults,Third Party Payments,470101,Purchase of Care,06-Jan-2014,2686632-2136971,"1,306.92",ALLIANCE CARE.,
Children and Adult Services,Head of Adults,Third Party Payments,470101,Purchase of Care,06-Jan-2014,2686632-2136972,"1,031.80",ALLIANCE CARE.,
Children and Adult Services,Head of Adults,Third Party Payments,470101,Purchase of Care,06-Jan-2014,2686632-2136973,"1,792.92",ALLIANCE CARE.,
Children and Adult Services,Head of Adults,Third Party Payments,470101,Purchase of Care,06-Jan-2014,2686632-2136974,"1,911.52",ALLIANCE CARE.,
Children and Adult Services,Head of Adults,Third Party Payments,470101,Purchase of Care,06-Jan-2014,2686632-2136975,"1,306.92",ALLIANCE CARE.,
Children and Adult Services,Head of Adults,Third Party Payments,470101,Purchase of Care,06-Jan-2014,2686632-2136976,"1,306.92",ALLIANCE CARE.,
Children and Adult Services,Head of Adults,Third Party Payments,474101,Purchase of Care,06-Jan-2014,2686632-2138040,"1,142.91",ALLIANCE CARE.,
Children and Adult Services,Head of Adults,Third Party Payments,474101,Purchase of Care,06-Jan-2014,2686632-2138042,"1,247.36",ALLIANCE CARE.,
Children and Adult Services,Head of Adults,Third Party Payments,474101,Purchase of Care,06-Jan-2014,2686632-2138045,"1,468.00",ALLIANCE CARE.,
Children and Adult Services,Head of Adults,Third Party Payments,474101,Purchase of Care,06-Jan-2014,2686632-2138047,"1,334.24",ALLIANCE CARE.,
Children and Adult Services,Head of Adults,Third Party Payments,470101,Purchase of Care,06-Jan-2014,2686632-2138607,"1,504.96",ALLIANCE CARE.,
Children and Adult Services,Head of Adults,Third Party Payments,471101,Purchase of Care,06-Jan-2014,2686632-2140160,"1,377.80",ALLIANCE CARE.,
Children and Adult Services,Head of Adults,Third Party Payments,471101,Purchase of Care,06-Jan-2014,2686632-2140161,"1,261.96",ALLIANCE CARE.,
Children and Adult Services,Head of Adults,Third Party Payments,471101,Purchase of Care,06-Jan-2014,2686632-2140162,"1,102.80",ALLIANCE CARE.,
Children and Adult Services,Head of Adults,Third Party Payments,471101,Purchase of Care,06-Jan-2014,2686632-2140163,"1,377.80",ALLIANCE CARE.,
Children and Adult Services,Head of Adults,Third Party Payments,471101,Purchase of Care,06-Jan-2014,2686632-2140164,"1,312.36",ALLIANCE CARE.,
Children and Adult Services,Head of Adults,Third Party Payments,471101,Purchase of Care,06-Jan-2014,2686632-2140165,"1,377.80",ALLIANCE CARE.,
Children and Adult Services,Head of Adults,Third Party Payments,471101,Purchase of Care,06-Jan-2014,2686632-2140166,"1,863.80",ALLIANCE CARE.,
Children and Adult Services,Head of Adults,Third Party Payments,471101,Purchase of Care,06-Jan-2014,2686632-2140167,"1,144.36",ALLIANCE CARE.,
Children and Adult Services,Head of Adults,Third Party Payments,471101,Purchase of Care,06-Jan-2014,2686632-2140168,"1,365.28",ALLIANCE CARE.,
Children and Adult Services,Head of Adults,Third Party Payments,471101,Purchase of Care,06-Jan-2014,2686632-2140169,"1,272.60",ALLIANCE CARE.,
Children and Adult Services,Head of Adults,Third Party Payments,471101,Purchase of Care,06-Jan-2014,2686632-2140170,"1,194.36",ALLIANCE CARE.,
Children and Adult Services,Head of Adults,Third Party Payments,471101,Purchase of Care,06-Jan-2014,2686632-2140171,"1,863.80",ALLIANCE CARE.,
Children and Adult Services,Head of Adults,Third Party Payments,471101,Purchase of Care,06-Jan-2014,2686632-2140172,916.68,ALLIANCE CARE.,
Children and Adult Services,Head of Adults,Third Party Payments,471101,Purchase of Care,06-Jan-2014,2686632-2140695,"1,331.28",ALLIANCE CARE.,
Children and Adult Services,Head of Adults,Third Party Payments,470101,Purchase of Care,06-Jan-2014,2686632-2140863,768.39,ALLIANCE CARE.,
Children and Adult Services,Head of Adults,Third Party Payments,470101,Purchase of Care,06-Jan-2014,2686632-2140864,"1,280.65",ALLIANCE CARE.,
Children and Adult Services,Head of Adults,Third Party Payments,470101,Purchase of Care,06-Jan-2014,2686632-2140865,512.26,ALLIANCE CARE.,
Children and Adult Services,Head of Adults,Third Party Payments,470101,Purchase of Care,06-Jan-2014,2686633-2138616,"1,959.76",ALLIANCE CARE.,
Children and Adult Services,Head of Adults,Third Party Payments,470101,Purchase of Care,06-Jan-2014,2686633-2138620,"1,607.16",ALLIANCE CARE.,
Children and Adult Services,Head of Adults,Third Party Payments,470101,Purchase of Care,06-Jan-2014,2686633-2138623,"1,959.76",ALLIANCE CARE.,
Children and Adult Services,Head of Adults,Third Party Payments,470101,Purchase of Care,06-Jan-2014,2686633-2138624,901.36,ALLIANCE CARE.,
Children and Adult Services,Head of Adults,Third Party Payments,470101,Purchase of Care,06-Jan-2014,2686633-2138625,"1,644.56",ALLIANCE CARE.,
Children and Adult Services,Head of Adults,Third Party Payments,474101,Purchase of Care,06-Jan-2014,2686633-2138701,"1,993.88",ALLIANCE CARE.,
Children and Adult Services,Head of Adults,Third Party Payments,474101,Purchase of Care,06-Jan-2014,2686633-2138703,"1,993.88",ALLIANCE CARE.,
Children and Adult Services,Head of Adults,Third Party Payments,474101,Purchase of Care,06-Jan-2014,2686633-2138707,"1,993.88",ALLIANCE CARE.,
Children and Adult Services,Head of Adults,Transfer Payments,515201,Social Services Clients,06-Jan-2014,2686634-1390266H,983.68,REDACTED - PAYMENT TO INDIVIDUAL,
Children and Adult Services,Head of Adults,Third Party Payments,470101,Purchase of Care,06-Jan-2014,2686637-2136349,"1,564.08",AMELIA HOUSE.,
Children and Adult Services,Head of Adults,Transfer Payments,515201,Social Services Clients,06-Jan-2014,2686640-1390853H,516.96,REDACTED - PAYMENT TO INDIVIDUAL,
Children and Adult Services,Head of Adults,Transfer Payments,515201,Social Services Clients,06-Jan-2014,2686642-1391217H,634.00,REDACTED - PAYMENT TO INDIVIDUAL,
Children and Adult Services,Head of Adults,Transfer Payments,515201,Social Services Clients,06-Jan-2014,2686648-1387407H,687.60,REDACTED - PAYMENT TO INDIVIDUAL,
Children and Adult Services,Head of Adults,Transfer Payments,515201,Social Services Clients,06-Jan-2014,2686649-1388233H,590.80,REDACTED - PAYMENT TO INDIVIDUAL,
Children and Adult Services,Head of Adults,Transfer Payments,515209,Social Services Clients,06-Jan-2014,2686652-1389251D,560.00,REDACTED - PAYMENT TO INDIVIDUAL,
Children and Adult Services,Head of Adults,Transfer Payments,515209,Social Services Clients,06-Jan-2014,2686654-1388639D,528.96,REDACTED - PAYMENT TO INDIVIDUAL,
Children and Adult Services,Head of Adults,Transfer Payments,515201,Social Services Clients,06-Jan-2014,2686655-1390588H,"1,178.32",REDACTED - PAYMENT TO INDIVIDUAL,
Children and Adult Services,Head of Adults,Transfer Payments,515201,Social Services Clients,06-Jan-2014,2686657-1392336H,"2,724.00",REDACTED - PAYMENT TO INDIVIDUAL,
Children and Adult Services,Head of Adults,Transfer Payments,515201,Social Services Clients,06-Jan-2014,2686658-1388168H,532.32,REDACTED - PAYMENT TO INDIVIDUAL,
Children and Adult Services,Head of Adults,Transfer Payments,515209,Social Services Clients,06-Jan-2014,2686659-1391383D,"1,949.24",REDACTED - PAYMENT TO INDIVIDUAL,
Children and Adult Services,Head of Adults,Transfer Payments,515201,Social Services Clients,06-Jan-2014,2686660-1390357H,904.36,REDACTED - PAYMENT TO INDIVIDUAL,
Children and Adult Services,Head of Adults,Third Party Payments,474101,Purchase of Care,06-Jan-2014,2686661-2138667,"1,781.40",ANN CHARLTON LODGE.,
Children and Adult Services,Head of Adults,Transfer Payments,515201,Social Services Clients,06-Jan-2014,2686664-1390715H,515.04,REDACTED - PAYMENT TO INDIVIDUAL,
Children and Adult Services,Head of Adults,Transfer Payments,515201,Social Services Clients,06-Jan-2014,2686666-1392888H,565.60,REDACTED - PAYMENT TO INDIVIDUAL,
Children and Adult Services,Head of Adults,Transfer Payments,515201,Social Services Clients,06-Jan-2014,2686669-1389040H,908.00,REDACTED - PAYMENT TO INDIVIDUAL,
Children and Adult Services,Head of Adults,Transfer Payments,515201,Social Services Clients,06-Jan-2014,2686670-1387225H,"3,022.40",REDACTED - PAYMENT TO INDIVIDUAL,
Children and Adult Services,Head of Adults,Transfer Payments,515201,Social Services Clients,06-Jan-2014,2686670-1389036H,771.80,REDACTED - PAYMENT TO INDIVIDUAL,
Children and Adult Services,Head of Adults,Transfer Payments,515201,Social Services Clients,06-Jan-2014,2686672-1392247H,962.88,REDACTED - PAYMENT TO INDIVIDUAL,
Children and Adult Services,Head of Adults,Transfer Payments,515201,Social Services Clients,06-Jan-2014,2686678-1391050H,503.40,REDACTED - PAYMENT TO INDIVIDUAL,
Children and Adult Services,Head of Adults,Transfer Payments,515201,Social Services Clients,06-Jan-2014,2686679-1389867H,675.20,REDACTED - PAYMENT TO INDIVIDUAL,
Children and Adult Services,Head of Adults,Third Party Payments,472101,Purchase of Care,06-Jan-2014,2686680-1393366H,"2,001.75",AS & WHEN LTD.,
Children and Adult Services,Head of Adults,Third Party Payments,470101,Purchase of Care,06-Jan-2014,2686681-2137237,"1,792.92",ASCOT CARE NORTHEAST LTD.,
Children and Adult Services,Head of Adults,Third Party Payments,470101,Purchase of Care,06-Jan-2014,2686681-2137238,"1,792.92",ASCOT CARE NORTHEAST LTD.,
Children and Adult Services,Head of Adults,Third Party Payments,470101,Purchase of Care,06-Jan-2014,2686681-2137239,"1,792.92",ASCOT CARE NORTHEAST LTD.,
Children and Adult Services,Head of Adults,Third Party Payments,470101,Purchase of Care,06-Jan-2014,2686681-2137387,"1,306.92",ASCOT CARE NORTHEAST LTD.,
Children and Adult Services,Head of Adults,Third Party Payments,470101,Purchase of Care,06-Jan-2014,2686681-2137388,"1,792.92",ASCOT CARE NORTHEAST LTD.,
Children and Adult Services,Head of Adults,Third Party Payments,470101,Purchase of Care,06-Jan-2014,2686681-2137389,689.85,ASCOT CARE NORTHEAST LTD.,
Children and Adult Services,Head of Adults,Third Party Payments,470101,Purchase of Care,06-Jan-2014,2686681-2137390,"1,792.92",ASCOT CARE NORTHEAST LTD.,
Children and Adult Services,Head of Adults,Third Party Payments,474101,Purchase of Care,06-Jan-2014,2686681-2138195,"1,285.00",ASCOT CARE NORTHEAST LTD.,
Children and Adult Services,Head of Adults,Third Party Payments,474101,Purchase of Care,06-Jan-2014,2686681-2138274,"1,348.04",ASCOT CARE NORTHEAST LTD.,
Children and Adult Services,Head of Adults,Third Party Payments,474101,Purchase of Care,06-Jan-2014,2686681-2138276,"1,295.32",ASCOT CARE NORTHEAST LTD.,
Children and Adult Services,Head of Adults,Third Party Payments,474101,Purchase of Care,06-Jan-2014,2686681-2138279,519.80,ASCOT CARE NORTHEAST LTD.,
Children and Adult Services,Head of Adults,Third Party Payments,474101,Purchase of Care,06-Jan-2014,2686681-2138335,"1,882.44",ASCOT CARE NORTHEAST LTD.,
Children and Adult Services,Head of Adults,Third Party Payments,474101,Purchase of Care,06-Jan-2014,2686681-2138337,"1,091.56",ASCOT CARE NORTHEAST LTD.,
Children and Adult Services,Head of Adults,Third Party Payments,474101,Purchase of Care,06-Jan-2014,2686681-2138339,"1,226.36",ASCOT CARE NORTHEAST LTD.,
Children and Adult Services,Head of Adults,Third Party Payments,471101,Purchase of Care,06-Jan-2014,2686681-2140299,794.12,ASCOT CARE NORTHEAST LTD.,
Children and Adult Services,Head of Adults,Third Party Payments,471101,Purchase of Care,06-Jan-2014,2686681-2140302,"1,383.94",ASCOT CARE NORTHEAST LTD.,
Children and Adult Services,Head of Adults,Third Party Payments,471101,Purchase of Care,06-Jan-2014,2686681-2140357,"1,101.16",ASCOT CARE NORTHEAST LTD.,
Children and Adult Services,Head of Adults,Third Party Payments,471101,Purchase of Care,06-Jan-2014,2686681-2140358,"1,863.80",ASCOT CARE NORTHEAST LTD.,
Children and Adult Services,Head of Adults,Third Party Payments,471101,Purchase of Care,06-Jan-2014,2686681-2140359,"1,863.80",ASCOT CARE NORTHEAST LTD.,
Children and Adult Services,Head of Adults,Third Party Payments,471101,Purchase of Care,06-Jan-2014,2686681-2140360,"1,346.68",ASCOT CARE NORTHEAST LTD.,
Children and Adult Services,Head of Adults,Third Party Payments,470101,Purchase of Care,06-Jan-2014,2686682-2137019,"1,784.00",ASCOT CARE T/A THE GARDENS CARE HOME.,
Children and Adult Services,Head of Adults,Third Party Payments,474101,Purchase of Care,06-Jan-2014,2686683-2128414,"1,126.85",ASCOT NURSING HOME.,
Children and Adult Services,Head of Adults,Third Party Payments,474101,Purchase of Care,06-Jan-2014,2686683-2133215,"1,688.00",ASCOT NURSING HOME.,
Children and Adult Services,Head of Adults,Third Party Payments,474101,Purchase of Care,06-Jan-2014,2686683-2137900,"1,688.00",ASCOT NURSING HOME.,
Children and Adult Services,Head of Adults,Third Party Payments,470101,Purchase of Care,06-Jan-2014,2686684-2131609,"2,352.00",ASHFIELD NURSING HOME LTD.,
Children and Adult Services,Head of Adults,Third Party Payments,470101,Purchase of Care,06-Jan-2014,2686684-2136352,"2,352.00",ASHFIELD NURSING HOME LTD.,
Children and Adult Services,Head of Adults,Third Party Payments,470101,Purchase of Care,06-Jan-2014,2686685-2138868,950.00,ASHLEIGH HOUSE CARE HOME.,
Children and Adult Services,Head of Adults,Third Party Payments,470101,Purchase of Care,06-Jan-2014,2686685-2138869,"1,102.00",ASHLEIGH HOUSE CARE HOME.,
Children and Adult Services,Head of Adults,Third Party Payments,470101,Purchase of Care,06-Jan-2014,2686685-2138870,"1,660.20",ASHLEIGH HOUSE CARE HOME.,
Children and Adult Services,Head of Adults,Third Party Payments,470101,Purchase of Care,06-Jan-2014,2686686-2138575,"2,500.00",ASHWOOD COURT.,
Children and Adult Services,Head of Adults,Third Party Payments,471101,Purchase of Care,06-Jan-2014,2686688-2135039,"1,818.56",ASTOR LODGE VIEW.,
Children and Adult Services,Head of Adults,Third Party Payments,471101,Purchase of Care,06-Jan-2014,2686688-2139729,"1,818.56",ASTOR LODGE VIEW.,
Children and Adult Services,Head of Adults,Transfer Payments,515201,Social Services Clients,06-Jan-2014,2686690-1387571H,516.96,REDACTED - PAYMENT TO INDIVIDUAL,
Children and Adult Services,Head of Adults,Transfer Payments,515201,Social Services Clients,06-Jan-2014,2686691-1389605H,635.60,REDACTED - PAYMENT TO INDIVIDUAL,
Children and Adult Services,Head of Adults,Transfer Payments,515201,Social Services Clients,06-Jan-2014,2686692-1393567H,"3,399.29",REDACTED - PAYMENT TO INDIVIDUAL,
Children and Adult Services,Head of Adults,Transfer Payments,515201,Social Services Clients,06-Jan-2014,2686693-1388463H,777.20,REDACTED - PAYMENT TO INDIVIDUAL,
Children and Adult Services,Head of Adults,Transfer Payments,515201,Social Services Clients,06-Jan-2014,2686695-1390508H,748.76,REDACTED - PAYMENT TO INDIVIDUAL,
Children and Adult Services,Head of Adults,Third Party Payments,478101,Purchase of Care,06-Jan-2014,2686696-1386691H,"6,807.20",AUTISM CARE UK (4) LTD.,
Children and Adult Services,Head of Adults,Third Party Payments,478101,Purchase of Care,06-Jan-2014,2686696-1387110H,"4,148.64",AUTISM CARE UK (4) LTD.,
Children and Adult Services,Head of Adults,Third Party Payments,478101,Purchase of Care,06-Jan-2014,2686696-1388153H,"6,163.72",AUTISM CARE UK (4) LTD.,
Children and Adult Services,Head of Adults,Third Party Payments,478101,Purchase of Care,06-Jan-2014,2686696-1388190H,"4,148.64",AUTISM CARE UK (4) LTD.,
Children and Adult Services,Head of Adults,Third Party Payments,478101,Purchase of Care,06-Jan-2014,2686696-1388304H,"3,378.20",AUTISM CARE UK (4) LTD.,
Children and Adult Services,Head of Adults,Third Party Payments,478101,Purchase of Care,06-Jan-2014,2686696-1388407H,"3,200.40",AUTISM CARE UK (4) LTD.,
Children and Adult Services,Head of Adults,Third Party Payments,478101,Purchase of Care,06-Jan-2014,2686696-1388425H,"4,148.64",AUTISM CARE UK (4) LTD.,
Children and Adult Services,Head of Adults,Third Party Payments,478101,Purchase of Care,06-Jan-2014,2686696-1388426H,"4,148.64",AUTISM CARE UK (4) LTD.,
Children and Adult Services,Head of Adults,Third Party Payments,478101,Purchase of Care,06-Jan-2014,2686696-1389195H,"4,958.08",AUTISM CARE UK (4) LTD.,
Children and Adult Services,Head of Adults,Third Party Payments,470101,Purchase of Care,06-Jan-2014,2686696-2138957,"4,480.00",AUTISM CARE UK (4) LTD.,
Children and Adult Services,Head of Adults,Third Party Payments,470101,Purchase of Care,06-Jan-2014,2686696-2138959,"2,907.80",AUTISM CARE UK (4) LTD.,
Children and Adult Services,Head of Adults,Third Party Payments,470101,Purchase of Care,06-Jan-2014,2686697-2138936,"9,625.52",AUTISM NORTH.,
Children and Adult Services,Head of Adults,Third Party Payments,470101,Purchase of Care,06-Jan-2014,2686697-2138937,"9,803.68",AUTISM NORTH.,
Children and Adult Services,Head of Adults,Third Party Payments,470101,Purchase of Care,06-Jan-2014,2686698-2138956,"6,478.68",AUTISM NORTH.,
Children and Adult Services,Head of Adults,Transfer Payments,515201,Social Services Clients,06-Jan-2014,2686699-1389286H,"2,975.00",REDACTED - PAYMENT TO INDIVIDUAL,
Children and Adult Services,Head of Adults,Third Party Payments,470101,Purchase of Care,06-Jan-2014,2686700-2136478,"1,792.92",AYCLIFFE CARE HOME.,
Children and Adult Services,Head of Adults,Third Party Payments,470101,Purchase of Care,06-Jan-2014,2686700-2136479,"1,792.92",AYCLIFFE CARE HOME.,
Children and Adult Services,Head of Adults,Third Party Payments,470101,Purchase of Care,06-Jan-2014,2686700-2136480,"1,792.92",AYCLIFFE CARE HOME.,
Children and Adult Services,Head of Adults,Third Party Payments,470101,Purchase of Care,06-Jan-2014,2686700-2136483,"1,792.92",AYCLIFFE CARE HOME.,
Children and Adult Services,Head of Adults,Third Party Payments,470101,Purchase of Care,06-Jan-2014,2686700-2136484,"2,113.08",AYCLIFFE CARE HOME.,
Children and Adult Services,Head of Adults,Third Party Payments,470101,Purchase of Care,06-Jan-2014,2686700-2136485,896.46,AYCLIFFE CARE HOME.,
Children and Adult Services,Head of Adults,Third Party Payments,470101,Purchase of Care,06-Jan-2014,2686700-2136486,"1,792.92",AYCLIFFE CARE HOME.,
Children and Adult Services,Head of Adults,Third Party Payments,470101,Purchase of Care,06-Jan-2014,2686700-2136487,"1,024.52",AYCLIFFE CARE HOME.,
Children and Adult Services,Head of Adults,Third Party Payments,470101,Purchase of Care,06-Jan-2014,2686700-2136488,"1,792.92",AYCLIFFE CARE HOME.,
Children and Adult Services,Head of Adults,Third Party Payments,470101,Purchase of Care,06-Jan-2014,2686700-2136489,"1,792.92",AYCLIFFE CARE HOME.,
Children and Adult Services,Head of Adults,Third Party Payments,470101,Purchase of Care,06-Jan-2014,2686700-2136490,"1,792.92",AYCLIFFE CARE HOME.,
Children and Adult Services,Head of Adults,Third Party Payments,470101,Purchase of Care,06-Jan-2014,2686700-2136491,"4,034.07",AYCLIFFE CARE HOME.,
Children and Adult Services,Head of Adults,Third Party Payments,470101,Purchase of Care,06-Jan-2014,2686700-2136492,"1,792.92",AYCLIFFE CARE HOME.,
Children and Adult Services,Head of Adults,Third Party Payments,470101,Purchase of Care,06-Jan-2014,2686700-2136493,"1,792.92",AYCLIFFE CARE HOME.,
Children and Adult Services,Head of Adults,Third Party Payments,474101,Purchase of Care,06-Jan-2014,2686700-2139247,"1,882.44",AYCLIFFE CARE HOME.,
Children and Adult Services,Head of Adults,Third Party Payments,474101,Purchase of Care,06-Jan-2014,2686700-2139249,922.76,AYCLIFFE CARE HOME.,
Children and Adult Services,Head of Adults,Third Party Payments,474101,Purchase of Care,06-Jan-2014,2686700-2139256,941.20,AYCLIFFE CARE HOME.,
Children and Adult Services,Head of Adults,Third Party Payments,474101,Purchase of Care,06-Jan-2014,2686700-2139260,"1,882.44",AYCLIFFE CARE HOME.,
Children and Adult Services,Head of Adults,Third Party Payments,474101,Purchase of Care,06-Jan-2014,2686700-2139262,"1,882.44",AYCLIFFE CARE HOME.,
Children and Adult Services,Head of Adults,Third Party Payments,471101,Purchase of Care,06-Jan-2014,2686700-2139796,"1,863.80",AYCLIFFE CARE HOME.,
Children and Adult Services,Head of Adults,Third Party Payments,471101,Purchase of Care,06-Jan-2014,2686700-2139797,"1,863.80",AYCLIFFE CARE HOME.,
Children and Adult Services,Head of Adults,Third Party Payments,471101,Purchase of Care,06-Jan-2014,2686700-2139800,"1,863.80",AYCLIFFE CARE HOME.,
Children and Adult Services,Head of Adults,Third Party Payments,471101,Purchase of Care,06-Jan-2014,2686700-2139806,"2,795.70",AYCLIFFE CARE HOME.,
Children and Adult Services,Head of Adults,Third Party Payments,471101,Purchase of Care,06-Jan-2014,2686700-2139807,"1,863.80",AYCLIFFE CARE HOME.,
Children and Adult Services,Head of Adults,Third Party Payments,471101,Purchase of Care,06-Jan-2014,2686700-2139808,"1,863.80",AYCLIFFE CARE HOME.,
Children and Adult Services,Head of Adults,Third Party Payments,471101,Purchase of Care,06-Jan-2014,2686700-2139809,"1,863.80",AYCLIFFE CARE HOME.,
Children and Adult Services,Head of Adults,Third Party Payments,471101,Purchase of Care,06-Jan-2014,2686700-2139810,"1,863.80",AYCLIFFE CARE HOME.,
Children and Adult Services,Head of Adults,Third Party Payments,471101,Purchase of Care,06-Jan-2014,2686700-2139811,"1,863.80",AYCLIFFE CARE HOME.,
Children and Adult Services,Head of Adults,Third Party Payments,471101,Purchase of Care,06-Jan-2014,2686700-2139812,"1,863.80",AYCLIFFE CARE HOME.,
Children and Adult Services,Head of Adults,Third Party Payments,471101,Purchase of Care,06-Jan-2014,2686700-2139813,"1,863.80",AYCLIFFE CARE HOME.,
Children and Adult Services,Head of Adults,Third Party Payments,474101,Purchase of Care,06-Jan-2014,2686700-2140632,"1,344.60",AYCLIFFE CARE HOME.,
Children and Adult Services,Head of Adults,Third Party Payments,471101,Purchase of Care,06-Jan-2014,2686703-2140083,"1,744.00",BARCHESTER HEALTHCARE HOMES LTD.,
Children and Adult Services,Head of Adults,Third Party Payments,471101,Purchase of Care,06-Jan-2014,2686703-2140084,"1,744.00",BARCHESTER HEALTHCARE HOMES LTD.,
Children and Adult Services,Head of Adults,Third Party Payments,474101,Purchase of Care,06-Jan-2014,2686704-2138108,"1,882.44",BARCHESTER HEALTHCARE HOMES LTD.,
Children and Adult Services,Head of Adults,Third Party Payments,474101,Purchase of Care,06-Jan-2014,2686704-2138110,"1,882.44",BARCHESTER HEALTHCARE HOMES LTD.,
Children and Adult Services,Head of Adults,Third Party Payments,474101,Purchase of Care,06-Jan-2014,2686704-2138113,"1,882.44",BARCHESTER HEALTHCARE HOMES LTD.,
Children and Adult Services,Head of Adults,Third Party Payments,474101,Purchase of Care,06-Jan-2014,2686704-2138116,"1,882.44",BARCHESTER HEALTHCARE HOMES LTD.,
Children and Adult Services,Head of Adults,Third Party Payments,474101,Purchase of Care,06-Jan-2014,2686704-2138120,"1,882.44",BARCHESTER HEALTHCARE HOMES LTD.,
Children and Adult Services,Head of Adults,Third Party Payments,474101,Purchase of Care,06-Jan-2014,2686704-2138134,"1,882.44",BARCHESTER HEALTHCARE HOMES LTD.,
Children and Adult Services,Head of Adults,Third Party Payments,474101,Purchase of Care,06-Jan-2014,2686704-2138137,"1,882.44",BARCHESTER HEALTHCARE HOMES LTD.,
Children and Adult Services,Head of Adults,Third Party Payments,474101,Purchase of Care,06-Jan-2014,2686704-2138140,"1,882.44",BARCHESTER HEALTHCARE HOMES LTD.,
Children and Adult Services,Head of Adults,Third Party Payments,474101,Purchase of Care,06-Jan-2014,2686704-2138670,"2,053.04",BARCHESTER HEALTHCARE HOMES LTD.,
Children and Adult Services,Head of Adults,Third Party Payments,474101,Purchase of Care,06-Jan-2014,2686704-2138673,"2,053.04",BARCHESTER HEALTHCARE HOMES LTD.,
Children and Adult Services,Head of Adults,Third Party Payments,474101,Purchase of Care,06-Jan-2014,2686704-2138675,"2,053.04",BARCHESTER HEALTHCARE HOMES LTD.,
Children and Adult Services,Head of Adults,Third Party Payments,474101,Purchase of Care,06-Jan-2014,2686704-2138678,"2,053.04",BARCHESTER HEALTHCARE HOMES LTD.,
Children and Adult Services,Head of Adults,Third Party Payments,474101,Purchase of Care,06-Jan-2014,2686704-2138758,"2,053.04",BARCHESTER HEALTHCARE HOMES LTD.,
Children and Adult Services,Head of Adults,Third Party Payments,474101,Purchase of Care,06-Jan-2014,2686704-2138777,"1,882.44",BARCHESTER HEALTHCARE HOMES LTD.,
Children and Adult Services,Head of Adults,Third Party Payments,474101,Purchase of Care,06-Jan-2014,2686704-2139557,"1,882.44",BARCHESTER HEALTHCARE HOMES LTD.,
Children and Adult Services,Head of Adults,Third Party Payments,474101,Purchase of Care,06-Jan-2014,2686704-2139560,"1,882.44",BARCHESTER HEALTHCARE HOMES LTD.,
Children and Adult Services,Head of Adults,Third Party Payments,474101,Purchase of Care,06-Jan-2014,2686704-2139563,"1,882.44",BARCHESTER HEALTHCARE HOMES LTD.,
Children and Adult Services,Head of Adults,Third Party Payments,474101,Purchase of Care,06-Jan-2014,2686704-2139565,"1,882.44",BARCHESTER HEALTHCARE HOMES LTD.,
Children and Adult Services,Head of Adults,Third Party Payments,474101,Purchase of Care,06-Jan-2014,2686704-2139570,"1,882.44",BARCHESTER HEALTHCARE HOMES LTD.,
Children and Adult Services,Head of Adults,Third Party Payments,474101,Purchase of Care,06-Jan-2014,2686704-2139573,"1,882.44",BARCHESTER HEALTHCARE HOMES LTD.,
Children and Adult Services,Head of Adults,Third Party Payments,474101,Purchase of Care,06-Jan-2014,2686704-2140625,"1,882.44",BARCHESTER HEALTHCARE HOMES LTD.,
Children and Adult Services,Head of Adults,Third Party Payments,471101,Purchase of Care,06-Jan-2014,2686705-2139690,"1,100.00",BARCHESTER HEALTHCARE HOMES LTD.,
Children and Adult Services,Head of Adults,Third Party Payments,471101,Purchase of Care,06-Jan-2014,2686706-2139692,"1,849.88",BARCHESTER HEALTHCARE HOMES LTD.,
Children and Adult Services,Head of Adults,Third Party Payments,471101,Purchase of Care,06-Jan-2014,2686707-2139693,"1,642.20",BARCHESTER HEALTHCARE HOMES LTD.,
Children and Adult Services,Head of Adults,Third Party Payments,474101,Purchase of Care,06-Jan-2014,2686709-2138652,"1,843.32",BARNES COURT NURSING HOME.,
Children and Adult Services,Head of Adults,Third Party Payments,474101,Purchase of Care,06-Jan-2014,2686709-2138655,"1,902.32",BARNES COURT NURSING HOME.,
Children and Adult Services,Head of Adults,Transfer Payments,515201,Social Services Clients,06-Jan-2014,2686710-1387359H,"2,616.00",REDACTED - PAYMENT TO INDIVIDUAL,
Children and Adult Services,Head of Adults,Transfer Payments,515201,Social Services Clients,06-Jan-2014,2686711-1390232H,726.40,REDACTED - PAYMENT TO INDIVIDUAL,
Children and Adult Services,Head of Adults,Third Party Payments,470101,Purchase of Care,06-Jan-2014,2686713-2136990,"1,792.92",BEACONSFIELD COURT.,
Children and Adult Services,Head of Adults,Third Party Payments,470101,Purchase of Care,06-Jan-2014,2686713-2136991,"1,792.92",BEACONSFIELD COURT.,
Children and Adult Services,Head of Adults,Third Party Payments,470101,Purchase of Care,06-Jan-2014,2686713-2136997,"1,792.92",BEACONSFIELD COURT.,
Children and Adult Services,Head of Adults,Third Party Payments,470101,Purchase of Care,06-Jan-2014,2686713-2136998,"1,792.92",BEACONSFIELD COURT.,
Children and Adult Services,Head of Adults,Third Party Payments,470101,Purchase of Care,06-Jan-2014,2686713-2136999,"1,792.92",BEACONSFIELD COURT.,
Children and Adult Services,Head of Adults,Third Party Payments,470101,Purchase of Care,06-Jan-2014,2686713-2137000,"1,792.92",BEACONSFIELD COURT.,
Children and Adult Services,Head of Adults,Third Party Payments,470101,Purchase of Care,06-Jan-2014,2686713-2137001,"1,792.92",BEACONSFIELD COURT.,
Children and Adult Services,Head of Adults,Third Party Payments,470101,Purchase of Care,06-Jan-2014,2686713-2137002,"1,792.92",BEACONSFIELD COURT.,
Children and Adult Services,Head of Adults,Third Party Payments,470101,Purchase of Care,06-Jan-2014,2686713-2137003,"1,792.92",BEACONSFIELD COURT.,
Children and Adult Services,Head of Adults,Third Party Payments,470101,Purchase of Care,06-Jan-2014,2686713-2137004,"1,792.92",BEACONSFIELD COURT.,
Children and Adult Services,Head of Adults,Third Party Payments,474101,Purchase of Care,06-Jan-2014,2686713-2138082,"1,882.44",BEACONSFIELD COURT.,
Children and Adult Services,Head of Adults,Third Party Payments,474101,Purchase of Care,06-Jan-2014,2686713-2138084,"1,882.44",BEACONSFIELD COURT.,
Children and Adult Services,Head of Adults,Third Party Payments,474101,Purchase of Care,06-Jan-2014,2686713-2138086,"1,882.44",BEACONSFIELD COURT.,
Children and Adult Services,Head of Adults,Third Party Payments,470101,Purchase of Care,06-Jan-2014,2686714-2136535,896.48,BEAMISH RESIDENTIAL HOME.,
Children and Adult Services,Head of Adults,Third Party Payments,470101,Purchase of Care,06-Jan-2014,2686714-2136536,"1,084.76",BEAMISH RESIDENTIAL HOME.,
Children and Adult Services,Head of Adults,Third Party Payments,470101,Purchase of Care,06-Jan-2014,2686714-2136538,"1,023.96",BEAMISH RESIDENTIAL HOME.,
Children and Adult Services,Head of Adults,Third Party Payments,470101,Purchase of Care,06-Jan-2014,2686714-2136539,"1,306.92",BEAMISH RESIDENTIAL HOME.,
Children and Adult Services,Head of Adults,Third Party Payments,470101,Purchase of Care,06-Jan-2014,2686714-2136540,"1,289.40",BEAMISH RESIDENTIAL HOME.,
Children and Adult Services,Head of Adults,Third Party Payments,470101,Purchase of Care,06-Jan-2014,2686714-2136541,"1,792.92",BEAMISH RESIDENTIAL HOME.,
Children and Adult Services,Head of Adults,Third Party Payments,470101,Purchase of Care,06-Jan-2014,2686714-2136542,946.64,BEAMISH RESIDENTIAL HOME.,
Children and Adult Services,Head of Adults,Third Party Payments,470101,Purchase of Care,06-Jan-2014,2686714-2136543,"1,248.44",BEAMISH RESIDENTIAL HOME.,
Children and Adult Services,Head of Adults,Third Party Payments,470101,Purchase of Care,06-Jan-2014,2686714-2136544,"1,258.36",BEAMISH RESIDENTIAL HOME.,
Children and Adult Services,Head of Adults,Third Party Payments,470101,Purchase of Care,06-Jan-2014,2686714-2136545,"1,792.92",BEAMISH RESIDENTIAL HOME.,
Children and Adult Services,Head of Adults,Transfer Payments,515201,Social Services Clients,06-Jan-2014,2686715-1389039H,637.32,REDACTED - PAYMENT TO INDIVIDUAL,
Children and Adult Services,Head of Adults,Third Party Payments,470101,Purchase of Care,06-Jan-2014,2686716-2137024,"1,894.36",BEDDELL HOUSE.,
Children and Adult Services,Head of Adults,Third Party Payments,470101,Purchase of Care,06-Jan-2014,2686716-2137025,"1,894.36",BEDDELL HOUSE.,
Children and Adult Services,Head of Adults,Third Party Payments,470101,Purchase of Care,06-Jan-2014,2686716-2137026,"1,894.36",BEDDELL HOUSE.,
Children and Adult Services,Head of Adults,Third Party Payments,470101,Purchase of Care,06-Jan-2014,2686716-2137027,"1,894.36",BEDDELL HOUSE.,
Children and Adult Services,Head of Adults,Third Party Payments,470101,Purchase of Care,06-Jan-2014,2686716-2137056,"1,894.36",BEDDELL HOUSE.,
Children and Adult Services,Head of Adults,Third Party Payments,470101,Purchase of Care,06-Jan-2014,2686716-2137057,947.16,BEDDELL HOUSE.,
Children and Adult Services,Head of Adults,Third Party Payments,470101,Purchase of Care,06-Jan-2014,2686716-2137058,"1,894.36",BEDDELL HOUSE.,
Children and Adult Services,Head of Adults,Third Party Payments,470101,Purchase of Care,06-Jan-2014,2686716-2137059,"1,894.36",BEDDELL HOUSE.,
Children and Adult Services,Head of Adults,Third Party Payments,470101,Purchase of Care,06-Jan-2014,2686716-2137060,"1,894.36",BEDDELL HOUSE.,
Children and Adult Services,Head of Adults,Third Party Payments,470101,Purchase of Care,06-Jan-2014,2686716-2137061,"1,894.36",BEDDELL HOUSE.,
Children and Adult Services,Head of Adults,Third Party Payments,470101,Purchase of Care,06-Jan-2014,2686716-2137062,"1,894.36",BEDDELL HOUSE.,
Children and Adult Services,Head of Adults,Third Party Payments,470101,Purchase of Care,06-Jan-2014,2686716-2137063,"1,894.36",BEDDELL HOUSE.,
Children and Adult Services,Head of Adults,Third Party Payments,470101,Purchase of Care,06-Jan-2014,2686716-2137064,"1,894.36",BEDDELL HOUSE.,
Children and Adult Services,Head of Adults,Third Party Payments,470101,Purchase of Care,06-Jan-2014,2686717-2139006,"2,145.00",BEECHWOOD RESIDENTIAL CARE SERVICES.,
Children and Adult Services,Head of Adults,Third Party Payments,470101,Purchase of Care,06-Jan-2014,2686717-2139007,"2,145.00",BEECHWOOD RESIDENTIAL CARE SERVICES.,
Children and Adult Services,Head of Adults,Third Party Payments,470101,Purchase of Care,06-Jan-2014,2686717-2139008,"2,145.00",BEECHWOOD RESIDENTIAL CARE SERVICES.,
Children and Adult Services,Head of Adults,Third Party Payments,470101,Purchase of Care,06-Jan-2014,2686718-2136789,"1,772.00",BELLE VUE HEALTHCARE LTD.,
Children and Adult Services,Head of Adults,Third Party Payments,470101,Purchase of Care,06-Jan-2014,2686719-2137171,797.56,PERFECT CARE LTD T/A BELMONT GRANGE CARE HOME.,
Children and Adult Services,Head of Adults,Third Party Payments,470101,Purchase of Care,06-Jan-2014,2686719-2137249,797.56,PERFECT CARE LTD T/A BELMONT GRANGE CARE HOME.,
Children and Adult Services,Head of Adults,Third Party Payments,470101,Purchase of Care,06-Jan-2014,2686719-2137250,509.66,PERFECT CARE LTD T/A BELMONT GRANGE CARE HOME.,
Children and Adult Services,Head of Adults,Third Party Payments,470101,Purchase of Care,06-Jan-2014,2686719-2137295,797.56,PERFECT CARE LTD T/A BELMONT GRANGE CARE HOME.,
Children and Adult Services,Head of Adults,Third Party Payments,470101,Purchase of Care,06-Jan-2014,2686719-2137400,797.56,PERFECT CARE LTD T/A BELMONT GRANGE CARE HOME.,
Children and Adult Services,Head of Adults,Third Party Payments,470101,Purchase of Care,06-Jan-2014,2686719-2137401,797.56,PERFECT CARE LTD T/A BELMONT GRANGE CARE HOME.,
Children and Adult Services,Head of Adults,Third Party Payments,470101,Purchase of Care,06-Jan-2014,2686719-2137403,518.20,PERFECT CARE LTD T/A BELMONT GRANGE CARE HOME.,
Children and Adult Services,Head of Adults,Third Party Payments,474101,Purchase of Care,06-Jan-2014,2686719-2138288,598.28,PERFECT CARE LTD T/A BELMONT GRANGE CARE HOME.,
Children and Adult Services,Head of Adults,Third Party Payments,470101,Purchase of Care,06-Jan-2014,2686721-2138998,"1,482.48",BENAMY HOUSE.,
Children and Adult Services,Head of Adults,Third Party Payments,470101,Purchase of Care,06-Jan-2014,2686721-2138999,"1,482.48",BENAMY HOUSE.,
Children and Adult Services,Head of Adults,Third Party Payments,470101,Purchase of Care,06-Jan-2014,2686721-2139000,"1,797.68",BENAMY HOUSE.,
Children and Adult Services,Head of Adults,Third Party Payments,470101,Purchase of Care,06-Jan-2014,2686721-2139024,"1,482.48",BENAMY HOUSE.,
Children and Adult Services,Head of Adults,Third Party Payments,470101,Purchase of Care,06-Jan-2014,2686721-2139025,"1,797.68",BENAMY HOUSE.,
Children and Adult Services,Head of Adults,Third Party Payments,474101,Purchase of Care,06-Jan-2014,2686722-2138780,912.72,BENFIELD HALL.,
Children and Adult Services,Head of Adults,Third Party Payments,474101,Purchase of Care,06-Jan-2014,2686722-2138782,"1,825.44",BENFIELD HALL.,
Children and Adult Services,Head of Adults,Third Party Payments,474101,Purchase of Care,06-Jan-2014,2686722-2138784,"1,339.44",BENFIELD HALL.,
Children and Adult Services,Head of Adults,Third Party Payments,474101,Purchase of Care,06-Jan-2014,2686722-2138786,"1,132.32",BENFIELD HALL.,
Children and Adult Services,Head of Adults,Third Party Payments,474101,Purchase of Care,06-Jan-2014,2686722-2138788,912.72,BENFIELD HALL.,
Children and Adult Services,Head of Adults,Third Party Payments,474101,Purchase of Care,06-Jan-2014,2686722-2138790,912.72,BENFIELD HALL.,
Children and Adult Services,Head of Adults,Third Party Payments,474101,Purchase of Care,06-Jan-2014,2686722-2138792,"1,825.44",BENFIELD HALL.,
Children and Adult Services,Head of Adults,Third Party Payments,470101,Purchase of Care,06-Jan-2014,2686722-2138890,"2,460.00",BENFIELD HALL.,
Children and Adult Services,Head of Adults,Transfer Payments,515201,Social Services Clients,06-Jan-2014,2686728-1390138H,722.40,REDACTED - PAYMENT TO INDIVIDUAL,
Children and Adult Services,Head of Adults,Third Party Payments,478101,Purchase of Care,06-Jan-2014,2686729-2139668,626.90,REDACTED - PAYMENT TO INDIVIDUAL,
Children and Adult Services,Head of Adults,Third Party Payments,478101,Purchase of Care,06-Jan-2014,2686729-2139669,"1,228.20",REDACTED - PAYMENT TO INDIVIDUAL,
Children and Adult Services,Head of Adults,Third Party Payments,470101,Purchase of Care,06-Jan-2014,2686733-2137546,"1,792.92",BISHOPSGATE LODGE.,
Children and Adult Services,Head of Adults,Third Party Payments,470101,Purchase of Care,06-Jan-2014,2686733-2137547,"1,792.92",BISHOPSGATE LODGE.,
Children and Adult Services,Head of Adults,Third Party Payments,470101,Purchase of Care,06-Jan-2014,2686733-2137549,"1,792.92",BISHOPSGATE LODGE.,
Children and Adult Services,Head of Adults,Third Party Payments,470101,Purchase of Care,06-Jan-2014,2686733-2137574,"1,792.92",BISHOPSGATE LODGE.,
Children and Adult Services,Head of Adults,Third Party Payments,470101,Purchase of Care,06-Jan-2014,2686733-2137578,"1,792.92",BISHOPSGATE LODGE.,
Children and Adult Services,Head of Adults,Third Party Payments,470101,Purchase of Care,06-Jan-2014,2686733-2137579,"1,792.92",BISHOPSGATE LODGE.,
Children and Adult Services,Head of Adults,Third Party Payments,470101,Purchase of Care,06-Jan-2014,2686733-2137580,"1,792.92",BISHOPSGATE LODGE.,
Children and Adult Services,Head of Adults,Third Party Payments,470101,Purchase of Care,06-Jan-2014,2686733-2137581,"1,792.92",BISHOPSGATE LODGE.,
Children and Adult Services,Head of Adults,Third Party Payments,470101,Purchase of Care,06-Jan-2014,2686733-2137582,"1,792.92",BISHOPSGATE LODGE.,
Children and Adult Services,Head of Adults,Third Party Payments,470101,Purchase of Care,06-Jan-2014,2686733-2138480,"1,882.44",BISHOPSGATE LODGE.,
Children and Adult Services,Head of Adults,Third Party Payments,474101,Purchase of Care,06-Jan-2014,2686733-2138482,"1,882.44",BISHOPSGATE LODGE.,
Children and Adult Services,Head of Adults,Third Party Payments,474101,Purchase of Care,06-Jan-2014,2686733-2138484,"1,882.44",BISHOPSGATE LODGE.,
Children and Adult Services,Head of Adults,Third Party Payments,474101,Purchase of Care,06-Jan-2014,2686733-2138486,"1,882.44",BISHOPSGATE LODGE.,
Children and Adult Services,Head of Adults,Third Party Payments,474101,Purchase of Care,06-Jan-2014,2686733-2138488,"1,882.44",BISHOPSGATE LODGE.,
Children and Adult Services,Head of Adults,Third Party Payments,474101,Purchase of Care,06-Jan-2014,2686733-2138490,"1,882.44",BISHOPSGATE LODGE.,
Children and Adult Services,Head of Adults,Third Party Payments,474101,Purchase of Care,06-Jan-2014,2686733-2138501,"1,882.44",BISHOPSGATE LODGE.,
Children and Adult Services,Head of Adults,Third Party Payments,474101,Purchase of Care,06-Jan-2014,2686733-2138538,"1,142.91",BISHOPSGATE LODGE.,
Children and Adult Services,Head of Adults,Third Party Payments,474101,Purchase of Care,06-Jan-2014,2686733-2138540,"1,882.44",BISHOPSGATE LODGE.,
Children and Adult Services,Head of Adults,Third Party Payments,474101,Purchase of Care,06-Jan-2014,2686733-2138542,"1,882.44",BISHOPSGATE LODGE.,
Children and Adult Services,Head of Adults,Third Party Payments,474101,Purchase of Care,06-Jan-2014,2686733-2138544,"1,882.44",BISHOPSGATE LODGE.,
Children and Adult Services,Head of Adults,Third Party Payments,474101,Purchase of Care,06-Jan-2014,2686733-2138548,"1,882.44",BISHOPSGATE LODGE.,
Children and Adult Services,Head of Adults,Third Party Payments,471101,Purchase of Care,06-Jan-2014,2686733-2140410,"1,863.80",BISHOPSGATE LODGE.,
Children and Adult Services,Head of Adults,Third Party Payments,471101,Purchase of Care,06-Jan-2014,2686733-2140411,"1,863.80",BISHOPSGATE LODGE.,
Children and Adult Services,Head of Adults,Third Party Payments,471101,Purchase of Care,06-Jan-2014,2686733-2140418,"1,863.80",BISHOPSGATE LODGE.,
Children and Adult Services,Head of Adults,Third Party Payments,471101,Purchase of Care,06-Jan-2014,2686733-2140419,"1,863.80",BISHOPSGATE LODGE.,
Children and Adult Services,Head of Adults,Third Party Payments,471101,Purchase of Care,06-Jan-2014,2686733-2140420,"1,863.80",BISHOPSGATE LODGE.,
Children and Adult Services,Head of Adults,Third Party Payments,470101,Purchase of Care,06-Jan-2014,2686733-2140746,"1,088.55",BISHOPSGATE LODGE.,
Children and Adult Services,Head of Adults,Third Party Payments,474101,Purchase of Care,06-Jan-2014,2686733-2140747,"1,842.10",BISHOPSGATE LODGE.,
Children and Adult Services,Head of Adults,Third Party Payments,474101,Purchase of Care,06-Jan-2014,2686733-2140749,"1,815.21",BISHOPSGATE LODGE.,
Children and Adult Services,Head of Adults,Third Party Payments,474101,Purchase of Care,06-Jan-2014,2686733-2140751,"1,882.44",BISHOPSGATE LODGE.,
Children and Adult Services,Head of Adults,Third Party Payments,474101,Purchase of Care,06-Jan-2014,2686733-2140753,"1,653.86",BISHOPSGATE LODGE.,
Children and Adult Services,Head of Adults,Third Party Payments,470101,Purchase of Care,06-Jan-2014,2686733-2140755,"1,792.92",BISHOPSGATE LODGE.,
Children and Adult Services,Head of Adults,Third Party Payments,472101,Purchase of Care,06-Jan-2014,2686736-1387731H,640.00,BOLTONSHAW HOMECARE.,
Children and Adult Services,Head of Adults,Third Party Payments,472101,Purchase of Care,06-Jan-2014,2686736-1388158H,"1,897.20",BOLTONSHAW HOMECARE.,
Children and Adult Services,Head of Adults,Third Party Payments,472101,Purchase of Care,06-Jan-2014,2686736-1389002H,840.00,BOLTONSHAW HOMECARE.,
Children and Adult Services,Head of Adults,Third Party Payments,474101,Purchase of Care,06-Jan-2014,2686740-2138639,"2,500.00",BOWES COURT CARE HOME.,
Children and Adult Services,Head of Adults,Third Party Payments,474101,Purchase of Care,06-Jan-2014,2686740-2138641,"4,800.00",BOWES COURT CARE HOME.,
Children and Adult Services,Head of Adults,Third Party Payments,474101,Purchase of Care,06-Jan-2014,2686740-2138643,"2,400.00",BOWES COURT CARE HOME.,
Children and Adult Services,Head of Adults,Third Party Payments,474101,Purchase of Care,06-Jan-2014,2686740-2138644,"1,885.71",BOWES COURT CARE HOME.,
Children and Adult Services,Head of Adults,Third Party Payments,470101,Purchase of Care,06-Jan-2014,2686740-2138960,"3,672.00",BOWES COURT CARE HOME.,
Children and Adult Services,Head of Adults,Third Party Payments,470101,Purchase of Care,06-Jan-2014,2686740-2138961,"4,444.00",BOWES COURT CARE HOME.,
Children and Adult Services,Head of Adults,Third Party Payments,470101,Purchase of Care,06-Jan-2014,2686740-2138962,"4,444.00",BOWES COURT CARE HOME.,
Children and Adult Services,Head of Adults,Third Party Payments,470101,Purchase of Care,06-Jan-2014,2686740-2138963,"2,300.00",BOWES COURT CARE HOME.,
Children and Adult Services,Head of Adults,Third Party Payments,470101,Purchase of Care,06-Jan-2014,2686740-2138964,"5,082.00",BOWES COURT CARE HOME.,
Children and Adult Services,Head of Adults,Third Party Payments,474101,Purchase of Care,06-Jan-2014,2686740-2139163,"4,800.00",BOWES COURT CARE HOME.,
Children and Adult Services,Head of Adults,Third Party Payments,474101,Purchase of Care,06-Jan-2014,2686740-2139167,"2,525.00",BOWES COURT CARE HOME.,
Children and Adult Services,Head of Adults,Third Party Payments,470101,Purchase of Care,06-Jan-2014,2686742-2137522,"1,792.92",BRANCEPETH COURT.,
Children and Adult Services,Head of Adults,Third Party Payments,470101,Purchase of Care,06-Jan-2014,2686742-2137543,"1,792.92",BRANCEPETH COURT.,
Children and Adult Services,Head of Adults,Third Party Payments,470101,Purchase of Care,06-Jan-2014,2686742-2137569,"1,792.92",BRANCEPETH COURT.,
Children and Adult Services,Head of Adults,Third Party Payments,470101,Purchase of Care,06-Jan-2014,2686742-2137570,"1,792.92",BRANCEPETH COURT.,
Children and Adult Services,Head of Adults,Third Party Payments,470101,Purchase of Care,06-Jan-2014,2686742-2137571,"1,792.92",BRANCEPETH COURT.,
Children and Adult Services,Head of Adults,Third Party Payments,470101,Purchase of Care,06-Jan-2014,2686742-2137572,"1,792.92",BRANCEPETH COURT.,
Children and Adult Services,Head of Adults,Third Party Payments,470101,Purchase of Care,06-Jan-2014,2686742-2137573,"1,792.92",BRANCEPETH COURT.,
Children and Adult Services,Head of Adults,Third Party Payments,470101,Purchase of Care,06-Jan-2014,2686742-2137593,"1,792.92",BRANCEPETH COURT.,
Children and Adult Services,Head of Adults,Third Party Payments,474101,Purchase of Care,06-Jan-2014,2686742-2138527,"1,882.44",BRANCEPETH COURT.,
Children and Adult Services,Head of Adults,Third Party Payments,474101,Purchase of Care,06-Jan-2014,2686742-2138529,"1,882.44",BRANCEPETH COURT.,
Children and Adult Services,Head of Adults,Third Party Payments,474101,Purchase of Care,06-Jan-2014,2686742-2138531,"1,882.44",BRANCEPETH COURT.,
Children and Adult Services,Head of Adults,Third Party Payments,474101,Purchase of Care,06-Jan-2014,2686742-2138533,"1,882.44",BRANCEPETH COURT.,
Children and Adult Services,Head of Adults,Third Party Payments,474101,Purchase of Care,06-Jan-2014,2686742-2138571,"1,882.44",BRANCEPETH COURT.,
Children and Adult Services,Head of Adults,Third Party Payments,474101,Purchase of Care,06-Jan-2014,2686742-2138573,"1,966.44",BRANCEPETH COURT.,
Children and Adult Services,Head of Adults,Third Party Payments,470101,Purchase of Care,06-Jan-2014,2686742-2139149,"1,854.68",BRANCEPETH COURT.,
Children and Adult Services,Head of Adults,Third Party Payments,470101,Purchase of Care,06-Jan-2014,2686742-2139151,"1,854.68",BRANCEPETH COURT.,
Children and Adult Services,Head of Adults,Third Party Payments,470101,Purchase of Care,06-Jan-2014,2686742-2139152,"1,854.68",BRANCEPETH COURT.,
Children and Adult Services,Head of Adults,Third Party Payments,470101,Purchase of Care,06-Jan-2014,2686742-2139153,"1,854.68",BRANCEPETH COURT.,
Children and Adult Services,Head of Adults,Third Party Payments,470101,Purchase of Care,06-Jan-2014,2686742-2139154,"1,854.68",BRANCEPETH COURT.,
Children and Adult Services,Head of Adults,Third Party Payments,470101,Purchase of Care,06-Jan-2014,2686742-2139155,"1,854.68",BRANCEPETH COURT.,
Children and Adult Services,Head of Adults,Third Party Payments,470101,Purchase of Care,06-Jan-2014,2686742-2139156,"1,854.68",BRANCEPETH COURT.,
Children and Adult Services,Head of Adults,Third Party Payments,470101,Purchase of Care,06-Jan-2014,2686742-2139157,"1,854.68",BRANCEPETH COURT.,
Children and Adult Services,Head of Adults,Third Party Payments,474101,Purchase of Care,06-Jan-2014,2686742-2139180,"1,890.96",BRANCEPETH COURT.,
Children and Adult Services,Head of Adults,Third Party Payments,470101,Purchase of Care,06-Jan-2014,2686742-2140727,704.36,BRANCEPETH COURT.,
Children and Adult Services,Head of Adults,Third Party Payments,474101,Purchase of Care,06-Jan-2014,2686742-2140775,"1,075.68",BRANCEPETH COURT.,
Children and Adult Services,Head of Adults,Third Party Payments,470101,Purchase of Care,06-Jan-2014,2686742-2140812,896.46,BRANCEPETH COURT.,
Children and Adult Services,Head of Adults,Transfer Payments,515201,Social Services Clients,06-Jan-2014,2686744-1390394H,"2,156.52",REDACTED - PAYMENT TO INDIVIDUAL,
Children and Adult Services,Head of Adults,Transfer Payments,515201,Social Services Clients,06-Jan-2014,2686745-1387524H,"1,209.56",REDACTED - PAYMENT TO INDIVIDUAL,
Children and Adult Services,Head of Adults,Transfer Payments,515209,Social Services Clients,06-Jan-2014,2686747-1388727D,"1,969.60",REDACTED - PAYMENT TO INDIVIDUAL,
Children and Adult Services,Head of Adults,Transfer Payments,515201,Social Services Clients,06-Jan-2014,2686748-1386764H,"7,129.04",REDACTED - PAYMENT TO INDIVIDUAL,
Children and Adult Services,Head of Adults,Transfer Payments,515201,Social Services Clients,06-Jan-2014,2686749-1392185H,643.24,REDACTED - PAYMENT TO INDIVIDUAL,
Children and Adult Services,Head of Adults,Third Party Payments,470101,Purchase of Care,06-Jan-2014,2686751-2139044,"2,176.56",BRIDGEWOOD TRUST LTD.,
Children and Adult Services,Head of Adults,Third Party Payments,470101,Purchase of Care,06-Jan-2014,2686753-2137263,"1,306.92",BROOMHOUSE CARE LTD.,
Children and Adult Services,Head of Adults,Third Party Payments,470101,Purchase of Care,06-Jan-2014,2686753-2137324,"1,180.57",BROOMHOUSE CARE LTD.,
Children and Adult Services,Head of Adults,Third Party Payments,470101,Purchase of Care,06-Jan-2014,2686753-2137421,"1,088.55",BROOMHOUSE CARE LTD.,
Children and Adult Services,Head of Adults,Third Party Payments,470101,Purchase of Care,06-Jan-2014,2686753-2137422,"1,792.92",BROOMHOUSE CARE LTD.,
Children and Adult Services,Head of Adults,Third Party Payments,470101,Purchase of Care,06-Jan-2014,2686753-2137423,"1,214.92",BROOMHOUSE CARE LTD.,
Children and Adult Services,Head of Adults,Third Party Payments,470101,Purchase of Care,06-Jan-2014,2686753-2137424,"1,792.92",BROOMHOUSE CARE LTD.,
Children and Adult Services,Head of Adults,Third Party Payments,470101,Purchase of Care,06-Jan-2014,2686753-2137425,"1,306.92",BROOMHOUSE CARE LTD.,
Children and Adult Services,Head of Adults,Third Party Payments,470101,Purchase of Care,06-Jan-2014,2686753-2137426,"1,306.92",BROOMHOUSE CARE LTD.,
Children and Adult Services,Head of Adults,Third Party Payments,471101,Purchase of Care,06-Jan-2014,2686753-2140315,"1,417.80",BROOMHOUSE CARE LTD.,
Children and Adult Services,Head of Adults,Third Party Payments,471101,Purchase of Care,06-Jan-2014,2686753-2140316,"1,250.60",BROOMHOUSE CARE LTD.,
Children and Adult Services,Head of Adults,Third Party Payments,471101,Purchase of Care,06-Jan-2014,2686753-2140342,"1,863.80",BROOMHOUSE CARE LTD.,
Children and Adult Services,Head of Adults,Third Party Payments,471101,Purchase of Care,06-Jan-2014,2686753-2140374,"1,863.80",BROOMHOUSE CARE LTD.,
Children and Adult Services,Head of Adults,Third Party Payments,471101,Purchase of Care,06-Jan-2014,2686753-2140375,"1,863.80",BROOMHOUSE CARE LTD.,
Children and Adult Services,Head of Adults,Third Party Payments,471101,Purchase of Care,06-Jan-2014,2686753-2140376,"1,346.08",BROOMHOUSE CARE LTD.,
Children and Adult Services,Head of Adults,Third Party Payments,471101,Purchase of Care,06-Jan-2014,2686753-2140377,"1,066.92",BROOMHOUSE CARE LTD.,
Children and Adult Services,Head of Adults,Third Party Payments,471101,Purchase of Care,06-Jan-2014,2686753-2140957,"1,863.80",BROOMHOUSE CARE LTD.,
Children and Adult Services,Head of Adults,Third Party Payments,478101,Purchase of Care,06-Jan-2014,2686754-1387476H,"2,919.08",BROTHERS OF CHARITY.,
Children and Adult Services,Head of Adults,Third Party Payments,474101,Purchase of Care,06-Jan-2014,2686755-2139171,"1,635.32",BUPA CARE SERVICES.,
Children and Adult Services,Head of Adults,Third Party Payments,474101,Purchase of Care,06-Jan-2014,2686755-2139172,"1,950.52",BUPA CARE SERVICES.,
Children and Adult Services,Head of Adults,Third Party Payments,474101,Purchase of Care,06-Jan-2014,2686756-2139506,"1,656.00",BUPA CARE SERVICES.,
Children and Adult Services,Head of Adults,Third Party Payments,474101,Purchase of Care,06-Jan-2014,2686757-2139441,833.14,REDACTED - PAYMENT TO INDIVIDUAL,
Children and Adult Services,Head of Adults,Transfer Payments,515209,Social Services Clients,06-Jan-2014,2686760-1387115D,739.08,REDACTED - PAYMENT TO INDIVIDUAL,
Children and Adult Services,Head of Adults,Third Party Payments,478101,Purchase of Care,06-Jan-2014,2686761-2140805,"1,405.25",REDACTED - PAYMENT TO INDIVIDUAL,
Children and Adult Services,Head of Adults,Transfer Payments,515209,Social Services Clients,06-Jan-2014,2686763-1388805D,595.20,REDACTED - PAYMENT TO INDIVIDUAL,
Children and Adult Services,Head of Adults,Third Party Payments,472101,Purchase of Care,06-Jan-2014,2686765-1389452H,828.17,CARE CONCERN (DURHAM) LTD.,
Children and Adult Services,Head of Adults,Third Party Payments,472101,Purchase of Care,06-Jan-2014,2686765-1389489H,576.72,CARE CONCERN (DURHAM) LTD.,
Children and Adult Services,Head of Adults,Third Party Payments,472101,Purchase of Care,06-Jan-2014,2686765-1389674H,"1,424.25",CARE CONCERN (DURHAM) LTD.,
Children and Adult Services,Head of Adults,Third Party Payments,472101,Purchase of Care,06-Jan-2014,2686765-1390053H,538.04,CARE CONCERN (DURHAM) LTD.,
Children and Adult Services,Head of Adults,Third Party Payments,472101,Purchase of Care,06-Jan-2014,2686765-1391483H,"1,118.32",CARE CONCERN (DURHAM) LTD.,
Children and Adult Services,Head of Adults,Third Party Payments,472101,Purchase of Care,06-Jan-2014,2686765-1391715H,"1,305.55",CARE CONCERN (DURHAM) LTD.,
Children and Adult Services,Head of Adults,Third Party Payments,470101,Purchase of Care,06-Jan-2014,2686766-2136324,"2,320.44",CARE CONCERN GB LTD.,
Children and Adult Services,Head of Adults,Third Party Payments,474101,Purchase of Care,06-Jan-2014,2686767-2139158,"3,908.00",CARELINE LIFESTYLES LTD.,
Children and Adult Services,Head of Adults,Third Party Payments,474101,Purchase of Care,06-Jan-2014,2686767-2139159,"4,600.00",CARELINE LIFESTYLES LTD.,
Children and Adult Services,Head of Adults,Third Party Payments,474101,Purchase of Care,06-Jan-2014,2686768-2138636,"2,808.00",CARELINE LIFESTYLES LTD.,
Children and Adult Services,Head of Adults,Third Party Payments,474101,Purchase of Care,06-Jan-2014,2686768-2139162,"4,800.00",CARELINE LIFESTYLES LTD.,
Children and Adult Services,Head of Adults,Third Party Payments,470101,Purchase of Care,06-Jan-2014,2686769-2138977,"2,461.68",CARELINE LIFESTYLES LTD.,
Children and Adult Services,Head of Adults,Third Party Payments,472101,Purchase of Care,06-Jan-2014,2686770-1386567H,554.50,CAREWATCH (DURHAM & EASINGTON) FASTFLOW ACC.,
Children and Adult Services,Head of Adults,Third Party Payments,478101,Purchase of Care,06-Jan-2014,2686770-1386710H,"1,056.00",CAREWATCH (DURHAM & EASINGTON) FASTFLOW ACC.,
Children and Adult Services,Head of Adults,Third Party Payments,478101,Purchase of Care,06-Jan-2014,2686770-1386959H,"2,482.76",CAREWATCH (DURHAM & EASINGTON) FASTFLOW ACC.,
Children and Adult Services,Head of Adults,Third Party Payments,478101,Purchase of Care,06-Jan-2014,2686770-1386979H,902.00,CAREWATCH (DURHAM & EASINGTON) FASTFLOW ACC.,
Children and Adult Services,Head of Adults,Third Party Payments,478101,Purchase of Care,06-Jan-2014,2686770-1387018H,"1,320.00",CAREWATCH (DURHAM & EASINGTON) FASTFLOW ACC.,
Children and Adult Services,Head of Adults,Third Party Payments,478101,Purchase of Care,06-Jan-2014,2686770-1387022H,"2,483.04",CAREWATCH (DURHAM & EASINGTON) FASTFLOW ACC.,
Children and Adult Services,Head of Adults,Third Party Payments,478101,Purchase of Care,06-Jan-2014,2686770-1387058H,594.00,CAREWATCH (DURHAM & EASINGTON) FASTFLOW ACC.,
Children and Adult Services,Head of Adults,Third Party Payments,478101,Purchase of Care,06-Jan-2014,2686770-1387068H,924.00,CAREWATCH (DURHAM & EASINGTON) FASTFLOW ACC.,
Children and Adult Services,Head of Adults,Third Party Payments,478101,Purchase of Care,06-Jan-2014,2686770-1387088H,"1,210.00",CAREWATCH (DURHAM & EASINGTON) FASTFLOW ACC.,
Children and Adult Services,Head of Adults,Third Party Payments,478101,Purchase of Care,06-Jan-2014,2686770-1387106H,528.00,CAREWATCH (DURHAM & EASINGTON) FASTFLOW ACC.,
Children and Adult Services,Head of Adults,Third Party Payments,478101,Purchase of Care,06-Jan-2014,2686770-1387117H,880.00,CAREWATCH (DURHAM & EASINGTON) FASTFLOW ACC.,
Children and Adult Services,Head of Adults,Third Party Payments,478101,Purchase of Care,06-Jan-2014,2686770-1387122H,748.00,CAREWATCH (DURHAM & EASINGTON) FASTFLOW ACC.,
Children and Adult Services,Head of Adults,Third Party Payments,478101,Purchase of Care,06-Jan-2014,2686770-1387226H,"1,188.00",CAREWATCH (DURHAM & EASINGTON) FASTFLOW ACC.,
Children and Adult Services,Head of Adults,Third Party Payments,472101,Purchase of Care,06-Jan-2014,2686770-1387273H,587.77,CAREWATCH (DURHAM & EASINGTON) FASTFLOW ACC.,
Children and Adult Services,Head of Adults,Third Party Payments,472101,Purchase of Care,06-Jan-2014,2686770-1387279H,"1,508.24",CAREWATCH (DURHAM & EASINGTON) FASTFLOW ACC.,
Children and Adult Services,Head of Adults,Third Party Payments,472101,Purchase of Care,06-Jan-2014,2686770-1387282H,887.20,CAREWATCH (DURHAM & EASINGTON) FASTFLOW ACC.,
Children and Adult Services,Head of Adults,Third Party Payments,472101,Purchase of Care,06-Jan-2014,2686770-1387299H,870.58,CAREWATCH (DURHAM & EASINGTON) FASTFLOW ACC.,
Children and Adult Services,Head of Adults,Third Party Payments,472101,Purchase of Care,06-Jan-2014,2686770-1387308H,526.78,CAREWATCH (DURHAM & EASINGTON) FASTFLOW ACC.,
Children and Adult Services,Head of Adults,Third Party Payments,472101,Purchase of Care,06-Jan-2014,2686770-1387309H,"1,497.16",CAREWATCH (DURHAM & EASINGTON) FASTFLOW ACC.,
Children and Adult Services,Head of Adults,Third Party Payments,472101,Purchase of Care,06-Jan-2014,2686770-1387322H,853.92,CAREWATCH (DURHAM & EASINGTON) FASTFLOW ACC.,
Children and Adult Services,Head of Adults,Third Party Payments,472101,Purchase of Care,06-Jan-2014,2686770-1387356H,887.20,CAREWATCH (DURHAM & EASINGTON) FASTFLOW ACC.,
Children and Adult Services,Head of Adults,Third Party Payments,472101,Purchase of Care,06-Jan-2014,2686770-1387732H,521.24,CAREWATCH (DURHAM & EASINGTON) FASTFLOW ACC.,
Children and Adult Services,Head of Adults,Third Party Payments,472101,Purchase of Care,06-Jan-2014,2686770-1387812H,767.05,CAREWATCH (DURHAM & EASINGTON) FASTFLOW ACC.,
Children and Adult Services,Head of Adults,Third Party Payments,478101,Purchase of Care,06-Jan-2014,2686770-1387820H,"1,801.04",CAREWATCH (DURHAM & EASINGTON) FASTFLOW ACC.,
Children and Adult Services,Head of Adults,Third Party Payments,472101,Purchase of Care,06-Jan-2014,2686770-1387833H,547.10,CAREWATCH (DURHAM & EASINGTON) FASTFLOW ACC.,
Children and Adult Services,Head of Adults,Third Party Payments,472101,Purchase of Care,06-Jan-2014,2686770-1387838H,554.52,CAREWATCH (DURHAM & EASINGTON) FASTFLOW ACC.,
Children and Adult Services,Head of Adults,Third Party Payments,472101,Purchase of Care,06-Jan-2014,2686770-1387918H,591.48,CAREWATCH (DURHAM & EASINGTON) FASTFLOW ACC.,
Children and Adult Services,Head of Adults,Third Party Payments,472101,Purchase of Care,06-Jan-2014,2686770-1387960H,"1,338.20",CAREWATCH (DURHAM & EASINGTON) FASTFLOW ACC.,
Children and Adult Services,Head of Adults,Third Party Payments,478101,Purchase of Care,06-Jan-2014,2686770-1387969H,682.00,CAREWATCH (DURHAM & EASINGTON) FASTFLOW ACC.,
Children and Adult Services,Head of Adults,Third Party Payments,478101,Purchase of Care,06-Jan-2014,2686770-1388041H,"1,672.00",CAREWATCH (DURHAM & EASINGTON) FASTFLOW ACC.,
Children and Adult Services,Head of Adults,Third Party Payments,472101,Purchase of Care,06-Jan-2014,2686770-1388350H,"1,574.80",CAREWATCH (DURHAM & EASINGTON) FASTFLOW ACC.,
Children and Adult Services,Head of Adults,Third Party Payments,472101,Purchase of Care,06-Jan-2014,2686770-1388386H,"2,972.12",CAREWATCH (DURHAM & EASINGTON) FASTFLOW ACC.,
Children and Adult Services,Head of Adults,Third Party Payments,472101,Purchase of Care,06-Jan-2014,2686770-1388430H,526.78,CAREWATCH (DURHAM & EASINGTON) FASTFLOW ACC.,
Children and Adult Services,Head of Adults,Third Party Payments,472101,Purchase of Care,06-Jan-2014,2686770-1388667H,"1,131.20",CAREWATCH (DURHAM & EASINGTON) FASTFLOW ACC.,
Children and Adult Services,Head of Adults,Third Party Payments,472101,Purchase of Care,06-Jan-2014,2686770-1388694H,549.88,CAREWATCH (DURHAM & EASINGTON) FASTFLOW ACC.,
Children and Adult Services,Head of Adults,Third Party Payments,472101,Purchase of Care,06-Jan-2014,2686770-1388703H,"1,585.87",CAREWATCH (DURHAM & EASINGTON) FASTFLOW ACC.,
Children and Adult Services,Head of Adults,Third Party Payments,472101,Purchase of Care,06-Jan-2014,2686770-1388704H,597.01,CAREWATCH (DURHAM & EASINGTON) FASTFLOW ACC.,
Children and Adult Services,Head of Adults,Third Party Payments,472101,Purchase of Care,06-Jan-2014,2686770-1388732H,776.32,CAREWATCH (DURHAM & EASINGTON) FASTFLOW ACC.,
Children and Adult Services,Head of Adults,Third Party Payments,472101,Purchase of Care,06-Jan-2014,2686770-1388753H,690.36,CAREWATCH (DURHAM & EASINGTON) FASTFLOW ACC.,
Children and Adult Services,Head of Adults,Third Party Payments,472101,Purchase of Care,06-Jan-2014,2686770-1388758H,665.40,CAREWATCH (DURHAM & EASINGTON) FASTFLOW ACC.,
Children and Adult Services,Head of Adults,Third Party Payments,472101,Purchase of Care,06-Jan-2014,2686770-1388963H,820.68,CAREWATCH (DURHAM & EASINGTON) FASTFLOW ACC.,
Children and Adult Services,Head of Adults,Third Party Payments,472101,Purchase of Care,06-Jan-2014,2686770-1388991H,532.32,CAREWATCH (DURHAM & EASINGTON) FASTFLOW ACC.,
Children and Adult Services,Head of Adults,Third Party Payments,472101,Purchase of Care,06-Jan-2014,2686770-1389009H,510.16,CAREWATCH (DURHAM & EASINGTON) FASTFLOW ACC.,
Children and Adult Services,Head of Adults,Third Party Payments,472101,Purchase of Care,06-Jan-2014,2686770-1389011H,665.40,CAREWATCH (DURHAM & EASINGTON) FASTFLOW ACC.,
Children and Adult Services,Head of Adults,Third Party Payments,472101,Purchase of Care,06-Jan-2014,2686770-1389037H,754.12,CAREWATCH (DURHAM & EASINGTON) FASTFLOW ACC.,
Children and Adult Services,Head of Adults,Third Party Payments,472101,Purchase of Care,06-Jan-2014,2686770-1389085H,"1,072.04",CAREWATCH (DURHAM & EASINGTON) FASTFLOW ACC.,
Children and Adult Services,Head of Adults,Third Party Payments,478101,Purchase of Care,06-Jan-2014,2686770-1389146H,"1,430.00",CAREWATCH (DURHAM & EASINGTON) FASTFLOW ACC.,
Children and Adult Services,Head of Adults,Third Party Payments,472101,Purchase of Care,06-Jan-2014,2686770-1389179H,"2,240.18",CAREWATCH (DURHAM & EASINGTON) FASTFLOW ACC.,
Children and Adult Services,Head of Adults,Third Party Payments,478101,Purchase of Care,06-Jan-2014,2686770-1389240H,"1,096.76",CAREWATCH (DURHAM & EASINGTON) FASTFLOW ACC.,
Children and Adult Services,Head of Adults,Third Party Payments,478101,Purchase of Care,06-Jan-2014,2686770-1389276H,924.00,CAREWATCH (DURHAM & EASINGTON) FASTFLOW ACC.,
Children and Adult Services,Head of Adults,Third Party Payments,472101,Purchase of Care,06-Jan-2014,2686770-1389305H,643.24,CAREWATCH (DURHAM & EASINGTON) FASTFLOW ACC.,
Children and Adult Services,Head of Adults,Third Party Payments,472101,Purchase of Care,06-Jan-2014,2686770-1389337H,"1,301.24",CAREWATCH (DURHAM & EASINGTON) FASTFLOW ACC.,
Children and Adult Services,Head of Adults,Third Party Payments,478101,Purchase of Care,06-Jan-2014,2686770-1389346H,"1,298.00",CAREWATCH (DURHAM & EASINGTON) FASTFLOW ACC.,
Children and Adult Services,Head of Adults,Third Party Payments,472101,Purchase of Care,06-Jan-2014,2686770-1389374H,"1,397.36",CAREWATCH (DURHAM & EASINGTON) FASTFLOW ACC.,
Children and Adult Services,Head of Adults,Third Party Payments,472101,Purchase of Care,06-Jan-2014,2686770-1389380H,"1,397.36",CAREWATCH (DURHAM & EASINGTON) FASTFLOW ACC.,
Children and Adult Services,Head of Adults,Third Party Payments,472101,Purchase of Care,06-Jan-2014,2686770-1389382H,765.20,CAREWATCH (DURHAM & EASINGTON) FASTFLOW ACC.,
Children and Adult Services,Head of Adults,Third Party Payments,472101,Purchase of Care,06-Jan-2014,2686770-1389472H,"1,086.84",CAREWATCH (DURHAM & EASINGTON) FASTFLOW ACC.,
Children and Adult Services,Head of Adults,Third Party Payments,472101,Purchase of Care,06-Jan-2014,2686770-1389498H,784.62,CAREWATCH (DURHAM & EASINGTON) FASTFLOW ACC.,
Children and Adult Services,Head of Adults,Third Party Payments,472101,Purchase of Care,06-Jan-2014,2686770-1389580H,887.20,CAREWATCH (DURHAM & EASINGTON) FASTFLOW ACC.,
Children and Adult Services,Head of Adults,Third Party Payments,472101,Purchase of Care,06-Jan-2014,2686770-1389593H,"1,197.72",CAREWATCH (DURHAM & EASINGTON) FASTFLOW ACC.,
Children and Adult Services,Head of Adults,Third Party Payments,472101,Purchase of Care,06-Jan-2014,2686770-1389604H,"1,020.00",CAREWATCH (DURHAM & EASINGTON) FASTFLOW ACC.,
Children and Adult Services,Head of Adults,Third Party Payments,472101,Purchase of Care,06-Jan-2014,2686770-1389606H,654.32,CAREWATCH (DURHAM & EASINGTON) FASTFLOW ACC.,
Children and Adult Services,Head of Adults,Third Party Payments,472101,Purchase of Care,06-Jan-2014,2686770-1389627H,961.12,CAREWATCH (DURHAM & EASINGTON) FASTFLOW ACC.,
Children and Adult Services,Head of Adults,Third Party Payments,472101,Purchase of Care,06-Jan-2014,2686770-1389698H,"1,168.16",CAREWATCH (DURHAM & EASINGTON) FASTFLOW ACC.,
Children and Adult Services,Head of Adults,Third Party Payments,472101,Purchase of Care,06-Jan-2014,2686770-1389731H,540.64,CAREWATCH (DURHAM & EASINGTON) FASTFLOW ACC.,
Children and Adult Services,Head of Adults,Third Party Payments,472101,Purchase of Care,06-Jan-2014,2686770-1389785H,770.76,CAREWATCH (DURHAM & EASINGTON) FASTFLOW ACC.,
Children and Adult Services,Head of Adults,Third Party Payments,472101,Purchase of Care,06-Jan-2014,2686770-1389794H,543.40,CAREWATCH (DURHAM & EASINGTON) FASTFLOW ACC.,
Children and Adult Services,Head of Adults,Third Party Payments,472101,Purchase of Care,06-Jan-2014,2686770-1390027H,665.40,CAREWATCH (DURHAM & EASINGTON) FASTFLOW ACC.,
Children and Adult Services,Head of Adults,Third Party Payments,472101,Purchase of Care,06-Jan-2014,2686770-1390056H,"1,635.79",CAREWATCH (DURHAM & EASINGTON) FASTFLOW ACC.,
Children and Adult Services,Head of Adults,Third Party Payments,478101,Purchase of Care,06-Jan-2014,2686770-1390107H,"1,980.00",CAREWATCH (DURHAM & EASINGTON) FASTFLOW ACC.,
Children and Adult Services,Head of Adults,Third Party Payments,472101,Purchase of Care,06-Jan-2014,2686770-1390165H,853.92,CAREWATCH (DURHAM & EASINGTON) FASTFLOW ACC.,
Children and Adult Services,Head of Adults,Third Party Payments,472101,Purchase of Care,06-Jan-2014,2686770-1390202H,532.32,CAREWATCH (DURHAM & EASINGTON) FASTFLOW ACC.,
Children and Adult Services,Head of Adults,Third Party Payments,472101,Purchase of Care,06-Jan-2014,2686770-1390308H,517.52,CAREWATCH (DURHAM & EASINGTON) FASTFLOW ACC.,
Children and Adult Services,Head of Adults,Third Party Payments,472101,Purchase of Care,06-Jan-2014,2686770-1390610H,646.92,CAREWATCH (DURHAM & EASINGTON) FASTFLOW ACC.,
Children and Adult Services,Head of Adults,Third Party Payments,472101,Purchase of Care,06-Jan-2014,2686770-1390630H,"1,619.15",CAREWATCH (DURHAM & EASINGTON) FASTFLOW ACC.,
Children and Adult Services,Head of Adults,Third Party Payments,472101,Purchase of Care,06-Jan-2014,2686770-1390707H,"1,508.24",CAREWATCH (DURHAM & EASINGTON) FASTFLOW ACC.,
Children and Adult Services,Head of Adults,Third Party Payments,472101,Purchase of Care,06-Jan-2014,2686770-1390813H,931.56,CAREWATCH (DURHAM & EASINGTON) FASTFLOW ACC.,
Children and Adult Services,Head of Adults,Third Party Payments,472101,Purchase of Care,06-Jan-2014,2686770-1390844H,745.81,CAREWATCH (DURHAM & EASINGTON) FASTFLOW ACC.,
Children and Adult Services,Head of Adults,Third Party Payments,472101,Purchase of Care,06-Jan-2014,2686770-1391023H,665.40,CAREWATCH (DURHAM & EASINGTON) FASTFLOW ACC.,
Children and Adult Services,Head of Adults,Third Party Payments,472101,Purchase of Care,06-Jan-2014,2686770-1391165H,643.24,CAREWATCH (DURHAM & EASINGTON) FASTFLOW ACC.,
Children and Adult Services,Head of Adults,Third Party Payments,472101,Purchase of Care,06-Jan-2014,2686770-1391181H,787.40,CAREWATCH (DURHAM & EASINGTON) FASTFLOW ACC.,
Children and Adult Services,Head of Adults,Third Party Payments,472101,Purchase of Care,06-Jan-2014,2686770-1391295H,528.64,CAREWATCH (DURHAM & EASINGTON) FASTFLOW ACC.,
Children and Adult Services,Head of Adults,Third Party Payments,472101,Purchase of Care,06-Jan-2014,2686770-1391351H,580.37,CAREWATCH (DURHAM & EASINGTON) FASTFLOW ACC.,
Children and Adult Services,Head of Adults,Third Party Payments,472101,Purchase of Care,06-Jan-2014,2686770-1391474H,748.59,CAREWATCH (DURHAM & EASINGTON) FASTFLOW ACC.,
Children and Adult Services,Head of Adults,Third Party Payments,472101,Purchase of Care,06-Jan-2014,2686770-1391558H,554.49,CAREWATCH (DURHAM & EASINGTON) FASTFLOW ACC.,
Children and Adult Services,Head of Adults,Third Party Payments,472101,Purchase of Care,06-Jan-2014,2686770-1391578H,731.96,CAREWATCH (DURHAM & EASINGTON) FASTFLOW ACC.,
Children and Adult Services,Head of Adults,Third Party Payments,472101,Purchase of Care,06-Jan-2014,2686770-1391622H,931.56,CAREWATCH (DURHAM & EASINGTON) FASTFLOW ACC.,
Children and Adult Services,Head of Adults,Third Party Payments,472101,Purchase of Care,06-Jan-2014,2686770-1391769H,754.12,CAREWATCH (DURHAM & EASINGTON) FASTFLOW ACC.,
Children and Adult Services,Head of Adults,Third Party Payments,472101,Purchase of Care,06-Jan-2014,2686770-1391780H,931.56,CAREWATCH (DURHAM & EASINGTON) FASTFLOW ACC.,
Children and Adult Services,Head of Adults,Third Party Payments,472101,Purchase of Care,06-Jan-2014,2686770-1391795H,643.24,CAREWATCH (DURHAM & EASINGTON) FASTFLOW ACC.,
Children and Adult Services,Head of Adults,Third Party Payments,472101,Purchase of Care,06-Jan-2014,2686770-1391809H,621.04,CAREWATCH (DURHAM & EASINGTON) FASTFLOW ACC.,
Children and Adult Services,Head of Adults,Third Party Payments,472101,Purchase of Care,06-Jan-2014,2686770-1391826H,584.08,CAREWATCH (DURHAM & EASINGTON) FASTFLOW ACC.,
Children and Adult Services,Head of Adults,Third Party Payments,472101,Purchase of Care,06-Jan-2014,2686770-1391998H,609.96,CAREWATCH (DURHAM & EASINGTON) FASTFLOW ACC.,
Children and Adult Services,Head of Adults,Third Party Payments,472101,Purchase of Care,06-Jan-2014,2686770-1392079H,691.28,CAREWATCH (DURHAM & EASINGTON) FASTFLOW ACC.,
Children and Adult Services,Head of Adults,Third Party Payments,472101,Purchase of Care,06-Jan-2014,2686770-1392141H,741.18,CAREWATCH (DURHAM & EASINGTON) FASTFLOW ACC.,
Children and Adult Services,Head of Adults,Third Party Payments,472101,Purchase of Care,06-Jan-2014,2686770-1392157H,621.04,CAREWATCH (DURHAM & EASINGTON) FASTFLOW ACC.,
Children and Adult Services,Head of Adults,Third Party Payments,472101,Purchase of Care,06-Jan-2014,2686770-1392310H,879.80,CAREWATCH (DURHAM & EASINGTON) FASTFLOW ACC.,
Children and Adult Services,Head of Adults,Third Party Payments,472101,Purchase of Care,06-Jan-2014,2686770-1392408H,517.52,CAREWATCH (DURHAM & EASINGTON) FASTFLOW ACC.,
Children and Adult Services,Head of Adults,Third Party Payments,472101,Purchase of Care,06-Jan-2014,2686770-1392493H,558.20,CAREWATCH (DURHAM & EASINGTON) FASTFLOW ACC.,
Children and Adult Services,Head of Adults,Third Party Payments,472101,Purchase of Care,06-Jan-2014,2686770-1392496H,595.16,CAREWATCH (DURHAM & EASINGTON) FASTFLOW ACC.,
Children and Adult Services,Head of Adults,Third Party Payments,472101,Purchase of Care,06-Jan-2014,2686770-1392626H,798.48,CAREWATCH (DURHAM & EASINGTON) FASTFLOW ACC.,
Children and Adult Services,Head of Adults,Third Party Payments,472101,Purchase of Care,06-Jan-2014,2686770-1392669H,720.84,CAREWATCH (DURHAM & EASINGTON) FASTFLOW ACC.,
Children and Adult Services,Head of Adults,Third Party Payments,472101,Purchase of Care,06-Jan-2014,2686770-1392705H,"1,535.97",CAREWATCH (DURHAM & EASINGTON) FASTFLOW ACC.,
Children and Adult Services,Head of Adults,Third Party Payments,472101,Purchase of Care,06-Jan-2014,2686770-1392800H,598.88,CAREWATCH (DURHAM & EASINGTON) FASTFLOW ACC.,
Children and Adult Services,Head of Adults,Third Party Payments,472101,Purchase of Care,06-Jan-2014,2686770-1392927H,532.32,CAREWATCH (DURHAM & EASINGTON) FASTFLOW ACC.,
Children and Adult Services,Head of Adults,Third Party Payments,472101,Purchase of Care,06-Jan-2014,2686770-1393031H,628.44,CAREWATCH (DURHAM & EASINGTON) FASTFLOW ACC.,
Children and Adult Services,Head of Adults,Third Party Payments,472101,Purchase of Care,06-Jan-2014,2686770-1393046H,517.52,CAREWATCH (DURHAM & EASINGTON) FASTFLOW ACC.,
Children and Adult Services,Head of Adults,Third Party Payments,472101,Purchase of Care,06-Jan-2014,2686770-1393225H,"1,552.60",CAREWATCH (DURHAM & EASINGTON) FASTFLOW ACC.,
Children and Adult Services,Head of Adults,Third Party Payments,472101,Purchase of Care,06-Jan-2014,2686770-1393472H,677.42,CAREWATCH (DURHAM & EASINGTON) FASTFLOW ACC.,
Children and Adult Services,Head of Adults,Transfer Payments,515201,Social Services Clients,06-Jan-2014,2686775-1389758H,"1,424.24",REDACTED - PAYMENT TO INDIVIDUAL,
Children and Adult Services,Head of Adults,Transfer Payments,515201,Social Services Clients,06-Jan-2014,2686776-1388148H,"1,680.00",REDACTED - PAYMENT TO INDIVIDUAL,
Children and Adult Services,Head of Adults,Transfer Payments,515201,Social Services Clients,06-Jan-2014,2686776-1388149H,"3,632.00",REDACTED - PAYMENT TO INDIVIDUAL,
Children and Adult Services,Head of Adults,Transfer Payments,515201,Social Services Clients,06-Jan-2014,2686778-1390635H,635.60,REDACTED - PAYMENT TO INDIVIDUAL,
Children and Adult Services,Head of Adults,Transfer Payments,515201,Social Services Clients,06-Jan-2014,2686779-1388844H,552.28,REDACTED - PAYMENT TO INDIVIDUAL,
Children and Adult Services,Head of Adults,Transfer Payments,515201,Social Services Clients,06-Jan-2014,2686781-1387516H,"1,772.40",REDACTED - PAYMENT TO INDIVIDUAL,
Children and Adult Services,Head of Adults,Transfer Payments,515201,Social Services Clients,06-Jan-2014,2686782-1391794H,"1,611.72",REDACTED - PAYMENT TO INDIVIDUAL,
Children and Adult Services,Head of Adults,Third Party Payments,472101,Purchase of Care,06-Jan-2014,2686784-1388572H,949.52,CASTLE CARE TEESDALE LTD.,
Children and Adult Services,Head of Adults,Third Party Payments,472101,Purchase of Care,06-Jan-2014,2686784-1390607H,636.12,CASTLE CARE TEESDALE LTD.,
Children and Adult Services,Head of Adults,Third Party Payments,472101,Purchase of Care,06-Jan-2014,2686784-1391028H,896.76,CASTLE CARE TEESDALE LTD.,
Children and Adult Services,Head of Adults,Third Party Payments,472101,Purchase of Care,06-Jan-2014,2686784-1391071H,"1,455.92",CASTLE CARE TEESDALE LTD.,
Children and Adult Services,Head of Adults,Third Party Payments,472101,Purchase of Care,06-Jan-2014,2686784-1392882H,625.28,CASTLE CARE TEESDALE LTD.,
Children and Adult Services,Head of Adults,Transfer Payments,515201,Social Services Clients,06-Jan-2014,2686785-1390986H,"2,497.00",REDACTED - PAYMENT TO INDIVIDUAL,
Children and Adult Services,Head of Adults,Transfer Payments,515201,Social Services Clients,06-Jan-2014,2686790-1390431H,738.52,REDACTED - PAYMENT TO INDIVIDUAL,
Children and Adult Services,Head of Adults,Transfer Payments,515201,Social Services Clients,06-Jan-2014,2686792-1386736H,"1,327.96",REDACTED - PAYMENT TO INDIVIDUAL,
Children and Adult Services,Head of Adults,Transfer Payments,515201,Social Services Clients,06-Jan-2014,2686794-1390994H,696.32,REDACTED - PAYMENT TO INDIVIDUAL,
Children and Adult Services,Head of Adults,Transfer Payments,515201,Social Services Clients,06-Jan-2014,2686796-1389091H,"1,866.16",REDACTED - PAYMENT TO INDIVIDUAL,
Children and Adult Services,Head of Adults,Transfer Payments,515201,Social Services Clients,06-Jan-2014,2686797-1389090H,844.00,REDACTED - PAYMENT TO INDIVIDUAL,
Children and Adult Services,Head of Adults,Third Party Payments,470101,Purchase of Care,06-Jan-2014,2686803-2136619,941.08,CHILTON CARE CENTRE.,
Children and Adult Services,Head of Adults,Third Party Payments,470101,Purchase of Care,06-Jan-2014,2686803-2136627,"1,002.44",CHILTON CARE CENTRE.,
Children and Adult Services,Head of Adults,Third Party Payments,470101,Purchase of Care,06-Jan-2014,2686803-2136629,"1,792.92",CHILTON CARE CENTRE.,
Children and Adult Services,Head of Adults,Third Party Payments,470101,Purchase of Care,06-Jan-2014,2686803-2136630,"1,792.92",CHILTON CARE CENTRE.,
Children and Adult Services,Head of Adults,Third Party Payments,470101,Purchase of Care,06-Jan-2014,2686803-2136631,"1,792.92",CHILTON CARE CENTRE.,
Children and Adult Services,Head of Adults,Third Party Payments,470101,Purchase of Care,06-Jan-2014,2686803-2136632,"1,053.00",CHILTON CARE CENTRE.,
Children and Adult Services,Head of Adults,Third Party Payments,470101,Purchase of Care,06-Jan-2014,2686803-2136633,"1,271.80",CHILTON CARE CENTRE.,
Children and Adult Services,Head of Adults,Third Party Payments,470101,Purchase of Care,06-Jan-2014,2686803-2136634,"1,792.92",CHILTON CARE CENTRE.,
Children and Adult Services,Head of Adults,Third Party Payments,470101,Purchase of Care,06-Jan-2014,2686803-2136635,"1,180.40",CHILTON CARE CENTRE.,
Children and Adult Services,Head of Adults,Third Party Payments,470101,Purchase of Care,06-Jan-2014,2686803-2136636,601.60,CHILTON CARE CENTRE.,
Children and Adult Services,Head of Adults,Third Party Payments,470101,Purchase of Care,06-Jan-2014,2686803-2136637,"1,305.16",CHILTON CARE CENTRE.,
Children and Adult Services,Head of Adults,Third Party Payments,470101,Purchase of Care,06-Jan-2014,2686803-2136638,"1,306.68",CHILTON CARE CENTRE.,
Children and Adult Services,Head of Adults,Third Party Payments,470101,Purchase of Care,06-Jan-2014,2686803-2136639,"1,306.92",CHILTON CARE CENTRE.,
Children and Adult Services,Head of Adults,Third Party Payments,470101,Purchase of Care,06-Jan-2014,2686803-2136640,"1,792.92",CHILTON CARE CENTRE.,
Children and Adult Services,Head of Adults,Third Party Payments,470101,Purchase of Care,06-Jan-2014,2686803-2136641,"1,792.92",CHILTON CARE CENTRE.,
Children and Adult Services,Head of Adults,Third Party Payments,470101,Purchase of Care,06-Jan-2014,2686803-2136642,"1,154.84",CHILTON CARE CENTRE.,
Children and Adult Services,Head of Adults,Third Party Payments,471101,Purchase of Care,06-Jan-2014,2686803-2139935,"1,184.16",CHILTON CARE CENTRE.,
Children and Adult Services,Head of Adults,Third Party Payments,471101,Purchase of Care,06-Jan-2014,2686803-2139936,"1,377.80",CHILTON CARE CENTRE.,
Children and Adult Services,Head of Adults,Third Party Payments,471101,Purchase of Care,06-Jan-2014,2686803-2139937,"1,377.80",CHILTON CARE CENTRE.,
Children and Adult Services,Head of Adults,Third Party Payments,471101,Purchase of Care,06-Jan-2014,2686803-2139938,"1,863.80",CHILTON CARE CENTRE.,
Children and Adult Services,Head of Adults,Third Party Payments,471101,Purchase of Care,06-Jan-2014,2686803-2139949,"1,255.60",CHILTON CARE CENTRE.,
Children and Adult Services,Head of Adults,Third Party Payments,471101,Purchase of Care,06-Jan-2014,2686803-2139952,"1,863.80",CHILTON CARE CENTRE.,
Children and Adult Services,Head of Adults,Third Party Payments,471101,Purchase of Care,06-Jan-2014,2686803-2139953,879.04,CHILTON CARE CENTRE.,
Children and Adult Services,Head of Adults,Third Party Payments,471101,Purchase of Care,06-Jan-2014,2686803-2139954,"1,863.80",CHILTON CARE CENTRE.,
Children and Adult Services,Head of Adults,Third Party Payments,471101,Purchase of Care,06-Jan-2014,2686803-2139955,"1,000.52",CHILTON CARE CENTRE.,
Children and Adult Services,Head of Adults,Third Party Payments,471101,Purchase of Care,06-Jan-2014,2686803-2139956,"1,863.80",CHILTON CARE CENTRE.,
Children and Adult Services,Head of Adults,Third Party Payments,471101,Purchase of Care,06-Jan-2014,2686803-2139957,"1,863.80",CHILTON CARE CENTRE.,
Children and Adult Services,Head of Adults,Third Party Payments,471101,Purchase of Care,06-Jan-2014,2686803-2139958,"1,377.80",CHILTON CARE CENTRE.,
Children and Adult Services,Head of Adults,Third Party Payments,471101,Purchase of Care,06-Jan-2014,2686803-2139959,"1,074.52",CHILTON CARE CENTRE.,
Children and Adult Services,Head of Adults,Third Party Payments,471101,Purchase of Care,06-Jan-2014,2686803-2139960,"1,377.80",CHILTON CARE CENTRE.,
Children and Adult Services,Head of Adults,Third Party Payments,471101,Purchase of Care,06-Jan-2014,2686803-2139961,"1,377.80",CHILTON CARE CENTRE.,
Children and Adult Services,Head of Adults,Third Party Payments,471101,Purchase of Care,06-Jan-2014,2686803-2140660,"6,446.57",CHILTON CARE CENTRE.,
Children and Adult Services,Head of Adults,Third Party Payments,472101,Purchase of Care,06-Jan-2014,2686806-1387210H,"1,341.88",CHOICE HEALTHCARE (APPLEJACK).,
Children and Adult Services,Head of Adults,Third Party Payments,472101,Purchase of Care,06-Jan-2014,2686806-1387227H,"1,603.42",CHOICE HEALTHCARE (APPLEJACK).,
Children and Adult Services,Head of Adults,Third Party Payments,472101,Purchase of Care,06-Jan-2014,2686806-1389131H,865.04,CHOICE HEALTHCARE (APPLEJACK).,
Children and Adult Services,Head of Adults,Third Party Payments,472101,Purchase of Care,06-Jan-2014,2686806-1389801H,602.56,CHOICE HEALTHCARE (APPLEJACK).,
Children and Adult Services,Head of Adults,Third Party Payments,472101,Purchase of Care,06-Jan-2014,2686806-1390169H,576.68,CHOICE HEALTHCARE (APPLEJACK).,
Children and Adult Services,Head of Adults,Third Party Payments,472101,Purchase of Care,06-Jan-2014,2686806-1390565H,652.20,CHOICE HEALTHCARE (APPLEJACK).,
Children and Adult Services,Head of Adults,Third Party Payments,472101,Purchase of Care,06-Jan-2014,2686806-1390901H,584.08,CHOICE HEALTHCARE (APPLEJACK).,
Children and Adult Services,Head of Adults,Third Party Payments,472101,Purchase of Care,06-Jan-2014,2686806-1390999H,772.60,CHOICE HEALTHCARE (APPLEJACK).,
Children and Adult Services,Head of Adults,Third Party Payments,472101,Purchase of Care,06-Jan-2014,2686806-1391239H,507.27,CHOICE HEALTHCARE (APPLEJACK).,
Children and Adult Services,Head of Adults,Third Party Payments,472101,Purchase of Care,06-Jan-2014,2686806-1391269H,621.04,CHOICE HEALTHCARE (APPLEJACK).,
Children and Adult Services,Head of Adults,Third Party Payments,472101,Purchase of Care,06-Jan-2014,2686806-1391357H,"1,057.24",CHOICE HEALTHCARE (APPLEJACK).,
Children and Adult Services,Head of Adults,Third Party Payments,472101,Purchase of Care,06-Jan-2014,2686806-1391370H,707.90,CHOICE HEALTHCARE (APPLEJACK).,
Children and Adult Services,Head of Adults,Third Party Payments,472101,Purchase of Care,06-Jan-2014,2686806-1391619H,772.20,CHOICE HEALTHCARE (APPLEJACK).,
Children and Adult Services,Head of Adults,Third Party Payments,472101,Purchase of Care,06-Jan-2014,2686806-1391802H,571.25,CHOICE HEALTHCARE (APPLEJACK).,
Children and Adult Services,Head of Adults,Third Party Payments,472101,Purchase of Care,06-Jan-2014,2686806-1391806H,576.68,CHOICE HEALTHCARE (APPLEJACK).,
Children and Adult Services,Head of Adults,Third Party Payments,472101,Purchase of Care,06-Jan-2014,2686806-1391857H,673.91,CHOICE HEALTHCARE (APPLEJACK).,
Children and Adult Services,Head of Adults,Third Party Payments,472101,Purchase of Care,06-Jan-2014,2686806-1391859H,669.08,CHOICE HEALTHCARE (APPLEJACK).,
Children and Adult Services,Head of Adults,Third Party Payments,472101,Purchase of Care,06-Jan-2014,2686806-1391921H,776.32,CHOICE HEALTHCARE (APPLEJACK).,
Children and Adult Services,Head of Adults,Third Party Payments,472101,Purchase of Care,06-Jan-2014,2686806-1391924H,539.72,CHOICE HEALTHCARE (APPLEJACK).,
Children and Adult Services,Head of Adults,Third Party Payments,472101,Purchase of Care,06-Jan-2014,2686806-1392074H,709.76,CHOICE HEALTHCARE (APPLEJACK).,
Children and Adult Services,Head of Adults,Third Party Payments,472101,Purchase of Care,06-Jan-2014,2686806-1392103H,687.60,CHOICE HEALTHCARE (APPLEJACK).,
Children and Adult Services,Head of Adults,Third Party Payments,472101,Purchase of Care,06-Jan-2014,2686806-1392346H,505.68,CHOICE HEALTHCARE (APPLEJACK).,
Children and Adult Services,Head of Adults,Third Party Payments,472101,Purchase of Care,06-Jan-2014,2686806-1392590H,730.10,CHOICE HEALTHCARE (APPLEJACK).,
Children and Adult Services,Head of Adults,Third Party Payments,472101,Purchase of Care,06-Jan-2014,2686806-1392603H,"1,413.72",CHOICE HEALTHCARE (APPLEJACK).,
Children and Adult Services,Head of Adults,Third Party Payments,472101,Purchase of Care,06-Jan-2014,2686806-1392722H,510.88,CHOICE HEALTHCARE (APPLEJACK).,
Children and Adult Services,Head of Adults,Third Party Payments,472101,Purchase of Care,06-Jan-2014,2686806-1392776H,652.21,CHOICE HEALTHCARE (APPLEJACK).,
Children and Adult Services,Head of Adults,Third Party Payments,472101,Purchase of Care,06-Jan-2014,2686806-1392865H,"1,543.56",CHOICE HEALTHCARE (APPLEJACK).,
Children and Adult Services,Head of Adults,Third Party Payments,472101,Purchase of Care,06-Jan-2014,2686806-1392985H,539.72,CHOICE HEALTHCARE (APPLEJACK).,
Children and Adult Services,Head of Adults,Third Party Payments,472101,Purchase of Care,06-Jan-2014,2686806-1393003H,724.56,CHOICE HEALTHCARE (APPLEJACK).,
Children and Adult Services,Head of Adults,Third Party Payments,472101,Purchase of Care,06-Jan-2014,2686806-1393011H,782.64,CHOICE HEALTHCARE (APPLEJACK).,
Children and Adult Services,Head of Adults,Third Party Payments,472101,Purchase of Care,06-Jan-2014,2686806-1393012H,978.31,CHOICE HEALTHCARE (APPLEJACK).,
